Workbook

Sheet Main
B10: 2020-03-03
B12: Sheet No. | C12: Template Name | D12: Summary
B13: 1 | C13: Future Intra | D13: For Intraday trading in F&O segment
B14: 2 | C14: Cash Intra | D14: For Intraday trading in cash market segment
B15: 3 | C15: Mid-cap Intra | D15: For Intraday trading in Mid-cap stocks
B16: 4 | C16: Bulk Deals | D16: Reveals Bulk Deals carried on NSE & BSE
B17: 5 | C17: Call Tracker
K27: `

Sheet Future Intra
M5: Back to Main Page
A6: FOR INTRA DAY TRADING | L6: =Main!B10 -> 2020-03-03
A9: Sr.no | B9: Sector | C9: Scrip | D9: CLOSE RATE | E9: Pivot Point | F9: Supports | I9: Resistances
B10: Sector | D10: Point | E10: Point | F10: S1 | G10: S2 | H10: S3 | I10: R1 | J10: R2 | K10: R3 | L10: HIGH | M10: LOW | N10: OI | O10: % Change in OI
A11: 1 | B11: Index | C11: BANKNIFTY | D11: 28885.15 | E11: 29044.40 | F11: 28440.80 | G11: 27996.45 | H11: 27392.85 | I11: 29488.75 | J11: 30092.35 | K11: 30536.70 | L11: 29648 | M11: 28600.05 | N11: 1272080 | O11: -2.47%
A12: 2 | B12: Index | C12: NIFTY | D12: 11123.70 | E12: 11188.55 | F12: 10959.10 | G12: 10794.50 | H12: 10565.05 | I12: 11353.15 | J12: 11582.60 | K12: 11747.20 | L12: 11418 | M12: 11023.95 | N12: 15238575 | O12: -9.09%
A13: 3 | B13: Index | C13: NIFTYIT | D13: 15410.00 | E13: 15451.67 | F13: 15248.33 | G13: 15086.67 | H13: 14883.33 | I13: 15613.33 | J13: 15816.67 | K13: 15978.33 | L13: 15655 | M13: 15290 | N13: 4550 | O13: -9.90%
A14: 4 | B14: Cement | C14: ACC | D14: 1283.65 | E14: 1303.40 | F14: 1250.80 | G14: 1217.95 | H14: 1165.35 | I14: 1336.25 | J14: 1388.85 | K14: 1421.70 | L14: 1356 | M14: 1270.55 | N14: 3625200 | O14: -2.35%
A15: 5 | B15: Others | C15: ADANIENT | D15: 218.55 | E15: 220.55 | F15: 214.30 | G15: 210.05 | H15: 203.80 | I15: 224.80 | J15: 231.05 | K15: 235.30 | L15: 226.8 | M15: 216.3 | N15: 28024000 | O15: -2.00%
A16: 6 | B16: Others | C16: ADANIPORTS | D16: 340.10 | E16: 342.93 | F16: 334.72 | G16: 329.33 | H16: 321.12 | I16: 348.32 | J16: 356.53 | K16: 361.92 | L16: 351.15 | M16: 337.55 | N16: 32100000 | O16: 3.81%
A17: 7 | B17: Power | C17: ADANIPOWER | D17: 47.20 | E17: 47.98 | F17: 45.87 | G17: 44.53 | H17: 42.42 | I17: 49.32 | J17: 51.43 | K17: 52.77 | L17: 50.1 | M17: 46.65 | N17: 73240000 | O17: -1.27%
A18: 8 | B18: Automobile | C18: AMARAJABAT | D18: 624.60 | E18: 637.18 | F18: 607.57 | G18: 590.53 | H18: 560.92 | I18: 654.22 | J18: 683.83 | K18: 700.87 | L18: 666.8 | M18: 620.15 | N18: 2185600 | O18: 5.12%
A19: 9 | B19: Cement | C19: AMBUJACEM | D19: 202.40 | E19: 205.90 | F19: 196.50 | G19: 190.60 | H19: 181.20 | I19: 211.80 | J19: 221.20 | K19: 227.10 | L19: 215.3 | M19: 200 | N19: 19737500 | O19: -1.24%
A20: 10 | B20: Others | C20: APOLLOHOSP | D20: 1728.75 | E20: 1740.62 | F20: 1703.23 | G20: 1677.72 | H20: 1640.33 | I20: 1766.13 | J20: 1803.52 | K20: 1829.03 | L20: 1778 | M20: 1715.1 | N20: 1808000 | O20: -3.60%
A21: 11 | B21: Automobile | C21: APOLLOTYRE | D21: 133.20 | E21: 135.97 | F21: 128.88 | G21: 124.57 | H21: 117.48 | I21: 140.28 | J21: 147.37 | K21: 151.68 | L21: 143.05 | M21: 131.65 | N21: 17655000 | O21: -6.30%
A22: 12 | B22: Automobile | C22: ASHOKLEY | D22: 71.30 | E22: 71.95 | F22: 69.20 | G22: 67.10 | H22: 64.35 | I22: 74.05 | J22: 76.80 | K22: 78.90 | L22: 74.7 | M22: 69.85 | N22: 59504000 | O22: -5.87%
A23: 13 | B23: FMCG | C23: ASIANPAINT | D23: 1785.15 | E23: 1796.08 | F23: 1756.22 | G23: 1727.28 | H23: 1687.42 | I23: 1825.02 | J23: 1864.88 | K23: 1893.82 | L23: 1835.95 | M23: 1767.15 | N23: 7399800 | O23: -1.12%
A24: 14 | B24: Pharma | C24: AUROPHARMA | D24: 496.30 | E24: 502.68 | F24: 485.12 | G24: 473.93 | H24: 456.37 | I24: 513.87 | J24: 531.43 | K24: 542.62 | L24: 520.25 | M24: 491.5 | N24: 13027000 | O24: -0.15%
A25: 15 | B25: Banking | C25: AXISBANK | D25: 684.05 | E25: 690.85 | F25: 670.20 | G25: 656.35 | H25: 635.70 | I25: 704.70 | J25: 725.35 | K25: 739.20 | L25: 711.5 | M25: 677 | N25: 53158800 | O25: -1.02%
A26: 16 | B26: Automobile | C26: BAJAJ-AUTO | D26: 2669.75 | E26: 2715.15 | F26: 2609.60 | G26: 2549.45 | H26: 2443.90 | I26: 2775.30 | J26: 2880.85 | K26: 2941.00 | L26: 2820.7 | M26: 2655 | N26: 2111750 | O26: 5.61%
A27: 17 | B27: Finance | C27: BAJAJFINSV | D27: 8938.95 | E27: 9031.72 | F27: 8744.23 | G27: 8549.52 | H27: 8262.03 | I27: 9226.43 | J27: 9513.92 | K27: 9708.63 | L27: 9319.2 | M27: 8837 | N27: 1053000 | O27: 0.36%
A28: 18 | B28: Finance | C28: BAJFINANCE | D28: 4362.05 | E28: 4424.08 | F28: 4248.17 | G28: 4134.28 | H28: 3958.37 | I28: 4537.97 | J28: 4713.88 | K28: 4827.77 | L28: 4600 | M28: 4310.2 | N28: 6245500 | O28: 4.00%
A29: 19 | B29: Automobile | C29: BALKRISIND | D29: 1067.55 | E29: 1091.72 | F29: 1030.13 | G29: 992.72 | H29: 931.13 | I29: 1129.13 | J29: 1190.72 | K29: 1228.13 | L29: 1153.3 | M29: 1054.3 | N29: 1680000 | O29: 8.81%
A30: 20 | B30: Banking | C30: BANDHANBNK | D30: 394.80 | E30: 396.52 | F30: 384.73 | G30: 374.67 | H30: 362.88 | I30: 406.58 | J30: 418.37 | K30: 428.43 | L30: 408.3 | M30: 386.45 | N30: 3176400 | O30: 17.85%
A31: 21 | B31: Banking | C31: BANKBARODA | D31: 71.10 | E31: 73.17 | F31: 68.08 | G31: 65.07 | H31: 59.98 | I31: 76.18 | J31: 81.27 | K31: 84.28 | L31: 78.25 | M31: 70.15 | N31: 72948600 | O31: 3.22%
A32: 22 | B32: FMCG | C32: BATAINDIA | D32: 1629.15 | E32: 1648.78 | F32: 1598.57 | G32: 1567.98 | H32: 1517.77 | I32: 1679.37 | J32: 1729.58 | K32: 1760.17 | L32: 1699 | M32: 1618.2 | N32: 2553100 | O32: -4.03%
A33: 23 | B33: Capital_Goods | C33: BEL | D33: 72.55 | E33: 73.68 | F33: 70.37 | G33: 68.18 | H33: 64.87 | I33: 75.87 | J33: 79.18 | K33: 81.37 | L33: 77 | M33: 71.5 | N33: 39768000 | O33: 0.14%
A34: 24 | B34: FMCG | C34: BERGEPAINT | D34: 553.20 | E34: 557.77 | F34: 543.43 | G34: 533.67 | H34: 519.33 | I34: 567.53 | J34: 581.87 | K34: 591.63 | L34: 572.1 | M34: 548 | N34: 6439400 | O34: 0.83%
A35: 25 | B35: Automobile | C35: BHARATFORG | D35: 427.85 | E35: 430.48 | F35: 415.02 | G35: 402.18 | H35: 386.72 | I35: 443.32 | J35: 458.78 | K35: 471.62 | L35: 445.95 | M35: 417.65 | N35: 7636200 | O35: 4.04%
A36: 26 | B36: Telecom | C36: BHARTIARTL | D36: 519.45 | E36: 523.38 | F36: 509.42 | G36: 499.38 | H36: 485.42 | I36: 533.42 | J36: 547.38 | K36: 557.42 | L36: 537.35 | M36: 513.35 | N36: 53536473 | O36: -1.03%
A37: 27 | B37: Capital_Goods | C37: BHEL | D37: 29.60 | E37: 30.17 | F37: 28.63 | G37: 27.67 | H37: 26.13 | I37: 31.13 | J37: 32.67 | K37: 33.63 | L37: 31.7 | M37: 29.2 | N37: 81556800 | O37: 0.68%
A38: 28 | B38: Pharma | C38: BIOCON | D38: 280.95 | E38: 284.88 | F38: 274.47 | G38: 267.98 | H38: 257.57 | I38: 291.37 | J38: 301.78 | K38: 308.27 | L38: 295.3 | M38: 278.4 | N38: 10658200 | O38: -7.43%
A39: 29 | B39: Automobile | C39: BOSCHLTD | D39: 12457.55 | E39: 12530.07 | F39: 12270.53 | G39: 12083.52 | H39: 11823.98 | I39: 12717.08 | J39: 12976.62 | K39: 13163.63 | L39: 12789.6 | M39: 12343.05 | N39: 135040 | O39: 2.80%
A40: 30 | B40: Oil_Gas | C40: BPCL | D40: 405.30 | E40: 412.82 | F40: 392.88 | G40: 380.47 | H40: 360.53 | I40: 425.23 | J40: 445.17 | K40: 457.58 | L40: 432.75 | M40: 400.4 | N40: 27293400 | O40: -3.86%
A41: 31 | B41: FMCG | C41: BRITANNIA | D41: 2950.75 | E41: 2971.55 | F41: 2898.30 | G41: 2845.85 | H41: 2772.60 | I41: 3024.00 | J41: 3097.25 | K41: 3149.70 | L41: 3044.8 | M41: 2919.1 | N41: 1766400 | O41: -4.76%
A42: 32 | B42: Pharma | C42: CADILAHC | D42: 247.60 | E42: 252.30 | F42: 240.90 | G42: 234.20 | H42: 222.80 | I42: 259.00 | J42: 270.40 | K42: 277.10 | L42: 263.7 | M42: 245.6 | N42: 5112800 | O42: -6.03%
A43: 33 | B43: Banking | C43: CANBK | D43: 138.40 | E43: 141.08 | F43: 133.67 | G43: 128.93 | H43: 121.52 | I43: 145.82 | J43: 153.23 | K43: 157.97 | L43: 148.5 | M43: 136.35 | N43: 17141800 | O43: -4.45%
A44: 34 | B44: Textile | C44: CENTURYTEX | D44: 499.25 | E44: 510.92 | F44: 481.08 | G44: 462.92 | H44: 433.08 | I44: 529.08 | J44: 558.92 | K44: 577.08 | L44: 540.75 | M44: 492.75 | N44: 3678600 | O44: -5.40%
A45: 35 | B45: Power | C45: CESC | D45: 639.10 | E45: 643.98 | F45: 628.32 | G45: 617.53 | H45: 601.87 | I45: 654.77 | J45: 670.43 | K45: 681.22 | L45: 659.65 | M45: 633.2 | N45: 1712800 | O45: -1.61%
A46: 36 | B46: Finance | C46: CHOLAFIN | D46: 302.70 | E46: 306.27 | F46: 296.03 | G46: 289.37 | H46: 279.13 | I46: 312.93 | J46: 323.17 | K46: 329.83 | L46: 316.5 | M46: 299.6 | N46: 5460000 | O46: -0.36%
A47: 37 | B47: Pharma | C47: CIPLA | D47: 398.75 | E47: 400.08 | F47: 391.07 | G47: 383.38 | H47: 374.37 | I47: 407.77 | J47: 416.78 | K47: 424.47 | L47: 409.1 | M47: 392.4 | N47: 13115750 | O47: -2.60%
A48: 38 | B48: Others | C48: COALINDIA | D48: 165.60 | E48: 167.27 | F48: 162.58 | G48: 159.57 | H48: 154.88 | I48: 170.28 | J48: 174.97 | K48: 177.98 | L48: 171.95 | M48: 164.25 | N48: 42368400 | O48: 4.42%
A49: 39 | B49: FMCG | C49: COLPAL | D49: 1292.55 | E49: 1298.43 | F49: 1277.92 | G49: 1263.28 | H49: 1242.77 | I49: 1313.07 | J49: 1333.58 | K49: 1348.22 | L49: 1318.95 | M49: 1283.8 | N49: 2510900 | O49: -3.03%
A50: 40 | B50: Others | C50: CONCOR | D50: 495.05 | E50: 503.22 | F50: 482.43 | G50: 469.82 | H50: 449.03 | I50: 515.83 | J50: 536.62 | K50: 549.23 | L50: 524 | M50: 490.6 | N50: 5062557 | O50: -1.61%
A51: 41 | B51: Capital_Goods | C51: CUMMINSIND | D51: 496.70 | E51: 502.73 | F51: 487.42 | G51: 478.13 | H51: 462.82 | I51: 512.02 | J51: 527.33 | K51: 536.62 | L51: 518.05 | M51: 493.45 | N51: 1356300 | O51: 1.89%
A52: 42 | B52: FMCG | C52: DABUR | D52: 497.60 | E52: 501.13 | F52: 489.57 | G52: 481.53 | H52: 469.97 | I52: 509.17 | J52: 520.73 | K52: 528.77 | L52: 512.7 | M52: 493.1 | N52: 9580000 | O52: -0.25%
A53: 43 | B53: Pharma | C53: DIVISLAB | D53: 2114.95 | E53: 2124.93 | F53: 2086.27 | G53: 2057.58 | H53: 2018.92 | I53: 2153.62 | J53: 2192.28 | K53: 2220.97 | L53: 2163.6 | M53: 2096.25 | N53: 1914800 | O53: 1.79%
A54: 44 | B54: Realty | C54: DLF | D54: 203.60 | E54: 205.67 | F54: 197.68 | G54: 191.77 | H54: 183.78 | I54: 211.58 | J54: 219.57 | K54: 225.48 | L54: 213.65 | M54: 199.75 | N54: 39002700 | O54: -2.63%
A55: 45 | B55: Pharma | C55: DRREDDY | D55: 2906.10 | E55: 2928.70 | F55: 2857.40 | G55: 2808.70 | H55: 2737.40 | I55: 2977.40 | J55: 3048.70 | K55: 3097.40 | L55: 3000 | M55: 2880 | N55: 2357250 | O55: 0.14%
A56: 46 | B56: Automobile | C56: EICHERMOT | D56: 16952.50 | E56: 17159.72 | F56: 16506.43 | G56: 16060.37 | H56: 15407.08 | I56: 17605.78 | J56: 18259.07 | K56: 18705.13 | L56: 17813 | M56: 16713.65 | N56: 254160 | O56: -9.02%
A57: 47 | B57: Finance | C57: EQUITAS | D57: 106.55 | E57: 108.37 | F57: 103.23 | G57: 99.92 | H57: 94.78 | I57: 111.68 | J57: 116.82 | K57: 120.13 | L57: 113.5 | M57: 105.05 | N57: 16856000 | O57: -5.96%
A58: 48 | B58: Automobile | C58: ESCORTS | D58: 847.45 | E58: 844.58 | F58: 815.22 | G58: 782.98 | H58: 753.62 | I58: 876.82 | J58: 906.18 | K58: 938.42 | L58: 873.95 | M58: 812.35 | N58: 5090800 | O58: 26.90%
A59: 49 | B59: Automobile | C59: EXIDEIND | D59: 157.60 | E59: 159.75 | F59: 154.55 | G59: 151.50 | H59: 146.30 | I59: 162.80 | J59: 168.00 | K59: 171.05 | L59: 164.95 | M59: 156.7 | N59: 10396500 | O59: 2.25%
A60: 50 | B60: Banking | C60: FEDERALBNK | D60: 82.70 | E60: 84.17 | F60: 80.23 | G60: 77.77 | H60: 73.83 | I60: 86.63 | J60: 90.57 | K60: 93.03 | L60: 88.1 | M60: 81.7 | N60: 65555000 | O60: -1.84%
A61: 51 | B61: Oil_Gas | C61: GAIL | D61: 100.05 | E61: 102.10 | F61: 96.95 | G61: 93.85 | H61: 88.70 | I61: 105.20 | J61: 110.35 | K61: 113.45 | L61: 107.25 | M61: 99 | N61: 39444930 | O61: 1.23%
A62: 52 | B62: Pharma | C62: GLENMARK | D62: 273.45 | E62: 276.97 | F62: 267.73 | G62: 262.02 | H62: 252.78 | I62: 282.68 | J62: 291.92 | K62: 297.63 | L62: 286.2 | M62: 271.25 | N62: 7996800 | O62: -2.18%
A63: 53 | B63: Infrastructure | C63: GMRINFRA | D63: 19.95 | E63: 20.25 | F63: 19.25 | G63: 18.55 | H63: 17.55 | I63: 20.95 | J63: 21.95 | K63: 22.65 | L63: 21.25 | M63: 19.55 | N63: 205605000 | O63: -1.38%
A64: 54 | B64: FMCG | C64: GODREJCP | D64: 588.55 | E64: 592.02 | F64: 572.78 | G64: 557.02 | H64: 537.78 | I64: 607.78 | J64: 627.02 | K64: 642.78 | L64: 611.25 | M64: 576.25 | N64: 7592000 | O64: -0.78%
A65: 55 | B65: Cement | C65: GRASIM | D65: 668.85 | E65: 676.53 | F65: 652.07 | G65: 635.28 | H65: 610.82 | I65: 693.32 | J65: 717.78 | K65: 734.57 | L65: 701 | M65: 659.75 | N65: 28098750 | O65: -0.75%
A66: 56 | B66: Others | C66: HAVELLS | D66: 624.60 | E66: 628.72 | F66: 613.08 | G66: 601.57 | H66: 585.93 | I66: 640.23 | J66: 655.87 | K66: 667.38 | L66: 644.35 | M66: 617.2 | N66: 5951000 | O66: 0.27%
A67: 57 | B67: Technology | C67: HCLTECH | D67: 551.20 | E67: 552.05 | F67: 537.85 | G67: 524.50 | H67: 510.30 | I67: 565.40 | J67: 579.60 | K67: 592.95 | L67: 566.25 | M67: 538.7 | N67: 21005600 | O67: -1.11%
A68: 58 | B68: Finance | C68: HDFC | D68: 2186.95 | E68: 2200.75 | F68: 2147.50 | G68: 2108.05 | H68: 2054.80 | I68: 2240.20 | J68: 2293.45 | K68: 2332.90 | L68: 2254 | M68: 2161.3 | N68: 33986500 | O68: -0.30%
A69: 59 | B69: Banking | C69: HDFCBANK | D69: 1180.05 | E69: 1182.07 | F69: 1165.98 | G69: 1151.92 | H69: 1135.83 | I69: 1196.13 | J69: 1212.22 | K69: 1226.28 | L69: 1198.15 | M69: 1168 | N69: 31931000 | O69: -3.13%
A70: 60 | B70: Finance | C70: HDFCLIFE | D70: 554.95 | E70: 557.42 | F70: 548.38 | G70: 541.82 | H70: 532.78 | I70: 563.98 | J70: 573.02 | K70: 579.58 | L70: 566.45 | M70: 550.85 | N70: 1259100 | O70: 8.28%
A71: 61 | B71: Automobile | C71: HEROMOTOCO | D71: 1980.60 | E71: 2020.63 | F71: 1926.27 | G71: 1871.93 | H71: 1777.57 | I71: 2074.97 | J71: 2169.33 | K71: 2223.67 | L71: 2115 | M71: 1966.3 | N71: 3910200 | O71: 1.56%
A72: 62 | B72: Metals | C72: HINDALCO | D72: 150.45 | E72: 153.27 | F72: 144.78 | G72: 139.12 | H72: 130.63 | I72: 158.93 | J72: 167.42 | K72: 173.08 | L72: 161.75 | M72: 147.6 | N72: 46536000 | O72: -0.95%
A73: 63 | B73: Oil_Gas | C73: HINDPETRO | D73: 192.10 | E73: 194.47 | F73: 187.63 | G73: 183.17 | H73: 176.33 | I73: 198.93 | J73: 205.77 | K73: 210.23 | L73: 201.3 | M73: 190 | N73: 17497200 | O73: -1.61%
A74: 64 | B74: FMCG | C74: HINDUNILVR | D74: 2166.55 | E74: 2182.83 | F74: 2135.12 | G74: 2103.68 | H74: 2055.97 | I74: 2214.27 | J74: 2261.98 | K74: 2293.42 | L74: 2230.55 | M74: 2151.4 | N74: 10965600 | O74: -0.29%
A75: 65 | B75: Finance | C75: IBULHSGFIN | D75: 284.80 | E75: 303.10 | F75: 261.20 | G75: 237.60 | H75: 195.70 | I75: 326.70 | J75: 368.60 | K75: 392.20 | L75: 345 | M75: 279.5 | N75: 22888800 | O75: 10.14%
A76: 66 | B76: Banking | C76: ICICIBANK | D76: 506.80 | E76: 508.88 | F76: 497.42 | G76: 488.03 | H76: 476.57 | I76: 518.27 | J76: 529.73 | K76: 539.12 | L76: 520.35 | M76: 499.5 | N76: 100267750 | O76: -4.78%
A77: 67 | B77: Finance | C77: ICICIPRULI | D77: 455.20 | E77: 464.12 | F77: 439.93 | G77: 424.67 | H77: 400.48 | I77: 479.38 | J77: 503.57 | K77: 518.83 | L77: 488.3 | M77: 448.85 | N77: 8316000 | O77: 3.28%
A78: 68 | B78: Telecom | C78: IDEA | D78: 3.45 | E78: 3.62 | F78: 3.13 | G78: 2.82 | H78: 2.33 | I78: 3.93 | J78: 4.42 | K78: 4.73 | L78: 4.1 | M78: 3.3 | N78: 459228000 | O78: -9.85%
A79: 69 | B79: Banking | C79: IDFCFIRSTB | D79: 37.10 | E79: 37.55 | F79: 36.10 | G79: 35.10 | H79: 33.65 | I79: 38.55 | J79: 40.00 | K79: 41.00 | L79: 39 | M79: 36.55 | N79: 204672000 | O79: 1.42%
A80: 70 | B80: Oil_Gas | C80: IGL | D80: 434.50 | E80: 440.75 | F80: 424.50 | G80: 414.50 | H80: 398.25 | I80: 450.75 | J80: 467.00 | K80: 477.00 | L80: 457 | M80: 430.75 | N80: 11409750 | O80: 0.51%
A81: 71 | B81: Others | C81: INDIGO | D81: 1208.90 | E81: 1243.63 | F81: 1152.32 | G81: 1095.73 | H81: 1004.42 | I81: 1300.22 | J81: 1391.53 | K81: 1448.12 | L81: 1334.95 | M81: 1187.05 | N81: 3374700 | O81: 24.27%
A82: 72 | B82: Banking | C82: INDUSINDBK | D82: 1079.80 | E82: 1083.67 | F82: 1033.58 | G82: 987.37 | H82: 937.28 | I82: 1129.88 | J82: 1179.97 | K82: 1226.18 | L82: 1133.75 | M82: 1037.45 | N82: 12406400 | O82: -2.96%
A83: 73 | B83: Telecom | C83: INFRATEL | D83: 209.15 | E83: 211.00 | F83: 200.70 | G83: 192.25 | H83: 181.95 | I83: 219.45 | J83: 229.75 | K83: 238.20 | L83: 221.3 | M83: 202.55 | N83: 9108000 | O83: 0.75%
A84: 74 | B84: Technology | C84: INFY | D84: 742.40 | E84: 747.22 | F84: 729.78 | G84: 717.17 | H84: 699.73 | I84: 759.83 | J84: 777.27 | K84: 789.88 | L84: 764.65 | M84: 734.6 | N84: 23911200 | O84: -3.74%
A85: 75 | B85: Oil_Gas | C85: IOC | D85: 101.15 | E85: 103.00 | F85: 98.70 | G85: 96.25 | H85: 91.95 | I85: 105.45 | J85: 109.75 | K85: 112.20 | L85: 107.3 | M85: 100.55 | N85: 46360000 | O85: -2.76%
A86: 76 | B86: FMCG | C86: ITC | D86: 196.05 | E86: 197.97 | F86: 192.63 | G86: 189.22 | H86: 183.88 | I86: 201.38 | J86: 206.72 | K86: 210.13 | L86: 203.3 | M86: 194.55 | N86: 144964800 | O86: -2.64%
A87: 77 | B87: Metals | C87: JINDALSTEL | D87: 153.20 | E87: 155.67 | F87: 146.93 | G87: 140.67 | H87: 131.93 | I87: 161.93 | J87: 170.67 | K87: 176.93 | L87: 164.4 | M87: 149.4 | N87: 36495000 | O87: 4.77%
A88: 78 | B88: Metals | C88: JSWSTEEL | D88: 235.25 | E88: 237.95 | F88: 228.80 | G88: 222.35 | H88: 213.20 | I88: 244.40 | J88: 253.55 | K88: 260.00 | L88: 247.1 | M88: 231.5 | N88: 42407400 | O88: -1.99%
A89: 79 | B89: Others | C89: JUBLFOOD | D89: 1658.90 | E89: 1692.45 | F89: 1597.55 | G89: 1536.20 | H89: 1441.30 | I89: 1753.80 | J89: 1848.70 | K89: 1910.05 | L89: 1787.35 | M89: 1631.1 | N89: 2476000 | O89: 9.12%
A90: 80 | B90: Others | C90: JUSTDIAL | D90: 474.65 | E90: 479.57 | F90: 465.08 | G90: 455.52 | H90: 441.03 | I90: 489.13 | J90: 503.62 | K90: 513.18 | L90: 494.05 | M90: 470 | N90: 3017000 | O90: -1.64%
A91: 81 | B91: Banking | C91: KOTAKBANK | D91: 1605.05 | E91: 1612.05 | F91: 1584.05 | G91: 1563.05 | H91: 1535.05 | I91: 1633.05 | J91: 1661.05 | K91: 1682.05 | L91: 1640.05 | M91: 1591.05 | N91: 8842800 | O91: -1.37%
A92: 82 | B92: Finance | C92: L&TFH | D92: 102.40 | E92: 103.60 | F92: 99.80 | G92: 97.20 | H92: 93.40 | I92: 106.20 | J92: 110.00 | K92: 112.60 | L92: 107.4 | M92: 101 | N92: 18978400 | O92: -11.54%
A93: 83 | B93: Finance | C93: LICHSGFIN | D93: 322.35 | E93: 325.72 | F93: 315.18 | G93: 308.02 | H93: 297.48 | I93: 332.88 | J93: 343.42 | K93: 350.58 | L93: 336.25 | M93: 318.55 | N93: 13028600 | O93: -4.80%
A94: 84 | B94: Capital_Goods | C94: LT | D94: 1162.95 | E94: 1176.28 | F94: 1139.47 | G94: 1115.98 | H94: 1079.17 | I94: 1199.77 | J94: 1236.58 | K94: 1260.07 | L94: 1213.1 | M94: 1152.8 | N94: 20336250 | O94: -0.42%
A95: 85 | B95: Pharma | C95: LUPIN | D95: 629.80 | E95: 635.38 | F95: 617.37 | G95: 604.93 | H95: 586.92 | I95: 647.82 | J95: 665.83 | K95: 678.27 | L95: 653.4 | M95: 622.95 | N95: 6547100 | O95: 0.10%
A96: 86 | B96: Automobile | C96: M&M | D96: 455.95 | E96: 457.35 | F96: 443.30 | G96: 430.65 | H96: 416.60 | I96: 470.00 | J96: 484.05 | K96: 496.70 | L96: 471.4 | M96: 444.7 | N96: 13453000 | O96: -2.09%
A97: 87 | B97: Finance | C97: M&MFIN | D97: 337.05 | E97: 341.58 | F97: 327.87 | G97: 318.68 | H97: 304.97 | I97: 350.77 | J97: 364.48 | K97: 373.67 | L97: 355.3 | M97: 332.4 | N97: 9857600 | O97: -0.77%
A98: 88 | B98: Finance | C98: MANAPPURAM | D98: 160.05 | E98: 162.15 | F98: 156.45 | G98: 152.85 | H98: 147.15 | I98: 165.75 | J98: 171.45 | K98: 175.05 | L98: 167.85 | M98: 158.55 | N98: 20292000 | O98: -6.03%
A99: 89 | B99: FMCG | C99: MARICO | D99: 292.40 | E99: 297.78 | F99: 285.82 | G99: 279.23 | H99: 267.27 | I99: 304.37 | J99: 316.33 | K99: 322.92 | L99: 309.75 | M99: 291.2 | N99: 11017500 | O99: 4.13%
A100: 90 | B100: Automobile | C100: MARUTI | D100: 6274.95 | E100: 6312.28 | F100: 6199.67 | G100: 6124.38 | H100: 6011.77 | I100: 6387.57 | J100: 6500.18 | K100: 6575.47 | L100: 6424.9 | M100: 6237 | N100: 3395500 | O100: -6.27%
A101: 91 | B101: FMCG | C101: MCDOWELL-N | D101: 659.75 | E101: 671.00 | F101: 639.20 | G101: 618.65 | H101: 586.85 | I101: 691.55 | J101: 723.35 | K101: 743.90 | L101: 702.8 | M101: 650.45 | N101: 14827500 | O101: -1.76%
A102: 92 | B102: Finance | C102: MFSL | D102: 575.15 | E102: 579.27 | F102: 563.03 | G102: 550.92 | H102: 534.68 | I102: 591.38 | J102: 607.62 | K102: 619.73 | L102: 595.5 | M102: 567.15 | N102: 2555800 | O102: 0.25%
A103: 93 | B103: Oil_Gas | C103: MGL | D103: 992.70 | E103: 1001.03 | F103: 978.72 | G103: 964.73 | H103: 942.42 | I103: 1015.02 | J103: 1037.33 | K103: 1051.32 | L103: 1023.35 | M103: 987.05 | N103: 2554200 | O103: -1.91%
A104: 94 | B104: Technology | C104: MINDTREE | D104: 929.50 | E104: 931.65 | F104: 902.85 | G104: 876.20 | H104: 847.40 | I104: 958.30 | J104: 987.10 | K104: 1013.75 | L104: 960.45 | M104: 905 | N104: 1184800 | O104: 17.17%
A105: 95 | B105: Automobile | C105: MOTHERSUMI | D105: 100.05 | E105: 101.63 | F105: 95.77 | G105: 91.48 | H105: 85.62 | I105: 105.92 | J105: 111.78 | K105: 116.07 | L105: 107.5 | M105: 97.35 | N105: 24310000 | O105: 18.15%
A106: 96 | B106: Automobile | C106: MRF | D106: 66171.90 | E106: 66515.33 | F106: 65374.12 | G106: 64576.33 | H106: 63435.12 | I106: 67313.12 | J106: 68454.33 | K106: 69252.12 | L106: 67656.55 | M106: 65717.55 | N106: 21550 | O106: 7.00%
A107: 97 | B107: Finance | C107: MUTHOOTFIN | D107: 856.80 | E107: 869.92 | F107: 837.13 | G107: 817.47 | H107: 784.68 | I107: 889.58 | J107: 922.37 | K107: 942.03 | L107: 902.7 | M107: 850.25 | N107: 4512000 | O107: 6.29%
A108: 98 | B108: Metals | C108: NATIONALUM | D108: 32.20 | E108: 32.80 | F108: 31.20 | G108: 30.20 | H108: 28.60 | I108: 33.80 | J108: 35.40 | K108: 36.40 | L108: 34.4 | M108: 31.8 | N108: 36117900 | O108: 1.21%
A109: 99 | B109: Others | C109: NAUKRI | D109: 2688.00 | E109: 2683.57 | F109: 2624.43 | G109: 2560.87 | H109: 2501.73 | I109: 2747.13 | J109: 2806.27 | K109: 2869.83 | L109: 2742.7 | M109: 2620 | N109: 266200 | O109: 76.29%
A110: 100 | B110: Infrastructure | C110: NCC | D110: 35.60 | E110: 36.40 | F110: 34.05 | G110: 32.50 | H110: 30.15 | I110: 37.95 | J110: 40.30 | K110: 41.85 | L110: 38.75 | M110: 34.85 | N110: 40311000 | O110: -5.07%
A111: 101 | B111: FMCG | C111: NESTLEIND | D111: 16095.80 | E111: 16111.58 | F111: 15915.27 | G111: 15734.73 | H111: 15538.42 | I111: 16292.12 | J111: 16488.43 | K111: 16668.97 | L111: 16307.9 | M111: 15931.05 | N111: 481750 | O111: -1.95%
A112: 102 | B112: Technology | C112: NIITTECH | D112: 1767.10 | E112: 1757.65 | F112: 1689.55 | G112: 1612.00 | H112: 1543.90 | I112: 1835.20 | J112: 1903.30 | K112: 1980.85 | L112: 1825.75 | M112: 1680.1 | N112: 566625 | O112: -7.30%
A113: 103 | B113: Metals | C113: NMDC | D113: 88.60 | E113: 90.62 | F113: 85.78 | G113: 82.97 | H113: 78.13 | I113: 93.43 | J113: 98.27 | K113: 101.08 | L113: 95.45 | M113: 87.8 | N113: 32772000 | O113: 6.53%
A114: 104 | B114: Power | C114: NTPC | D114: 101.70 | E114: 103.27 | F114: 99.03 | G114: 96.37 | H114: 92.13 | I114: 105.93 | J114: 110.17 | K114: 112.83 | L114: 107.5 | M114: 100.6 | N114: 75806400 | O114: -8.88%
A115: 105 | B115: Oil_Gas | C115: OIL | D115: 97.95 | E115: 101.13 | F115: 94.07 | G115: 90.18 | H115: 83.12 | I115: 105.02 | J115: 112.08 | K115: 115.97 | L115: 108.2 | M115: 97.25 | N115: 9714342 | O115: 7.00%
A116: 106 | B116: Oil_Gas | C116: ONGC | D116: 86.00 | E116: 87.82 | F116: 83.38 | G116: 80.77 | H116: 76.33 | I116: 90.43 | J116: 94.87 | K116: 97.48 | L116: 92.25 | M116: 85.2 | N116: 75362100 | O116: 3.92%
A117: 107 | B117: Textile | C117: PAGEIND | D117: 21446.05 | E117: 21710.58 | F117: 21009.37 | G117: 20572.68 | H117: 19871.47 | I117: 22147.27 | J117: 22848.48 | K117: 23285.17 | L117: 22411.8 | M117: 21273.9 | N117: 189000 | O117: -0.57%
A118: 108 | B118: Pharma | C118: PEL | D118: 1351.85 | E118: 1375.50 | F118: 1308.20 | G118: 1264.55 | H118: 1197.25 | I118: 1419.15 | J118: 1486.45 | K118: 1530.10 | L118: 1442.8 | M118: 1331.85 | N118: 3421557 | O118: -3.04%
A119: 109 | B119: Oil_Gas | C119: PETRONET | D119: 244.45 | E119: 246.20 | F119: 239.65 | G119: 234.85 | H119: 228.30 | I119: 251.00 | J119: 257.55 | K119: 262.35 | L119: 252.75 | M119: 241.4 | N119: 7692000 | O119: -3.32%
A120: 110 | B120: Finance | C120: PFC | D120: 111.60 | E120: 112.20 | F120: 109.55 | G120: 107.50 | H120: 104.85 | I120: 114.25 | J120: 116.90 | K120: 118.95 | L120: 114.85 | M120: 110.15 | N120: 45756000 | O120: -0.67%
A121: 111 | B121: FMCG | C121: PIDILITIND | D121: 1528.55 | E121: 1534.77 | F121: 1506.83 | G121: 1485.12 | H121: 1457.18 | I121: 1556.48 | J121: 1584.42 | K121: 1606.13 | L121: 1562.7 | M121: 1513.05 | N121: 1789500 | O121: -0.97%
A122: 112 | B122: Banking | C122: PNB | D122: 42.85 | E122: 43.80 | F122: 41.20 | G122: 39.55 | H122: 36.95 | I122: 45.45 | J122: 48.05 | K122: 49.70 | L122: 46.4 | M122: 42.15 | N122: 117187700 | O122: 0.30%
A123: 113 | B123: Power | C123: POWERGRID | D123: 172.60 | E123: 173.83 | F123: 170.02 | G123: 167.43 | H123: 163.62 | I123: 176.42 | J123: 180.23 | K123: 182.82 | L123: 177.65 | M123: 171.25 | N123: 44756000 | O123: 7.96%
A124: 114 | B124: Media | C124: PVR | D124: 1665.20 | E124: 1732.25 | F124: 1549.35 | G124: 1433.50 | H124: 1250.60 | I124: 1848.10 | J124: 2031.00 | K124: 2146.85 | L124: 1915.15 | M124: 1616.4 | N124: 1114800 | O124: 38.24%
A125: 115 | B125: Cement | C125: RAMCOCEM | D125: 750.70 | E125: 759.68 | F125: 737.87 | G125: 725.03 | H125: 703.22 | I125: 772.52 | J125: 794.33 | K125: 807.17 | L125: 781.5 | M125: 746.85 | N125: 1000000 | O125: 0.16%
A126: 116 | B126: Banking | C126: RBLBANK | D126: 283.10 | E126: 288.20 | F126: 272.40 | G126: 261.70 | H126: 245.90 | I126: 298.90 | J126: 314.70 | K126: 325.40 | L126: 304 | M126: 277.5 | N126: 15798000 | O126: -6.05%
A127: 117 | B127: Power | C127: RECLTD | D127: 117.65 | E127: 119.37 | F127: 114.43 | G127: 111.22 | H127: 106.28 | I127: 122.58 | J127: 127.52 | K127: 130.73 | L127: 124.3 | M127: 116.15 | N127: 18852000 | O127: -4.73%
A128: 118 | B128: Oil_Gas | C128: RELIANCE | D128: 1317.35 | E128: 1329.13 | F128: 1291.72 | G128: 1266.08 | H128: 1228.67 | I128: 1354.77 | J128: 1392.18 | K128: 1417.82 | L128: 1366.55 | M128: 1303.5 | N128: 35091500 | O128: -3.01%
A129: 119 | B129: Metals | C129: SAIL | D129: 35.00 | E129: 35.47 | F129: 33.78 | G129: 32.57 | H129: 30.88 | I129: 36.68 | J129: 38.37 | K129: 39.58 | L129: 37.15 | M129: 34.25 | N129: 71136700 | O129: -4.43%
A130: 120 | B130: Banking | C130: SBIN | D130: 287.90 | E130: 295.15 | F130: 277.00 | G130: 266.10 | H130: 247.95 | I130: 306.05 | J130: 324.20 | K130: 335.10 | L130: 313.3 | M130: 284.25 | N130: 140466000 | O130: -2.18%
A131: 121 | B131: Cement | C131: SHREECEM | D131: 22968.80 | E131: 23073.73 | F131: 22652.22 | G131: 22335.63 | H131: 21914.12 | I131: 23390.32 | J131: 23811.83 | K131: 24128.42 | L131: 23495.25 | M131: 22757.15 | N131: 162750 | O131: 2.78%
A132: 122 | B132: Capital_Goods | C132: SIEMENS | D132: 1310.25 | E132: 1323.08 | F132: 1287.17 | G132: 1264.08 | H132: 1228.17 | I132: 1346.17 | J132: 1382.08 | K132: 1405.17 | L132: 1359 | M132: 1300 | N132: 2055900 | O132: -3.29%
A133: 123 | B133: Textile | C133: SRF | D133: 3910.60 | E133: 3939.88 | F133: 3855.67 | G133: 3800.73 | H133: 3716.52 | I133: 3994.82 | J133: 4079.03 | K133: 4133.97 | L133: 4024.1 | M133: 3884.95 | N133: 788500 | O133: -2.17%
A134: 124 | B134: Finance | C134: SRTRANSFIN | D134: 1236.00 | E134: 1247.17 | F134: 1210.33 | G134: 1184.67 | H134: 1147.83 | I134: 1272.83 | J134: 1309.67 | K134: 1335.33 | L134: 1284 | M134: 1221.5 | N134: 4513800 | O134: -3.39%
A135: 125 | B135: Pharma | C135: SUNPHARMA | D135: 369.80 | E135: 372.20 | F135: 361.40 | G135: 353.00 | H135: 342.20 | I135: 380.60 | J135: 391.40 | K135: 399.80 | L135: 383 | M135: 363.8 | N135: 72613750 | O135: -1.58%
A136: 126 | B136: Media | C136: SUNTV | D136: 411.55 | E136: 416.95 | F136: 401.05 | G136: 390.55 | H136: 374.65 | I136: 427.45 | J136: 443.35 | K136: 453.85 | L136: 432.85 | M136: 406.45 | N136: 6282000 | O136: -2.26%
A137: 127 | B137: Fertilisers | C137: TATACHEM | D137: 700.85 | E137: 707.85 | F137: 685.95 | G137: 671.05 | H137: 649.15 | I137: 722.75 | J137: 744.65 | K137: 759.55 | L137: 729.75 | M137: 692.95 | N137: 1101600 | O137: -44.69%
A138: 128 | B138: Others | C138: TATACONSUM | D138: 339.45 | E138: 343.30 | F138: 331.15 | G138: 322.85 | H138: 310.70 | I138: 351.60 | J138: 363.75 | K138: 372.05 | L138: 355.45 | M138: 335 | N138: 17385300 | O138: 5.57%
A139: 129 | B139: Automobile | C139: TATAMOTORS | D139: 125.90 | E139: 128.00 | F139: 122.10 | G139: 118.30 | H139: 112.40 | I139: 131.80 | J139: 137.70 | K139: 141.50 | L139: 133.9 | M139: 124.2 | N139: 85785000 | O139: 3.58%
A140: 130 | B140: Power | C140: TATAPOWER | D140: 43.90 | E140: 44.97 | F140: 42.33 | G140: 40.77 | H140: 38.13 | I140: 46.53 | J140: 49.17 | K140: 50.73 | L140: 47.6 | M140: 43.4 | N140: 65943000 | O140: 0.76%
A141: 131 | B141: Metals | C141: TATASTEEL | D141: 365.75 | E141: 372.70 | F141: 352.75 | G141: 339.75 | H141: 319.80 | I141: 385.70 | J141: 405.65 | K141: 418.65 | L141: 392.65 | M141: 359.7 | N141: 22017000 | O141: 2.63%
A142: 132 | B142: Technology | C142: TCS | D142: 1994.50 | E142: 2006.78 | F142: 1968.82 | G142: 1943.13 | H142: 1905.17 | I142: 2032.47 | J142: 2070.43 | K142: 2096.12 | L142: 2044.75 | M142: 1981.1 | N142: 6297500 | O142: -1.90%
A143: 133 | B143: Technology | C143: TECHM | D143: 744.00 | E143: 745.53 | F143: 733.97 | G143: 723.93 | H143: 712.37 | I143: 755.57 | J143: 767.13 | K143: 777.17 | L143: 757.1 | M143: 735.5 | N143: 14498400 | O143: 0.17%
A144: 134 | B144: FMCG | C144: TITAN | D144: 1239.95 | E144: 1252.80 | F144: 1213.05 | G144: 1186.15 | H144: 1146.40 | I144: 1279.70 | J144: 1319.45 | K144: 1346.35 | L144: 1292.55 | M144: 1225.9 | N144: 5385750 | O144: 4.15%
A145: 135 | B145: Pharma | C145: TORNTPHARM | D145: 2123.25 | E145: 2137.47 | F145: 2094.98 | G145: 2066.72 | H145: 2024.23 | I145: 2165.73 | J145: 2208.22 | K145: 2236.48 | L145: 2179.95 | M145: 2109.2 | N145: 326500 | O145: -1.80%
A146: 136 | B146: Power | C146: TORNTPOWER | D146: 308.30 | E146: 307.88 | F146: 304.42 | G146: 300.53 | H146: 297.07 | I146: 311.77 | J146: 315.23 | K146: 319.12 | L146: 311.35 | M146: 304 | N146: 3711000 | O146: -14.51%
A147: 137 | B147: Automobile | C147: TVSMOTOR | D147: 407.65 | E147: 414.73 | F147: 395.97 | G147: 384.28 | H147: 365.52 | I147: 426.42 | J147: 445.18 | K147: 456.87 | L147: 433.5 | M147: 403.05 | N147: 4646700 | O147: -0.41%
A148: 138 | B148: FMCG | C148: UBL | D148: 1212.45 | E148: 1225.90 | F148: 1181.90 | G148: 1151.35 | H148: 1107.35 | I148: 1256.45 | J148: 1300.45 | K148: 1331.00 | L148: 1269.9 | M148: 1195.35 | N148: 1626800 | O148: -2.76%
A149: 139 | B149: Finance | C149: UJJIVAN | D149: 328.10 | E149: 333.57 | F149: 316.28 | G149: 304.47 | H149: 287.18 | I149: 345.38 | J149: 362.67 | K149: 374.48 | L149: 350.85 | M149: 321.75 | N149: 5863300 | O149: -4.75%
A150: 140 | B150: Cement | C150: ULTRACEMCO | D150: 4147.45 | E150: 4188.17 | F150: 4057.18 | G150: 3966.92 | H150: 3835.93 | I150: 4278.43 | J150: 4409.42 | K150: 4499.68 | L150: 4319.15 | M150: 4097.9 | N150: 2267600 | O150: 0.24%
A151: 141 | B151: Fertilisers | C151: UPL | D151: 516.70 | E151: 523.22 | F151: 505.43 | G151: 494.17 | H151: 476.38 | I151: 534.48 | J151: 552.27 | K151: 563.53 | L151: 541 | M151: 511.95 | N151: 13567500 | O151: 0.09%
A152: 142 | B152: Metals | C152: VEDL | D152: 107.55 | E152: 109.45 | F152: 103.65 | G152: 99.75 | H152: 93.95 | I152: 113.35 | J152: 119.15 | K152: 123.05 | L152: 115.25 | M152: 105.55 | N152: 63399000 | O152: -2.51%
A153: 143 | B153: Capital_Goods | C153: VOLTAS | D153: 663.70 | E153: 671.42 | F153: 649.58 | G153: 635.47 | H153: 613.63 | I153: 685.53 | J153: 707.37 | K153: 721.48 | L153: 693.25 | M153: 657.3 | N153: 2995000 | O153: -1.80%
A154: 144 | B154: Technology | C154: WIPRO | D154: 221.25 | E154: 222.60 | F154: 217.85 | G154: 214.45 | H154: 209.70 | I154: 226.00 | J154: 230.75 | K154: 234.15 | L154: 227.35 | M154: 219.2 | N154: 17225600 | O154: -1.73%
A155: 145 | B155: Banking | C155: YESBANK | D155: 26.50 | E155: 27.37 | F155: 24.13 | G155: 21.77 | H155: 18.53 | I155: 29.73 | J155: 32.97 | K155: 35.33 | L155: 30.6 | M155: 25 | N155: 304612000 | O155: 2.43%
A156: 146 | B156: Media | C156: ZEEL | D156: 232.85 | E156: 236.85 | F156: 224.45 | G156: 216.05 | H156: 203.65 | I156: 245.25 | J156: 257.65 | K156: 266.05 | L156: 249.25 | M156: 228.45 | N156: 24536100 | O156: -2.36%
A157: 147
A175: Pivot Point: This is trigger point for intra day buy/sell based on the price range of the previous day
A176: As per the tool,the trader should take BUY position just above Pivot and keep the stop loss of pivot point and the first target would be Resistance 1(R1)
A177: If R1 is crossed then R2 becomes the next target with stop loss of at R1
A178: Similarly if price goes below pivot point then the trader should sell and keep a stop loss of pivot point and the first target would be S1
A179: If S1 is crossed then S2 becomes the next target with stop loss of at S1
A181: Disclaimer:
A182: This document has been prepared by the Retail Research Desk of Asit C Mehta
A183: Investment Intermediates Ltd. and is meant for use of the recipient only
A184: and is not for circulation. This document is not to be reported or
A185: copied or made available to others. It should not be considered to be
A186: taken as an offer to sell or a solicitation to buy any security. The
A187: information contained herein is from sources believed reliable. We do
A188: not represent that it is accurate or complete and it should not be
A189: relied upon as such. We may from time to time have positions in and buy
A190: and sell securities referred to herein

Sheet Cash Intra
M5: Back to Main Page
A6: FOR INTRA DAY TRADING | K6: =Main!B10 -> 2020-03-03
A8: Sr.no | B8: Scrip | C8: CLOSE RATE | D8: Pivot Point | E8: Supports | H8: Resistances
C9: Point | E9: S1 | F9: S2 | G9: S3 | H9: R1 | I9: R2 | J9: R3 | K9: HIGH | L9: LOW | M9: Total Trade Quanity in Lakhs
A10: 1 | B10: Nifty 50 | C10: 11132.75 | D10: 11200.67 | E10: 10968.33 | F10: 10803.92 | G10: 10571.58 | H10: 11365.08 | I10: 11597.42 | J10: 11761.83 | K10: 11433 | L10: 11036.25
A11: 2 | B11: Nifty Bank | C11: 28868.4 | D11: 29077.08 | E11: 28363.02 | F11: 27857.63 | G11: 27143.57 | H11: 29582.47 | I11: 30296.53 | J11: 30801.92 | K11: 29791.15 | L11: 28571.7
A12: 3 | B12: Nifty CPSE | C12: 1529.65 | D12: 1546.08 | E12: 1501.77 | F12: 1473.88 | G12: 1429.57 | H12: 1573.97 | I12: 1618.28 | J12: 1646.17 | K12: 1590.4 | L12: 1518.2
A13: 4 | B13: Nifty Infra | C13: 2972.35 | D13: 3001.57 | E13: 2918.68 | F13: 2865.02 | G13: 2782.13 | H13: 3055.23 | I13: 3138.12 | J13: 3191.78 | K13: 3084.45 | L13: 2947.9
A14: 5 | B14: Nifty IT | C14: 15427.65 | D14: 15482.55 | E14: 15243.10 | F14: 15058.55 | G14: 14819.10 | H14: 15667.10 | I14: 15906.55 | J14: 16091.10 | K14: 15722 | L14: 15298
A15: 6 | B15: Nifty PSE | C15: 2675.7 | D15: 2708.03 | E15: 2620.57 | F15: 2565.43 | G15: 2477.97 | H15: 2763.17 | I15: 2850.63 | J15: 2905.77 | K15: 2795.5 | L15: 2652.9
A16: 7 | B16: Nifty Midcap 50 | C16: 4469.25 | D16: 4514.47 | E16: 4392.13 | F16: 4315.02 | G16: 4192.68 | H16: 4591.58 | I16: 4713.92 | J16: 4791.03 | K16: 4636.8 | L16: 4437.35
A17: 8 | B17: ACC | C17: 1284.2 | D17: 1303.55 | E17: 1250.65 | F17: 1217.10 | G17: 1164.20 | H17: 1337.10 | I17: 1390.00 | J17: 1423.55 | K17: 1356.45 | L17: 1270 | M17: 5.14199
A18: 9 | B18: AUBANK | C18: 1155.75 | D18: 1171.27 | E18: 1124.53 | F18: 1093.32 | G18: 1046.58 | H18: 1202.48 | I18: 1249.22 | J18: 1280.43 | K18: 1218 | L18: 1140.05 | M18: 4.21839
A19: 10 | B19: ADANIPORTS | C19: 340.65 | D19: 343.33 | E19: 335.62 | F19: 330.58 | G19: 322.87 | H19: 348.37 | I19: 356.08 | J19: 361.12 | K19: 351.05 | L19: 338.3 | M19: 29.12256
A20: 11 | B20: ADANIPOWER | C20: 47.05 | D20: 47.85 | E20: 45.65 | F20: 44.25 | G20: 42.05 | H20: 49.25 | I20: 51.45 | J20: 52.85 | K20: 50.05 | L20: 46.45 | M20: 57.54033
A21: 12 | B21: ABCAPITAL | C21: 76.7 | D21: 77.43 | E21: 75.07 | F21: 73.43 | G21: 71.07 | H21: 79.07 | I21: 81.43 | J21: 83.07 | K21: 79.8 | L21: 75.8 | M21: 21.59998
A22: 13 | B22: ABFRL | C22: 238 | D22: 244.18 | E22: 228.37 | F22: 218.73 | G22: 202.92 | H22: 253.82 | I22: 269.63 | J22: 279.27 | K22: 260 | L22: 234.55 | M22: 2.71489
A23: 14 | B23: AJANTPHARM | C23: 1394.7 | D23: 1393.57 | E23: 1349.13 | F23: 1303.57 | G23: 1259.13 | H23: 1439.13 | I23: 1483.57 | J23: 1529.13 | K23: 1438 | L23: 1348 | M23: 0.73403
A24: 15 | B24: ALKEM | C24: 2600.2 | D24: 2609.13 | E24: 2553.82 | F24: 2507.43 | G24: 2452.12 | H24: 2655.52 | I24: 2710.83 | J24: 2757.22 | K24: 2664.45 | L24: 2562.75 | M24: 1.31984
A25: 16 | B25: AMARAJABAT | C25: 624.45 | D25: 636.73 | E25: 606.22 | F25: 587.98 | G25: 557.47 | H25: 654.97 | I25: 685.48 | J25: 703.72 | K25: 667.25 | L25: 618.5 | M25: 5.92956
A26: 17 | B26: AMBUJACEM | C26: 202.25 | D26: 206.20 | E26: 195.85 | F26: 189.45 | G26: 179.10 | H26: 212.60 | I26: 222.95 | J26: 229.35 | K26: 216.55 | L26: 199.8 | M26: 29.06515
A27: 18 | B27: APOLLOHOSP | C27: 1728.55 | D27: 1739.22 | E27: 1700.53 | F27: 1672.52 | G27: 1633.83 | H27: 1767.23 | I27: 1805.92 | J27: 1833.93 | K27: 1777.9 | L27: 1711.2 | M27: 3.77299
A28: 19 | B28: APOLLOTYRE | C28: 136.3 | D28: 138.88 | E28: 131.97 | F28: 127.63 | G28: 120.72 | H28: 143.22 | I28: 150.13 | J28: 154.47 | K28: 145.8 | L28: 134.55 | M28: 20.59074
A29: 20 | B29: ASHOKLEY | C29: 73.9 | D29: 73.30 | E29: 71.65 | F29: 69.40 | G29: 67.75 | H29: 75.55 | I29: 77.20 | J29: 79.45 | K29: 74.95 | L29: 71.05 | M29: 119.77376
A30: 21 | B30: ASIANPAINT | C30: 1786.8 | D30: 1797.83 | E30: 1758.22 | F30: 1729.63 | G30: 1690.02 | H30: 1826.42 | I30: 1866.03 | J30: 1894.62 | K30: 1837.45 | L30: 1769.25 | M30: 11.69614
A31: 22 | B31: AUROPHARMA | C31: 494.65 | D31: 501.37 | E31: 483.28 | F31: 471.92 | G31: 453.83 | H31: 512.73 | I31: 530.82 | J31: 542.18 | K31: 519.45 | L31: 490 | M31: 31.79653
A32: 23 | B32: DMART | C32: 2228.95 | D32: 2262.98 | E32: 2185.97 | F32: 2142.98 | G32: 2065.97 | H32: 2305.97 | I32: 2382.98 | J32: 2425.97 | K32: 2340 | L32: 2220 | M32: 15.72997
A33: 24 | B33: AXISBANK | C33: 684.2 | D33: 690.92 | E33: 668.58 | F33: 652.97 | G33: 630.63 | H33: 706.53 | I33: 728.87 | J33: 744.48 | K33: 713.25 | L33: 675.3 | M33: 83.45819
A34: 25 | B34: BAJAJ-AUTO | C34: 2792.2 | D34: 2836.23 | E34: 2727.97 | F34: 2663.73 | G34: 2555.47 | H34: 2900.47 | I34: 3008.73 | J34: 3072.97 | K34: 2944.5 | L34: 2772 | M34: 11.41144
A35: 26 | B35: BAJFINANCE | C35: 4360.75 | D35: 4428.12 | E35: 4238.28 | F35: 4115.82 | G35: 3925.98 | H35: 4550.58 | I35: 4740.42 | J35: 4862.88 | K35: 4617.95 | L35: 4305.65 | M35: 17.36927
A36: 27 | B36: BAJAJFINSV | C36: 8914.5 | D36: 9007.50 | E36: 8715.00 | F36: 8515.50 | G36: 8223.00 | H36: 9207.00 | I36: 9499.50 | J36: 9699.00 | K36: 9300 | L36: 8808 | M36: 3.29541
A37: 28 | B37: BAJAJHLDNG | C37: 3393.9 | D37: 3409.67 | E37: 3359.33 | F37: 3324.77 | G37: 3274.43 | H37: 3444.23 | I37: 3494.57 | J37: 3529.13 | K37: 3460 | L37: 3375.1 | M37: 0.80743
A38: 29 | B38: BALKRISIND | C38: 1069.6 | D38: 1092.20 | E38: 1028.75 | F38: 987.90 | G38: 924.45 | H38: 1133.05 | I38: 1196.50 | J38: 1237.35 | K38: 1155.65 | L38: 1051.35 | M38: 2.71802
A39: 30 | B39: BANDHANBNK | C39: 394.05 | D39: 395.30 | E39: 383.75 | F39: 373.45 | G39: 361.90 | H39: 405.60 | I39: 417.15 | J39: 427.45 | K39: 406.85 | L39: 385 | M39: 27.62309
A40: 31 | B40: BANKBARODA | C40: 71.15 | D40: 73.28 | E40: 68.22 | F40: 65.28 | G40: 60.22 | H40: 76.22 | I40: 81.28 | J40: 84.22 | K40: 78.35 | L40: 70.35 | M40: 224.98038
A41: 32 | B41: BANKINDIA | C41: 50.05 | D41: 51.18 | E41: 48.17 | F41: 46.28 | G41: 43.27 | H41: 53.07 | I41: 56.08 | J41: 57.97 | K41: 54.2 | L41: 49.3 | M41: 67.267
A42: 33 | B42: BATAINDIA | C42: 1634.45 | D42: 1648.90 | E42: 1607.55 | F42: 1580.65 | G42: 1539.30 | H42: 1675.80 | I42: 1717.15 | J42: 1744.05 | K42: 1690.25 | L42: 1622 | M42: 2.78726
A43: 34 | B43: BERGEPAINT | C43: 556.95 | D43: 561.52 | E43: 546.03 | F43: 535.12 | G43: 519.63 | H43: 572.43 | I43: 587.92 | J43: 598.83 | K43: 577 | L43: 550.6 | M43: 12.10461
A44: 35 | B44: BEL | C44: 72.95 | D44: 73.95 | E44: 71.00 | F44: 69.05 | G44: 66.10 | H44: 75.90 | I44: 78.85 | J44: 80.80 | K44: 76.9 | L44: 72 | M44: 565.82665
A45: 36 | B45: BHARATFORG | C45: 450.95 | D45: 452.45 | E45: 438.50 | F45: 426.05 | G45: 412.10 | H45: 464.90 | I45: 478.85 | J45: 491.30 | K45: 466.4 | L45: 440 | M45: 7.00915
A46: 37 | B46: BHEL | C46: 29.55 | D46: 30.10 | E46: 28.50 | F46: 27.45 | G46: 25.85 | H46: 31.15 | I46: 32.75 | J46: 33.80 | K46: 31.7 | L46: 29.05 | M46: 140.87306
A47: 38 | B47: BPCL | C47: 412.35 | D47: 420.23 | E47: 398.62 | F47: 384.88 | G47: 363.27 | H47: 433.97 | I47: 455.58 | J47: 469.32 | K47: 441.85 | L47: 406.5 | M47: 69.46475
A48: 39 | B48: BHARTIARTL | C48: 518.35 | D48: 522.07 | E48: 508.13 | F48: 497.92 | G48: 483.98 | H48: 532.28 | I48: 546.22 | J48: 556.43 | K48: 536 | L48: 511.85 | M48: 180.17965
A49: 40 | B49: INFRATEL | C49: 216.85 | D49: 217.77 | E49: 209.28 | F49: 201.72 | G49: 193.23 | H49: 225.33 | I49: 233.82 | J49: 241.38 | K49: 226.25 | L49: 210.2 | M49: 58.11965
A50: 41 | B50: BIOCON | C50: 282.65 | D50: 285.60 | E50: 275.20 | F50: 267.75 | G50: 257.35 | H50: 293.05 | I50: 303.45 | J50: 310.90 | K50: 296 | L50: 278.15 | M50: 19.49668
A51: 42 | B51: BBTC | C51: 1092.25 | D51: 1084.42 | E51: 1060.83 | F51: 1029.42 | G51: 1005.83 | H51: 1115.83 | I51: 1139.42 | J51: 1170.83 | K51: 1108 | L51: 1053 | M51: 0.58867
A52: 43 | B52: BOSCHLTD | C52: 12448.9 | D52: 12518.85 | E52: 12239.75 | F52: 12030.60 | G52: 11751.50 | H52: 12728.00 | I52: 13007.10 | J52: 13216.25 | K52: 12797.95 | L52: 12309.7 | M52: 0.24677
A53: 44 | B53: BRITANNIA | C53: 2949.1 | D53: 2976.02 | E53: 2898.08 | F53: 2847.07 | G53: 2769.13 | H53: 3027.03 | I53: 3104.97 | J53: 3155.98 | K53: 3053.95 | L53: 2925 | M53: 4.6885
A54: 45 | B54: CESC | C54: 641.55 | D54: 644.25 | E54: 630.15 | F54: 618.75 | G54: 604.65 | H54: 655.65 | I54: 669.75 | J54: 681.15 | K54: 658.35 | L54: 632.85 | M54: 3.39974
A55: 46 | B55: CADILAHC | C55: 250.15 | D55: 253.67 | E55: 243.78 | F55: 237.42 | G55: 227.53 | H55: 260.03 | I55: 269.92 | J55: 276.28 | K55: 263.55 | L55: 247.3 | M55: 11.03855
A56: 47 | B56: CANBK | C56: 138.15 | D56: 140.75 | E56: 133.60 | F56: 129.05 | G56: 121.90 | H56: 145.30 | I56: 152.45 | J56: 157.00 | K56: 147.9 | L56: 136.2 | M56: 70.14346
A57: 48 | B57: CASTROLIND | C57: 149.65 | D57: 149.10 | E57: 147.50 | F57: 145.35 | G57: 143.75 | H57: 151.25 | I57: 152.85 | J57: 155.00 | K57: 150.7 | L57: 146.95 | M57: 34.61075
A58: 49 | B58: CHOLAFIN | C58: 302 | D58: 306.18 | E58: 295.37 | F58: 288.73 | G58: 277.92 | H58: 312.82 | I58: 323.63 | J58: 330.27 | K58: 317 | L58: 299.55 | M58: 16.87153
A59: 50 | B59: CIPLA | C59: 401.95 | D59: 402.62 | E59: 393.98 | F59: 386.02 | G59: 377.38 | H59: 410.58 | I59: 419.22 | J59: 427.18 | K59: 411.25 | L59: 394.65 | M59: 21.84609
A60: 51 | B60: CUB | C60: 212.45 | D60: 213.35 | E60: 209.70 | F60: 206.95 | G60: 203.30 | H60: 216.10 | I60: 219.75 | J60: 222.50 | K60: 217 | L60: 210.6 | M60: 10.62871
A61: 52 | B61: COALINDIA | C61: 169.35 | D61: 170.88 | E61: 166.77 | F61: 164.18 | G61: 160.07 | H61: 173.47 | I61: 177.58 | J61: 180.17 | K61: 175 | L61: 168.3 | M61: 352.81395
A62: 53 | B62: COLPAL | C62: 1295.35 | D62: 1303.03 | E62: 1281.07 | F62: 1266.78 | G62: 1244.82 | H62: 1317.32 | I62: 1339.28 | J62: 1353.57 | K62: 1325 | L62: 1288.75 | M62: 24.53672
A63: 54 | B63: CONCOR | C63: 496.15 | D63: 503.57 | E63: 483.58 | F63: 471.02 | G63: 451.03 | H63: 516.13 | I63: 536.12 | J63: 548.68 | K63: 523.55 | L63: 491 | M63: 6.92547
A64: 55 | B64: COROMANDEL | C64: 615.35 | D64: 613.78 | E64: 605.57 | F64: 595.78 | G64: 587.57 | H64: 623.57 | I64: 631.78 | J64: 641.57 | K64: 622 | L64: 604 | M64: 7.17405
A65: 56 | B65: CROMPTON | C65: 276 | D65: 278.28 | E65: 270.72 | F65: 265.43 | G65: 257.87 | H65: 283.57 | I65: 291.13 | J65: 296.42 | K65: 285.85 | L65: 273 | M65: 30.8845
A66: 57 | B66: CUMMINSIND | C66: 500.4 | D66: 506.32 | E66: 491.08 | F66: 481.77 | G66: 466.53 | H66: 515.63 | I66: 530.87 | J66: 540.18 | K66: 521.55 | L66: 497 | M66: 9.9194
A67: 58 | B67: DLF | C67: 203.85 | D67: 205.68 | E67: 197.97 | F67: 192.08 | G67: 184.37 | H67: 211.57 | I67: 219.28 | J67: 225.17 | K67: 213.4 | L67: 199.8 | M67: 108.10838
A68: 59 | B68: DABUR | C68: 499.25 | D68: 502.22 | E68: 490.73 | F68: 482.22 | G68: 470.73 | H68: 510.73 | I68: 522.22 | J68: 530.73 | K68: 513.7 | L68: 493.7 | M68: 74.62427
A69: 60 | B69: DALBHARAT | C69: 763.35 | D69: 774.40 | E69: 739.95 | F69: 716.55 | G69: 682.10 | H69: 797.80 | I69: 832.25 | J69: 855.65 | K69: 808.85 | L69: 751 | M69: 1.62129
A70: 61 | B70: DIVISLAB | C70: 2109.25 | D70: 2120.05 | E70: 2075.20 | F70: 2041.15 | G70: 1996.30 | H70: 2154.10 | I70: 2198.95 | J70: 2233.00 | K70: 2164.9 | L70: 2086 | M70: 3.22232
A71: 62 | B71: DRREDDY | C71: 2905.55 | D71: 2926.27 | E71: 2855.28 | F71: 2805.02 | G71: 2734.03 | H71: 2976.53 | I71: 3047.52 | J71: 3097.78 | K71: 2997.25 | L71: 2876 | M71: 6.68235
A72: 63 | B72: EDELWEISS | C72: 86.95 | D72: 87.63 | E72: 83.32 | F72: 79.68 | G72: 75.37 | H72: 91.27 | I72: 95.58 | J72: 99.22 | K72: 91.95 | L72: 84 | M72: 7.90032
A73: 64 | B73: EICHERMOT | C73: 17013.4 | D73: 17146.43 | E73: 16509.97 | F73: 16006.53 | G73: 15370.07 | H73: 17649.87 | I73: 18286.33 | J73: 18789.77 | K73: 17782.9 | L73: 16643 | M73: 1.02123
A74: 65 | B74: EMAMILTD | C74: 258.45 | D74: 258.92 | E74: 254.58 | F74: 250.72 | G74: 246.38 | H74: 262.78 | I74: 267.12 | J74: 270.98 | K74: 263.25 | L74: 255.05 | M74: 25.57313
A75: 66 | B75: ENDURANCE | C75: 970 | D75: 976.67 | E75: 953.33 | F75: 936.67 | G75: 913.33 | H75: 993.33 | I75: 1016.67 | J75: 1033.33 | K75: 1000 | L75: 960 | M75: 0.47896
A76: 67 | B76: ENGINERSIN | C76: 72.1 | D76: 71.97 | E76: 70.98 | F76: 69.87 | G76: 68.88 | H76: 73.08 | I76: 74.07 | J76: 75.18 | K76: 72.95 | L76: 70.85 | M76: 17.04006
A77: 68 | B77: ESCORTS | C77: 844.3 | D77: 842.42 | E77: 812.88 | F77: 781.47 | G77: 751.93 | H77: 873.83 | I77: 903.37 | J77: 934.78 | K77: 871.95 | L77: 811 | M77: 70.11082
A78: 69 | B78: EXIDEIND | C78: 159.9 | D78: 162.27 | E78: 156.53 | F78: 153.17 | G78: 147.43 | H78: 165.63 | I78: 171.37 | J78: 174.73 | K78: 168 | L78: 158.9 | M78: 14.66191
A79: 70 | B79: FEDERALBNK | C79: 82.8 | D79: 84.22 | E79: 80.23 | F79: 77.67 | G79: 73.68 | H79: 86.78 | I79: 90.77 | J79: 93.33 | K79: 88.2 | L79: 81.65 | M79: 102.70614
A80: 71 | B80: FORTIS | C80: 152 | D80: 153.33 | E80: 149.67 | F80: 147.33 | G80: 143.67 | H80: 155.67 | I80: 159.33 | J80: 161.67 | K80: 157 | L80: 151 | M80: 19.33119
A81: 72 | B81: FCONSUMER | C81: 12.65 | D81: 12.72 | E81: 11.93 | F81: 11.22 | G81: 10.43 | H81: 13.43 | I81: 14.22 | J81: 14.93 | K81: 13.5 | L81: 12 | M81: 15.70645
A82: 73 | B82: FRETAIL | C82: 305.8 | D82: 305.63 | E82: 299.27 | F82: 292.73 | G82: 286.37 | H82: 312.17 | I82: 318.53 | J82: 325.07 | K82: 312 | L82: 299.1 | M82: 10.27307
A83: 74 | B83: GAIL | C83: 99.65 | D83: 101.90 | E83: 96.45 | F83: 93.25 | G83: 87.80 | H83: 105.10 | I83: 110.55 | J83: 113.75 | K83: 107.35 | L83: 98.7 | M83: 153.91445
A84: 75 | B84: GMRINFRA | C84: 20.05 | D84: 20.28 | E84: 19.37 | F84: 18.68 | G84: 17.77 | H84: 20.97 | I84: 21.88 | J84: 22.57 | K84: 21.2 | L84: 19.6 | M84: 105.71558
A85: 76 | B85: GICRE | C85: 164.6 | D85: 166.47 | E85: 160.63 | F85: 156.67 | G85: 150.83 | H85: 170.43 | I85: 176.27 | J85: 180.23 | K85: 172.3 | L85: 162.5 | M85: 2.09376
A86: 77 | B86: GLENMARK | C86: 273.8 | D86: 277.73 | E86: 267.97 | F86: 262.13 | G86: 252.37 | H86: 283.57 | I86: 293.33 | J86: 299.17 | K86: 287.5 | L86: 271.9 | M86: 26.37001
A87: 78 | B87: GODREJAGRO | C87: 459.3 | D87: 463.58 | E87: 450.97 | F87: 442.63 | G87: 430.02 | H87: 471.92 | I87: 484.53 | J87: 492.87 | K87: 476.2 | L87: 455.25 | M87: 0.4871
A88: 79 | B88: GODREJCP | C88: 587.15 | D88: 590.75 | E88: 570.20 | F88: 553.25 | G88: 532.70 | H88: 607.70 | I88: 628.25 | J88: 645.20 | K88: 611.3 | L88: 573.8 | M88: 18.59249
A89: 80 | B89: GODREJIND | C89: 397.8 | D89: 397.65 | E89: 390.50 | F89: 383.20 | G89: 376.05 | H89: 404.95 | I89: 412.10 | J89: 419.40 | K89: 404.8 | L89: 390.35 | M89: 0.88259
A90: 81 | B90: GODREJPROP | C90: 1013.95 | D90: 1020.97 | E90: 997.93 | F90: 981.92 | G90: 958.88 | H90: 1036.98 | I90: 1060.02 | J90: 1076.03 | K90: 1044 | L90: 1004.95 | M90: 1.78002
A91: 82 | B91: GRAPHITE | C91: 228.6 | D91: 234.32 | E91: 217.78 | F91: 206.97 | G91: 190.43 | H91: 245.13 | I91: 261.67 | J91: 272.48 | K91: 250.85 | L91: 223.5 | M91: 8.51755
A92: 83 | B92: GRASIM | C92: 668.45 | D92: 675.75 | E92: 650.00 | F92: 631.55 | G92: 605.80 | H92: 694.20 | I92: 719.95 | J92: 738.40 | K92: 701.5 | L92: 657.3 | M92: 12.99292
A93: 84 | B93: GSPL | C93: 226.65 | D93: 227.55 | E93: 223.70 | F93: 220.75 | G93: 216.90 | H93: 230.50 | I93: 234.35 | J93: 237.30 | K93: 231.4 | L93: 224.6 | M93: 4.26398
A94: 85 | B94: HEG | C94: 908.35 | D94: 917.78 | E94: 855.57 | F94: 802.78 | G94: 740.57 | H94: 970.57 | I94: 1032.78 | J94: 1085.57 | K94: 980 | L94: 865 | M94: 1.68582
A95: 86 | B95: HCLTECH | C95: 549.7 | D95: 551.13 | E95: 536.42 | F95: 523.13 | G95: 508.42 | H95: 564.42 | I95: 579.13 | J95: 592.42 | K95: 565.85 | L95: 537.85 | M95: 35.90768
A96: 87 | B96: HDFCAMC | C96: 3051.3 | D96: 3096.78 | E96: 2973.57 | F96: 2895.83 | G96: 2772.62 | H96: 3174.52 | I96: 3297.73 | J96: 3375.47 | K96: 3220 | L96: 3019.05 | M96: 1.96125
A97: 88 | B97: HDFCBANK | C97: 1179.6 | D97: 1182.30 | E97: 1163.45 | F97: 1147.30 | G97: 1128.45 | H97: 1198.45 | I97: 1217.30 | J97: 1233.45 | K97: 1201.15 | L97: 1166.15 | M97: 55.89134
A98: 89 | B98: HDFCLIFE | C98: 554.5 | D98: 556.57 | E98: 548.88 | F98: 543.27 | G98: 535.58 | H98: 562.18 | I98: 569.87 | J98: 575.48 | K98: 564.25 | L98: 550.95 | M98: 12.60667
A99: 90 | B99: HAVELLS | C99: 627.6 | D99: 631.82 | E99: 615.83 | F99: 604.07 | G99: 588.08 | H99: 643.58 | I99: 659.57 | J99: 671.33 | K99: 647.8 | L99: 620.05 | M99: 11.71667
A100: 91 | B100: HEROMOTOCO | C100: 1975.45 | D100: 2015.48 | E100: 1920.97 | F100: 1866.48 | G100: 1771.97 | H100: 2069.97 | I100: 2164.48 | J100: 2218.97 | K100: 2110 | L100: 1961 | M100: 5.74957
A101: 92 | B101: HEXAWARE | C101: 360 | D101: 360.35 | E101: 356.70 | F101: 353.40 | G101: 349.75 | H101: 363.65 | I101: 367.30 | J101: 370.60 | K101: 364 | L101: 357.05 | M101: 3.23817
A102: 93 | B102: HINDALCO | C102: 149.75 | D102: 152.68 | E102: 143.92 | F102: 138.08 | G102: 129.32 | H102: 158.52 | I102: 167.28 | J102: 173.12 | K102: 161.45 | L102: 146.85 | M102: 60.08376
A103: 94 | B103: HINDPETRO | C103: 194.95 | D103: 197.42 | E103: 190.58 | F103: 186.22 | G103: 179.38 | H103: 201.78 | I103: 208.62 | J103: 212.98 | K103: 204.25 | L103: 193.05 | M103: 45.95587
A104: 95 | B104: HINDUNILVR | C104: 2159.45 | D104: 2181.08 | E104: 2120.22 | F104: 2080.98 | G104: 2020.12 | H104: 2220.32 | I104: 2281.18 | J104: 2320.42 | K104: 2241.95 | L104: 2141.85 | M104: 19.30834
A105: 96 | B105: HINDZINC | C105: 167.7 | D105: 169.62 | E105: 162.08 | F105: 156.47 | G105: 148.93 | H105: 175.23 | I105: 182.77 | J105: 188.38 | K105: 177.15 | L105: 164 | M105: 7.24986
A106: 97 | B106: HUDCO | C106: 30 | D106: 30.55 | E106: 29.25 | F106: 28.50 | G106: 27.20 | H106: 31.30 | I106: 32.60 | J106: 33.35 | K106: 31.85 | L106: 29.8 | M106: 10.06963
A107: 98 | B107: HDFC | C107: 2179.65 | D107: 2193.93 | E107: 2139.52 | F107: 2099.38 | G107: 2044.97 | H107: 2234.07 | I107: 2288.48 | J107: 2328.62 | K107: 2248.35 | L107: 2153.8 | M107: 28.28509
A108: 99 | B108: ICICIBANK | C108: 506.1 | D108: 508.37 | E108: 496.18 | F108: 486.27 | G108: 474.08 | H108: 518.28 | I108: 530.47 | J108: 540.38 | K108: 520.55 | L108: 498.45 | M108: 162.92578
A109: 100 | B109: ICICIGI | C109: 1199.1 | D109: 1200.33 | E109: 1128.72 | F109: 1058.33 | G109: 986.72 | H109: 1270.72 | I109: 1342.33 | J109: 1412.72 | K109: 1271.95 | L109: 1129.95 | M109: 2.01621
A110: 101 | B110: ICICIPRULI | C110: 455.5 | D110: 462.75 | E110: 440.95 | F110: 426.40 | G110: 404.60 | H110: 477.30 | I110: 499.10 | J110: 513.65 | K110: 484.55 | L110: 448.2 | M110: 10.53162
A111: 102 | B111: IDBI | C111: 29.8 | D111: 29.63 | E111: 28.17 | F111: 26.53 | G111: 25.07 | H111: 31.27 | I111: 32.73 | J111: 34.37 | K111: 31.1 | L111: 28 | M111: 6.52812
A112: 103 | B112: IDFCFIRSTB | C112: 37.45 | D112: 37.87 | E112: 36.48 | F112: 35.52 | G112: 34.13 | H112: 38.83 | I112: 40.22 | J112: 41.18 | K112: 39.25 | L112: 36.9 | M112: 209.67183
A113: 104 | B113: ITC | C113: 195.3 | D113: 197.47 | E113: 191.48 | F113: 187.67 | G113: 181.68 | H113: 201.28 | I113: 207.27 | J113: 211.08 | K113: 203.45 | L113: 193.65 | M113: 184.5588
A114: 105 | B114: IBULHSGFIN | C114: 284.4 | D114: 304.38 | E114: 259.02 | F114: 233.63 | G114: 188.27 | H114: 329.77 | I114: 375.13 | J114: 400.52 | K114: 349.75 | L114: 279 | M114: 169.75776
A115: 106 | B115: IBVENTURES | C115: 180.5 | D115: 181.67 | E115: 176.43 | F115: 172.37 | G115: 167.13 | H115: 185.73 | I115: 190.97 | J115: 195.03 | K115: 186.9 | L115: 177.6 | M115: 38.76523
A116: 107 | B116: INDIANB | C116: 70.95 | D116: 71.92 | E116: 67.53 | F116: 64.12 | G116: 59.73 | H116: 75.33 | I116: 79.72 | J116: 83.13 | K116: 76.3 | L116: 68.5 | M116: 14.06266
A117: 108 | B117: INDHOTEL | C117: 133.85 | D117: 134.18 | E117: 129.72 | F117: 125.58 | G117: 121.12 | H117: 138.32 | I117: 142.78 | J117: 146.92 | K117: 138.65 | L117: 130.05 | M117: 7.1894
A118: 109 | B118: IOC | C118: 103.95 | D118: 106.65 | E118: 100.40 | F118: 96.85 | G118: 90.60 | H118: 110.20 | I118: 116.45 | J118: 120.00 | K118: 112.9 | L118: 103.1 | M118: 367.42641
A119: 110 | B119: IGL | C119: 432.3 | D119: 439.77 | E119: 421.73 | F119: 411.17 | G119: 393.13 | H119: 450.33 | I119: 468.37 | J119: 478.93 | K119: 457.8 | L119: 429.2 | M119: 21.83118
A120: 111 | B120: INDUSINDBK | C120: 1079.25 | D120: 1095.42 | E120: 1053.88 | F120: 1028.52 | G120: 986.98 | H120: 1120.78 | I120: 1162.32 | J120: 1187.68 | K120: 1136.95 | L120: 1070.05 | M120: 83.91172
A121: 112 | B121: NAUKRI | C121: 2685.25 | D121: 2687.75 | E121: 2625.50 | F121: 2565.75 | G121: 2503.50 | H121: 2747.50 | I121: 2809.75 | J121: 2869.50 | K121: 2750 | L121: 2628 | M121: 2.45742
A122: 113 | B122: INFY | C122: 741.05 | D122: 746.90 | E122: 727.90 | F122: 714.75 | G122: 695.75 | H122: 760.05 | I122: 779.05 | J122: 792.20 | K122: 765.9 | L122: 733.75 | M122: 60.92028
A123: 114 | B123: INDIGO | C123: 1239.05 | D123: 1266.83 | E123: 1185.72 | F123: 1132.38 | G123: 1051.27 | H123: 1320.17 | I123: 1401.28 | J123: 1454.62 | K123: 1347.95 | L123: 1213.5 | M123: 18.09304
A124: 115 | B124: IPCALAB | C124: 1434.15 | D124: 1423.75 | E124: 1376.40 | F124: 1318.65 | G124: 1271.30 | H124: 1481.50 | I124: 1528.85 | J124: 1586.60 | K124: 1471.1 | L124: 1366 | M124: 0.82039
A125: 116 | B125: JSWENERGY | C125: 54.95 | D125: 56.03 | E125: 52.57 | F125: 50.18 | G125: 46.72 | H125: 58.42 | I125: 61.88 | J125: 64.27 | K125: 59.5 | L125: 53.65 | M125: 3.42262
A126: 117 | B126: JSWSTEEL | C126: 235 | D126: 237.45 | E126: 228.40 | F126: 221.80 | G126: 212.75 | H126: 244.05 | I126: 253.10 | J126: 259.70 | K126: 246.5 | L126: 230.85 | M126: 63.29214
A127: 118 | B127: JINDALSTEL | C127: 153.35 | D127: 155.58 | E127: 147.22 | F127: 141.08 | G127: 132.72 | H127: 161.72 | I127: 170.08 | J127: 176.22 | K127: 163.95 | L127: 149.45 | M127: 152.07085
A128: 119 | B128: JUBLFOOD | C128: 1668 | D128: 1699.30 | E128: 1604.70 | F128: 1541.40 | G128: 1446.80 | H128: 1762.60 | I128: 1857.20 | J128: 1920.50 | K128: 1793.9 | L128: 1636 | M128: 22.23606
A129: 120 | B129: JUBILANT | C129: 489.1 | D129: 498.25 | E129: 472.70 | F129: 456.30 | G129: 430.75 | H129: 514.65 | I129: 540.20 | J129: 556.60 | K129: 523.8 | L129: 481.85 | M129: 4.33124
A130: 121 | B130: KOTAKBANK | C130: 1599 | D130: 1606.83 | E130: 1576.37 | F130: 1553.73 | G130: 1523.27 | H130: 1629.47 | I130: 1659.93 | J130: 1682.57 | K130: 1637.3 | L130: 1584.2 | M130: 94.95046
A131: 122 | B131: L&TFH | C131: 102.7 | D131: 103.73 | E131: 100.22 | F131: 97.73 | G131: 94.22 | H131: 106.22 | I131: 109.73 | J131: 112.22 | K131: 107.25 | L131: 101.25 | M131: 77.86477
A132: 123 | B132: LTTS | C132: 1657.7 | D132: 1656.38 | E132: 1621.07 | F132: 1584.43 | G132: 1549.12 | H132: 1693.02 | I132: 1728.33 | J132: 1764.97 | K132: 1691.7 | L132: 1619.75 | M132: 0.39962
A133: 124 | B133: LICHSGFIN | C133: 322.45 | D133: 325.32 | E133: 315.13 | F133: 307.82 | G133: 297.63 | H133: 332.63 | I133: 342.82 | J133: 350.13 | K133: 335.5 | L133: 318 | M133: 75.80796
A134: 125 | B134: LTI | C134: 1906.75 | D134: 1910.28 | E134: 1873.57 | F134: 1840.38 | G134: 1803.67 | H134: 1943.47 | I134: 1980.18 | J134: 2013.37 | K134: 1947 | L134: 1877.1 | M134: 0.36496
A135: 126 | B135: LT | C135: 1160.9 | D135: 1174.60 | E135: 1136.85 | F135: 1112.80 | G135: 1075.05 | H135: 1198.65 | I135: 1236.40 | J135: 1260.45 | K135: 1212.35 | L135: 1150.55 | M135: 39.39306
A136: 127 | B136: LUPIN | C136: 629.8 | D136: 634.20 | E136: 616.10 | F136: 602.40 | G136: 584.30 | H136: 647.90 | I136: 666.00 | J136: 679.70 | K136: 652.3 | L136: 620.5 | M136: 11.17946
A137: 128 | B137: MRF | C137: 65976.3 | D137: 66374.40 | E137: 65152.90 | F137: 64329.50 | G137: 63108.00 | H137: 67197.80 | I137: 68419.30 | J137: 69242.70 | K137: 67595.9 | L137: 65551 | M137: 0.04805
A138: 129 | B138: MGL | C138: 1000.45 | D138: 1008.68 | E138: 984.77 | F138: 969.08 | G138: 945.17 | H138: 1024.37 | I138: 1048.28 | J138: 1063.97 | K138: 1032.6 | L138: 993 | M138: 13.51299
A139: 130 | B139: M&MFIN | C139: 337.85 | D139: 342.70 | E139: 328.15 | F139: 318.45 | G139: 303.90 | H139: 352.40 | I139: 366.95 | J139: 376.65 | K139: 357.25 | L139: 333 | M139: 23.06322
A140: 131 | B140: M&M | C140: 458.3 | D140: 458.37 | E140: 444.28 | F140: 430.27 | G140: 416.18 | H140: 472.38 | I140: 486.47 | J140: 500.48 | K140: 472.45 | L140: 444.35 | M140: 23.52196
A141: 132 | B141: MANAPPURAM | C141: 160.5 | D141: 162.60 | E141: 156.90 | F141: 153.30 | G141: 147.60 | H141: 166.20 | I141: 171.90 | J141: 175.50 | K141: 168.3 | L141: 159 | M141: 28.02932
A142: 133 | B142: MRPL | C142: 38 | D142: 38.22 | E142: 37.48 | F142: 36.97 | G142: 36.23 | H142: 38.73 | I142: 39.47 | J142: 39.98 | K142: 38.95 | L142: 37.7 | M142: 8.09305
A143: 134 | B143: MARICO | C143: 291.25 | D143: 297.55 | E143: 283.70 | F143: 276.15 | G143: 262.30 | H143: 305.10 | I143: 318.95 | J143: 326.50 | K143: 311.4 | L143: 290 | M143: 69.41813
A144: 135 | B144: MARUTI | C144: 6285.15 | D144: 6324.90 | E144: 6210.25 | F144: 6135.35 | G144: 6020.70 | H144: 6399.80 | I144: 6514.45 | J144: 6589.35 | K144: 6439.55 | L144: 6250 | M144: 8.68935
A145: 136 | B145: MFSL | C145: 573.95 | D145: 580.33 | E145: 563.97 | F145: 553.98 | G145: 537.62 | H145: 590.32 | I145: 606.68 | J145: 616.67 | K145: 596.7 | L145: 570.35 | M145: 16.72907
A146: 137 | B146: MINDTREE | C146: 998.1 | D146: 989.27 | E146: 944.83 | F146: 891.57 | G146: 847.13 | H146: 1042.53 | I146: 1086.97 | J146: 1140.23 | K146: 1033.7 | L146: 936 | M146: 4.76824
A147: 138 | B147: MOTHERSUMI | C147: 101.15 | D147: 102.80 | E147: 96.95 | F147: 92.75 | G147: 86.90 | H147: 107.00 | I147: 112.85 | J147: 117.05 | K147: 108.65 | L147: 98.6 | M147: 275.35769
A148: 139 | B148: MPHASIS | C148: 876.55 | D148: 876.38 | E148: 864.62 | F148: 852.68 | G148: 840.92 | H148: 888.32 | I148: 900.08 | J148: 912.02 | K148: 888.15 | L148: 864.45 | M148: 0.51751
A149: 140 | B149: MUTHOOTFIN | C149: 860.1 | D149: 870.77 | E149: 839.73 | F149: 819.37 | G149: 788.33 | H149: 891.13 | I149: 922.17 | J149: 942.53 | K149: 901.8 | L149: 850.4 | M149: 5.3477
A150: 141 | B150: NATCOPHARM | C150: 602.85 | D150: 602.95 | E150: 595.15 | F150: 587.45 | G150: 579.65 | H150: 610.65 | I150: 618.45 | J150: 626.15 | K150: 610.75 | L150: 595.25 | M150: 0.70644
A151: 142 | B151: NBCC | C151: 26.3 | D151: 26.57 | E151: 25.23 | F151: 24.17 | G151: 22.83 | H151: 27.63 | I151: 28.97 | J151: 30.03 | K151: 27.9 | L151: 25.5 | M151: 131.59247
A152: 143 | B152: NHPC | C152: 21.1 | D152: 21.13 | E152: 20.77 | F152: 20.43 | G152: 20.07 | H152: 21.47 | I152: 21.83 | J152: 22.17 | K152: 21.5 | L152: 20.8 | M152: 169.98025
A153: 144 | B153: NMDC | C153: 89.5 | D153: 91.27 | E153: 86.78 | F153: 84.07 | G153: 79.58 | H153: 93.98 | I153: 98.47 | J153: 101.18 | K153: 95.75 | L153: 88.55 | M153: 115.54574
A154: 145 | B154: NTPC | C154: 103.9 | D154: 105.53 | E154: 101.07 | F154: 98.23 | G154: 93.77 | H154: 108.37 | I154: 112.83 | J154: 115.67 | K154: 110 | L154: 102.7 | M154: 645.18347
A155: 146 | B155: NATIONALUM | C155: 32.65 | D155: 33.18 | E155: 31.77 | F155: 30.88 | G155: 29.47 | H155: 34.07 | I155: 35.48 | J155: 36.37 | K155: 34.6 | L155: 32.3 | M155: 182.52296
A156: 147 | B156: NESTLEIND | C156: 16109.95 | D156: 16108.65 | E156: 15902.30 | F156: 15694.65 | G156: 15488.30 | H156: 16316.30 | I156: 16522.65 | J156: 16730.30 | K156: 16315 | L156: 15901 | M156: 0.59649
A157: 148 | B157: NAM-INDIA | C157: 393.6 | D157: 397.53 | E157: 383.07 | F157: 372.53 | G157: 358.07 | H157: 408.07 | I157: 422.53 | J157: 433.07 | K157: 412 | L157: 387 | M157: 1.68229
A158: 149 | B158: OBEROIRLTY | C158: 516 | D158: 516.68 | E158: 511.37 | F158: 506.73 | G158: 501.42 | H158: 521.32 | I158: 526.63 | J158: 531.27 | K158: 522 | L158: 512.05 | M158: 833.60147
A159: 150 | B159: ONGC | C159: 89.1 | D159: 90.78 | E159: 86.57 | F159: 84.03 | G159: 79.82 | H159: 93.32 | I159: 97.53 | J159: 100.07 | K159: 95 | L159: 88.25 | M159: 95.97439
A160: 151 | B160: OIL | C160: 101.7 | D160: 104.63 | E160: 98.07 | F160: 94.43 | G160: 87.87 | H160: 108.27 | I160: 114.83 | J160: 118.47 | K160: 111.2 | L160: 101 | M160: 0.2199
A161: 152 | B161: OFSS | C161: 2695.75 | D161: 2688.58 | E161: 2647.17 | F161: 2598.58 | G161: 2557.17 | H161: 2737.17 | I161: 2778.58 | J161: 2827.17 | K161: 2730 | L161: 2640 | M161: 3.09452
A162: 153 | B162: PIIND | C162: 1521.95 | D162: 1502.52 | E162: 1455.03 | F162: 1388.12 | G162: 1340.63 | H162: 1569.43 | I162: 1616.92 | J162: 1683.83 | K162: 1550 | L162: 1435.6 | M162: 7.15716
A163: 154 | B163: PNBHOUSING | C163: 338.15 | D163: 348.58 | E163: 322.57 | F163: 306.98 | G163: 280.97 | H163: 364.17 | I163: 390.18 | J163: 405.77 | K163: 374.6 | L163: 333 | M163: 0.22781
A164: 155 | B164: PAGEIND | C164: 21643.75 | D164: 21915.60 | E164: 21151.20 | F164: 20658.65 | G164: 19894.25 | H164: 22408.15 | I164: 23172.55 | J164: 23665.10 | K164: 22680 | L164: 21423.05 | M164: 23.08304
A165: 156 | B165: PETRONET | C165: 244.5 | D165: 246.23 | E165: 239.12 | F165: 233.73 | G165: 226.62 | H165: 251.62 | I165: 258.73 | J165: 264.12 | K165: 253.35 | L165: 240.85 | M165: 0.12497
A166: 157 | B166: PFIZER | C166: 4247.1 | D166: 4239.12 | E166: 4188.23 | F166: 4129.37 | G166: 4078.48 | H166: 4297.98 | I166: 4348.87 | J166: 4407.73 | K166: 4290 | L166: 4180.25 | M166: 7.69665
A167: 158 | B167: PIDILITIND | C167: 1532.75 | D167: 1534.62 | E167: 1509.23 | F167: 1485.72 | G167: 1460.33 | H167: 1558.13 | I167: 1583.52 | J167: 1607.03 | K167: 1560 | L167: 1511.1 | M167: 29.79765
A168: 159 | B168: PEL | C168: 1356.8 | D168: 1377.92 | E168: 1315.88 | F168: 1274.97 | G168: 1212.93 | H168: 1418.83 | I168: 1480.87 | J168: 1521.78 | K168: 1439.95 | L168: 1337 | M168: 94.55973
A169: 160 | B169: PFC | C169: 111.6 | D169: 112.00 | E169: 109.70 | F169: 107.80 | G169: 105.50 | H169: 113.90 | I169: 116.20 | J169: 118.10 | K169: 114.3 | L169: 110.1 | M169: 359.92338
A170: 161 | B170: POWERGRID | C170: 183.5 | D170: 184.15 | E170: 181.10 | F170: 178.70 | G170: 175.65 | H170: 186.55 | I170: 189.60 | J170: 192.00 | K170: 187.2 | L170: 181.75 | M170: 3.99518
A171: 162 | B171: PRESTIGE | C171: 302.65 | D171: 301.23 | E171: 293.47 | F171: 284.28 | G171: 276.52 | H171: 310.42 | I171: 318.18 | J171: 327.37 | K171: 309 | L171: 292.05 | M171: 0.02985
A172: 163 | B172: PGHH | C172: 10967.35 | D172: 11017.85 | E172: 10851.55 | F172: 10735.75 | G172: 10569.45 | H172: 11133.65 | I172: 11299.95 | J172: 11415.75 | K172: 11184.15 | L172: 10902.05 | M172: 154.49355
A173: 164 | B173: PNB | C173: 42.75 | D173: 43.82 | E173: 41.03 | F173: 39.32 | G173: 36.53 | H173: 45.53 | I173: 48.32 | J173: 50.03 | K173: 46.6 | L173: 42.1 | M173: 5.40845
A174: 165 | B174: QUESS | C174: 502.95 | D174: 506.88 | E174: 494.07 | F174: 485.18 | G174: 472.37 | H174: 515.77 | I174: 528.58 | J174: 537.47 | K174: 519.7 | L174: 498 | M174: 58.43485
A175: 166 | B175: RBLBANK | C175: 283.2 | D175: 288.90 | E175: 271.20 | F175: 259.20 | G175: 241.50 | H175: 300.90 | I175: 318.60 | J175: 330.60 | K175: 306.6 | L175: 276.9 | M175: 70.38131
A176: 167 | B176: RECLTD | C176: 117.75 | D176: 119.48 | E176: 114.37 | F176: 110.98 | G176: 105.87 | H176: 122.87 | I176: 127.98 | J176: 131.37 | K176: 124.6 | L176: 116.1 | M176: 1.23317
A177: 168 | B177: RAJESHEXPO | C177: 666.85 | D177: 666.87 | E177: 660.98 | F177: 655.12 | G177: 649.23 | H177: 672.73 | I177: 678.62 | J177: 684.48 | K177: 672.75 | L177: 661 | M177: 158.86673
A178: 169 | B178: RELIANCE | C178: 1316.15 | D178: 1328.75 | E178: 1288.50 | F178: 1260.85 | G178: 1220.60 | H178: 1356.40 | I178: 1396.65 | J178: 1424.30 | K178: 1369 | L178: 1301.1 | M178: 4.4517
A179: 170 | B179: SBILIFE | C179: 894.15 | D179: 893.72 | E179: 878.43 | F179: 862.72 | G179: 847.43 | H179: 909.43 | I179: 924.72 | J179: 940.43 | K179: 909 | L179: 878 | M179: 3.14532
A180: 171 | B180: SRF | C180: 3907.4 | D180: 3937.28 | E180: 3855.57 | F180: 3803.73 | G180: 3722.02 | H180: 3989.12 | I180: 4070.83 | J180: 4122.67 | K180: 4019 | L180: 3885.45 | M180: 0.26041
A181: 172 | B181: SHREECEM | C181: 23042 | D181: 23090.10 | E181: 22752.25 | F181: 22462.50 | G181: 22124.65 | H181: 23379.85 | I181: 23717.70 | J181: 24007.45 | K181: 23427.95 | L181: 22800.35 | M181: 19.83266
A182: 173 | B182: SRTRANSFIN | C182: 1283.6 | D182: 1288.92 | E182: 1219.68 | F182: 1155.77 | G182: 1086.53 | H182: 1352.83 | I182: 1422.07 | J182: 1485.98 | K182: 1358.15 | L182: 1225 | M182: 3.34263
A183: 174 | B183: SIEMENS | C183: 1310.65 | D183: 1321.12 | E183: 1286.53 | F183: 1262.42 | G183: 1227.83 | H183: 1345.23 | I183: 1379.82 | J183: 1403.93 | K183: 1355.7 | L183: 1297 | M183: 926.56638
A184: 175 | B184: SBIN | C184: 287.4 | D184: 294.48 | E184: 276.97 | F184: 266.53 | G184: 249.02 | H184: 304.92 | I184: 322.43 | J184: 332.87 | K184: 312 | L184: 284.05 | M184: 179.54383
A185: 176 | B185: SAIL | C185: 34.9 | D185: 35.42 | E185: 33.63 | F185: 32.37 | G185: 30.58 | H185: 36.68 | I185: 38.47 | J185: 39.73 | K185: 37.2 | L185: 34.15 | M185: 8.07575
A186: 177 | B186: STRTECH | C186: 87.85 | D186: 90.48 | E186: 84.17 | F186: 80.48 | G186: 74.17 | H186: 94.17 | I186: 100.48 | J186: 104.17 | K186: 96.8 | L186: 86.8 | M186: 37.57229
A187: 178 | B187: SUNPHARMA | C187: 369.5 | D187: 372.17 | E187: 360.68 | F187: 351.87 | G187: 340.38 | H187: 380.98 | I187: 392.47 | J187: 401.28 | K187: 383.65 | L187: 363.35 | M187: 15.5546
A188: 179 | B188: SUNTV | C188: 411.95 | D188: 416.82 | E188: 401.78 | F188: 391.62 | G188: 376.58 | H188: 426.98 | I188: 442.02 | J188: 452.18 | K188: 431.85 | L188: 406.65 | M188: 0.78761
A189: 180 | B189: SYNGENE | C189: 292.8 | D189: 293.47 | E189: 284.43 | F189: 276.07 | G189: 267.03 | H189: 301.83 | I189: 310.87 | J189: 319.23 | K189: 302.5 | L189: 285.1 | M189: 8.43524
A190: 181 | B190: TVSMOTOR | C190: 419.35 | D190: 426.20 | E190: 405.70 | F190: 392.05 | G190: 371.55 | H190: 439.85 | I190: 460.35 | J190: 474.00 | K190: 446.7 | L190: 412.55 | M190: 32.87223
A191: 182 | B191: TCS | C191: 2001.3 | D191: 2013.65 | E191: 1973.35 | F191: 1945.40 | G191: 1905.10 | H191: 2041.60 | I191: 2081.90 | J191: 2109.85 | K191: 2053.95 | L191: 1985.7 | M191: 26.8123
A192: 183 | B192: TATACONSUM | C192: 338.8 | D192: 342.55 | E192: 329.85 | F192: 320.90 | G192: 308.20 | H192: 351.50 | I192: 364.20 | J192: 373.15 | K192: 355.25 | L192: 333.6 | M192: 38.13549
A193: 184 | B193: TATAMTRDVR | C193: 54.55 | D193: 55.13 | E193: 53.27 | F193: 51.98 | G193: 50.12 | H193: 56.42 | I193: 58.28 | J193: 59.57 | K193: 57 | L193: 53.85 | M193: 756.21897
A194: 185 | B194: TATAMOTORS | C194: 125.4 | D194: 127.70 | E194: 121.50 | F194: 117.60 | G194: 111.40 | H194: 131.60 | I194: 137.80 | J194: 141.70 | K194: 133.9 | L194: 123.8 | M194: 79.77888
A195: 186 | B195: TATAPOWER | C195: 43.8 | D195: 44.95 | E195: 42.10 | F195: 40.40 | G195: 37.55 | H195: 46.65 | I195: 49.50 | J195: 51.20 | K195: 47.8 | L195: 43.25 | M195: 107.38727
A196: 187 | B196: TATASTEEL | C196: 364.05 | D196: 372.02 | E196: 350.03 | F196: 336.02 | G196: 314.03 | H196: 386.03 | I196: 408.02 | J196: 422.03 | K196: 394 | L196: 358 | M196: 30.81521
A197: 188 | B197: TECHM | C197: 744.55 | D197: 744.47 | E197: 734.48 | F197: 724.42 | G197: 714.43 | H197: 754.53 | I197: 764.52 | J197: 774.58 | K197: 754.45 | L197: 734.4 | M197: 1.68669
A198: 189 | B198: NIACL | C198: 108.7 | D198: 108.85 | E198: 103.00 | F198: 97.30 | G198: 91.45 | H198: 114.55 | I198: 120.40 | J198: 126.10 | K198: 114.7 | L198: 103.15 | M198: 5.867
A199: 190 | B199: RAMCOCEM | C199: 757.25 | D199: 764.08 | E199: 743.62 | F199: 729.98 | G199: 709.52 | H199: 777.72 | I199: 798.18 | J199: 811.82 | K199: 784.55 | L199: 750.45 | M199: 18.09101
A200: 191 | B200: TITAN | C200: 1244.15 | D200: 1255.38 | E200: 1216.77 | F200: 1189.38 | G200: 1150.77 | H200: 1282.77 | I200: 1321.38 | J200: 1348.77 | K200: 1294 | L200: 1228 | M200: 1.67763
A201: 192 | B201: TORNTPHARM | C201: 2127.25 | D201: 2140.23 | E201: 2097.27 | F201: 2067.28 | G201: 2024.32 | H201: 2170.22 | I201: 2213.18 | J201: 2243.17 | K201: 2183.2 | L201: 2110.25 | M201: 11.09871
A202: 193 | B202: TORNTPOWER | C202: 309.3 | D202: 308.90 | E202: 303.50 | F202: 297.70 | G202: 292.30 | H202: 314.70 | I202: 320.10 | J202: 325.90 | K202: 314.3 | L202: 303.1 | M202: 43.40034
A203: 194 | B203: UPL | C203: 514.35 | D203: 521.85 | E203: 502.10 | F203: 489.85 | G203: 470.10 | H203: 534.10 | I203: 553.85 | J203: 566.10 | K203: 541.6 | L203: 509.6 | M203: 4.5163
A204: 195 | B204: ULTRACEMCO | C204: 4141.7 | D204: 4178.85 | E204: 4041.40 | F204: 3941.10 | G204: 3803.65 | H204: 4279.15 | I204: 4416.60 | J204: 4516.90 | K204: 4316.3 | L204: 4078.55 | M204: 21.60583
A205: 196 | B205: UNIONBANK | C205: 36.35 | D205: 36.87 | E205: 35.58 | F205: 34.82 | G205: 33.53 | H205: 37.63 | I205: 38.92 | J205: 39.68 | K205: 38.15 | L205: 36.1 | M205: 3.17811
... 30 more rows

Sheet MidCap Intra
L5: Back To Main Page
A6: FOR INTRA DAY TRADING | K6: =Main!B10 -> 2020-03-03
A9: Sr.no | B9: Scrip | C9: CLOSE RATE | D9: Pivot Point | E9: Supports | H9: Resistances
C10: Point | E10: S1 | F10: S2 | G10: S3 | H10: R1 | I10: R2 | J10: R3 | K10: HIGH | L10: LOW | M10: Total Trade Quanity in Lakhs
A11: 1 | B11: 3MINDIA | C11: 20131.65 | D11: 20375.55 | E11: 19756.10 | F11: 19380.55 | G11: 18761.10 | H11: 20751.10 | I11: 21370.55 | J11: 21746.10 | K11: 20995 | L11: 20000 | M11: 0.03958
A12: 2 | B12: AARTIIND | C12: 971 | D12: 975.50 | E12: 951.50 | F12: 932.00 | G12: 908.00 | H12: 995.00 | I12: 1019.00 | J12: 1038.50 | K12: 999.5 | L12: 956 | M12: 3.0652
A13: 3 | B13: AAVAS | C13: 1858.4 | D13: 1873.58 | E13: 1831.17 | F13: 1803.93 | G13: 1761.52 | H13: 1900.82 | I13: 1943.23 | J13: 1970.47 | K13: 1916 | L13: 1846.35 | M13: 1.83494
A14: 4 | B14: ABBOTINDIA | C14: 15393.6 | D14: 15567.83 | E14: 15035.77 | F14: 14677.93 | G14: 14145.87 | H14: 15925.67 | I14: 16457.73 | J14: 16815.57 | K14: 16099.9 | L14: 15210 | M14: 0.15393
A15: 5 | B15: ABCAPITAL | C15: 76.7 | D15: 77.43 | E15: 75.07 | F15: 73.43 | G15: 71.07 | H15: 79.07 | I15: 81.43 | J15: 83.07 | K15: 79.8 | L15: 75.8 | M15: 12.38881
A16: 6 | B16: ABFRL | C16: 238 | D16: 244.18 | E16: 228.37 | F16: 218.73 | G16: 202.92 | H16: 253.82 | I16: 269.63 | J16: 279.27 | K16: 260 | L16: 234.55 | M16: 6.66569
A17: 7 | B17: ACC | C17: 1284.2 | D17: 1303.55 | E17: 1250.65 | F17: 1217.10 | G17: 1164.20 | H17: 1337.10 | I17: 1390.00 | J17: 1423.55 | K17: 1356.45 | L17: 1270 | M17: 6.12866
A18: 8 | B18: ADANIGAS | C18: 133.7 | D18: 136.88 | E18: 127.37 | F18: 121.03 | G18: 111.52 | H18: 143.22 | I18: 152.73 | J18: 159.07 | K18: 146.4 | L18: 130.55 | M18: 55.83534
A19: 9 | B19: ADANIGREEN | C19: 156.05 | D19: 156.23 | E19: 149.82 | F19: 143.58 | G19: 137.17 | H19: 162.47 | I19: 168.88 | J19: 175.12 | K19: 162.65 | L19: 150 | M19: 11.27956
A20: 10 | B20: ADANIPORTS | C20: 340.65 | D20: 343.33 | E20: 335.62 | F20: 330.58 | G20: 322.87 | H20: 348.37 | I20: 356.08 | J20: 361.12 | K20: 351.05 | L20: 338.3 | M20: 25.10491
A21: 11 | B21: ADANIPOWER | C21: 47.05 | D21: 47.85 | E21: 45.65 | F21: 44.25 | G21: 42.05 | H21: 49.25 | I21: 51.45 | J21: 52.85 | K21: 50.05 | L21: 46.45 | M21: 94.97793
A22: 12 | B22: ADANITRANS | C22: 254.4 | D22: 258.87 | E22: 243.68 | F22: 232.97 | G22: 217.78 | H22: 269.58 | I22: 284.77 | J22: 295.48 | K22: 274.05 | L22: 248.15 | M22: 2.95171
A23: 13 | B23: ADVENZYMES | C23: 147.05 | D23: 149.60 | E23: 142.50 | F23: 137.95 | G23: 130.85 | H23: 154.15 | I23: 161.25 | J23: 165.80 | K23: 156.7 | L23: 145.05 | M23: 0.8917
A24: 14 | B24: AEGISCHEM | C24: 214.55 | D24: 220.52 | E24: 205.03 | F24: 195.52 | G24: 180.03 | H24: 230.03 | I24: 245.52 | J24: 255.03 | K24: 236 | L24: 211 | M24: 1.65274
A25: 15 | B25: AFFLE | C25: 1802.25 | D25: 1835.08 | E25: 1723.17 | F25: 1644.08 | G25: 1532.17 | H25: 1914.17 | I25: 2026.08 | J25: 2105.17 | K25: 1947 | L25: 1756 | M25: 2.96739
A26: 16 | B26: AIAENG | C26: 1737.05 | D26: 1757.17 | E26: 1699.93 | F26: 1662.82 | G26: 1605.58 | H26: 1794.28 | I26: 1851.52 | J26: 1888.63 | K26: 1814.4 | L26: 1720.05 | M26: 2.61838
A27: 17 | B27: AJANTPHARM | C27: 1394.7 | D27: 1393.57 | E27: 1349.13 | F27: 1303.57 | G27: 1259.13 | H27: 1439.13 | I27: 1483.57 | J27: 1529.13 | K27: 1438 | L27: 1348 | M27: 1.35654
A28: 18 | B28: AKZOINDIA | C28: 2403.85 | D28: 2419.38 | E28: 2340.52 | F28: 2277.18 | G28: 2198.32 | H28: 2482.72 | I28: 2561.58 | J28: 2624.92 | K28: 2498.25 | L28: 2356.05 | M28: 0.44277
A29: 19 | B29: ALKEM | C29: 2600.2 | D29: 2609.13 | E29: 2553.82 | F29: 2507.43 | G29: 2452.12 | H29: 2655.52 | I29: 2710.83 | J29: 2757.22 | K29: 2664.45 | L29: 2562.75 | M29: 1.31561
A30: 20 | B30: ALLCARGO | C30: 109.05 | D30: 109.25 | E30: 106.90 | F30: 104.75 | G30: 102.40 | H30: 111.40 | I30: 113.75 | J30: 115.90 | K30: 111.6 | L30: 107.1 | M30: 3.35136
A31: 21 | B31: AMARAJABAT | C31: 624.45 | D31: 636.73 | E31: 606.22 | F31: 587.98 | G31: 557.47 | H31: 654.97 | I31: 685.48 | J31: 703.72 | K31: 667.25 | L31: 618.5 | M31: 17.02962
A32: 22 | B32: AMBER | C32: 1375.2 | D32: 1385.98 | E32: 1330.22 | F32: 1285.23 | G32: 1229.47 | H32: 1430.97 | I32: 1486.73 | J32: 1531.72 | K32: 1441.75 | L32: 1341 | M32: 1.3927
A33: 23 | B33: AMBUJACEM | C33: 202.25 | D33: 206.20 | E33: 195.85 | F33: 189.45 | G33: 179.10 | H33: 212.60 | I33: 222.95 | J33: 229.35 | K33: 216.55 | L33: 199.8 | M33: 51.87934
A34: 24 | B34: APLAPOLLO | C34: 1812.1 | D34: 1867.70 | E34: 1729.45 | F34: 1646.80 | G34: 1508.55 | H34: 1950.35 | I34: 2088.60 | J34: 2171.25 | K34: 2005.95 | L34: 1785.05 | M34: 0.43427
A35: 25 | B35: APLLTD | C35: 656.25 | D35: 651.95 | E35: 635.30 | F35: 614.35 | G35: 597.70 | H35: 672.90 | I35: 689.55 | J35: 710.50 | K35: 668.6 | L35: 631 | M35: 1.57216
A36: 26 | B36: APOLLOHOSP | C36: 1728.55 | D36: 1739.22 | E36: 1700.53 | F36: 1672.52 | G36: 1633.83 | H36: 1767.23 | I36: 1805.92 | J36: 1833.93 | K36: 1777.9 | L36: 1711.2 | M36: 9.8008
A37: 27 | B37: APOLLOTYRE | C37: 136.3 | D37: 138.88 | E37: 131.97 | F37: 127.63 | G37: 120.72 | H37: 143.22 | I37: 150.13 | J37: 154.47 | K37: 145.8 | L37: 134.55 | M37: 75.09876
A38: 28 | B38: ARVINDFASN | C38: 348.85 | D38: 349.45 | E38: 339.90 | F38: 330.95 | G38: 321.40 | H38: 358.40 | I38: 367.95 | J38: 376.90 | K38: 359 | L38: 340.5 | M38: 0.26074
A39: 29 | B39: ASAHIINDIA | C39: 235.95 | D39: 239.05 | E39: 227.45 | F39: 218.95 | G39: 207.35 | H39: 247.55 | I39: 259.15 | J39: 267.65 | K39: 250.65 | L39: 230.55 | M39: 0.86077
A40: 30 | B40: ASHOKA | C40: 87.1 | D40: 88.42 | E40: 82.53 | F40: 77.97 | G40: 72.08 | H40: 92.98 | I40: 98.87 | J40: 103.43 | K40: 94.3 | L40: 83.85 | M40: 4.30533
A41: 31 | B41: ASHOKLEY | C41: 73.9 | D41: 73.30 | E41: 71.65 | F41: 69.40 | G41: 67.75 | H41: 75.55 | I41: 77.20 | J41: 79.45 | K41: 74.95 | L41: 71.05 | M41: 392.73874
A42: 32 | B42: ASIANPAINT | C42: 1786.8 | D42: 1797.83 | E42: 1758.22 | F42: 1729.63 | G42: 1690.02 | H42: 1826.42 | I42: 1866.03 | J42: 1894.62 | K42: 1837.45 | L42: 1769.25 | M42: 12.19296
A43: 33 | B43: ASTERDM | C43: 161.05 | D43: 161.68 | E43: 154.37 | F43: 147.68 | G43: 140.37 | H43: 168.37 | I43: 175.68 | J43: 182.37 | K43: 169 | L43: 155 | M43: 1.01269
A44: 34 | B44: ASTRAL | C44: 1150.1 | D44: 1155.72 | E44: 1129.43 | F44: 1108.77 | G44: 1082.48 | H44: 1176.38 | I44: 1202.67 | J44: 1223.33 | K44: 1182 | L44: 1135.05 | M44: 0.73438
A45: 35 | B45: ASTRAZEN | C45: 2653.65 | D45: 2643.95 | E45: 2589.90 | F45: 2526.15 | G45: 2472.10 | H45: 2707.70 | I45: 2761.75 | J45: 2825.50 | K45: 2698 | L45: 2580.2 | M45: 0.24053
A46: 36 | B46: ATUL | C46: 5191.45 | D46: 5215.05 | E46: 5106.40 | F46: 5021.35 | G46: 4912.70 | H46: 5300.10 | I46: 5408.75 | J46: 5493.80 | K46: 5323.7 | L46: 5130 | M46: 0.38269
A47: 37 | B47: AUBANK | C47: 1155.75 | D47: 1171.27 | E47: 1124.53 | F47: 1093.32 | G47: 1046.58 | H47: 1202.48 | I47: 1249.22 | J47: 1280.43 | K47: 1218 | L47: 1140.05 | M47: 10.33147
A48: 38 | B48: AUROPHARMA | C48: 494.65 | D48: 501.37 | E48: 483.28 | F48: 471.92 | G48: 453.83 | H48: 512.73 | I48: 530.82 | J48: 542.18 | K48: 519.45 | L48: 490 | M48: 25.94821
A49: 39 | B49: AVANTIFEED | C49: 430.85 | D49: 451.97 | E49: 398.98 | F49: 367.12 | G49: 314.13 | H49: 483.83 | I49: 536.82 | J49: 568.68 | K49: 504.95 | L49: 420.1 | M49: 8.00657
A50: 40 | B50: AXISBANK | C50: 684.2 | D50: 690.92 | E50: 668.58 | F50: 652.97 | G50: 630.63 | H50: 706.53 | I50: 728.87 | J50: 744.48 | K50: 713.25 | L50: 675.3 | M50: 138.54352
A51: 41 | B51: BAJAJ-AUTO | C51: 2792.2 | D51: 2836.23 | E51: 2727.97 | F51: 2663.73 | G51: 2555.47 | H51: 2900.47 | I51: 3008.73 | J51: 3072.97 | K51: 2944.5 | L51: 2772 | M51: 12.81846
A52: 42 | B52: BAJAJCON | C52: 183.05 | D52: 185.95 | E52: 172.10 | F52: 161.15 | G52: 147.30 | H52: 196.90 | I52: 210.75 | J52: 221.70 | K52: 199.8 | L52: 175 | M52: 1.75529
A53: 43 | B53: BAJAJELEC | C53: 410.55 | D53: 415.70 | E53: 396.40 | F53: 382.25 | G53: 362.95 | H53: 429.85 | I53: 449.15 | J53: 463.30 | K53: 435 | L53: 401.55 | M53: 1.47033
A54: 44 | B54: BAJAJFINSV | C54: 8914.5 | D54: 9007.50 | E54: 8715.00 | F54: 8515.50 | G54: 8223.00 | H54: 9207.00 | I54: 9499.50 | J54: 9699.00 | K54: 9300 | L54: 8808 | M54: 3.09031
A55: 45 | B55: BAJAJHLDNG | C55: 3393.9 | D55: 3409.67 | E55: 3359.33 | F55: 3324.77 | G55: 3274.43 | H55: 3444.23 | I55: 3494.57 | J55: 3529.13 | K55: 3460 | L55: 3375.1 | M55: 0.14706
A56: 46 | B56: BAJFINANCE | C56: 4360.75 | D56: 4428.12 | E56: 4238.28 | F56: 4115.82 | G56: 3925.98 | H56: 4550.58 | I56: 4740.42 | J56: 4862.88 | K56: 4617.95 | L56: 4305.65 | M56: 22.38216
A57: 47 | B57: BALKRISIND | C57: 1069.6 | D57: 1092.20 | E57: 1028.75 | F57: 987.90 | G57: 924.45 | H57: 1133.05 | I57: 1196.50 | J57: 1237.35 | K57: 1155.65 | L57: 1051.35 | M57: 18.2148
A58: 48 | B58: BALMLAWRIE | C58: 101.85 | D58: 102.95 | E58: 99.90 | F58: 97.95 | G58: 94.90 | H58: 104.90 | I58: 107.95 | J58: 109.90 | K58: 106 | L58: 101 | M58: 0.7146
A59: 49 | B59: BALRAMCHIN | C59: 142.45 | D59: 143.47 | E59: 138.98 | F59: 135.52 | G59: 131.03 | H59: 146.93 | I59: 151.42 | J59: 154.88 | K59: 147.95 | L59: 140 | M59: 5.894
A60: 50 | B60: BANDHANBNK | C60: 394.05 | D60: 395.30 | E60: 383.75 | F60: 373.45 | G60: 361.90 | H60: 405.60 | I60: 417.15 | J60: 427.45 | K60: 406.85 | L60: 385 | M60: 65.30741
A61: 51 | B61: BANKBARODA | C61: 71.15 | D61: 73.28 | E61: 68.22 | F61: 65.28 | G61: 60.22 | H61: 76.22 | I61: 81.28 | J61: 84.22 | K61: 78.35 | L61: 70.35 | M61: 409.61015
A62: 52 | B62: BANKINDIA | C62: 50.05 | D62: 51.18 | E62: 48.17 | F62: 46.28 | G62: 43.27 | H62: 53.07 | I62: 56.08 | J62: 57.97 | K62: 54.2 | L62: 49.3 | M62: 18.61547
A63: 53 | B63: BASF | C63: 1010.6 | D63: 1040.87 | E63: 971.73 | F63: 932.87 | G63: 863.73 | H63: 1079.73 | I63: 1148.87 | J63: 1187.73 | K63: 1110 | L63: 1002 | M63: 2.34996
A64: 54 | B64: BATAINDIA | C64: 1634.45 | D64: 1648.90 | E64: 1607.55 | F64: 1580.65 | G64: 1539.30 | H64: 1675.80 | I64: 1717.15 | J64: 1744.05 | K64: 1690.25 | L64: 1622 | M64: 7.50864
A65: 55 | B65: BAYERCROP | C65: 4338.15 | D65: 4354.33 | E65: 4163.77 | F65: 3989.38 | G65: 3798.82 | H65: 4528.72 | I65: 4719.28 | J65: 4893.67 | K65: 4544.9 | L65: 4179.95 | M65: 0.72412
A66: 56 | B66: BBTC | C66: 1092.25 | D66: 1084.42 | E66: 1060.83 | F66: 1029.42 | G66: 1005.83 | H66: 1115.83 | I66: 1139.42 | J66: 1170.83 | K66: 1108 | L66: 1053 | M66: 0.65206
A67: 57 | B67: BDL | C67: 264.5 | D67: 270.18 | E67: 254.37 | F67: 244.23 | G67: 228.42 | H67: 280.32 | I67: 296.13 | J67: 306.27 | K67: 286 | L67: 260.05 | M67: 1.277
A68: 58 | B68: BEL | C68: 72.95 | D68: 73.95 | E68: 71.00 | F68: 69.05 | G68: 66.10 | H68: 75.90 | I68: 78.85 | J68: 80.80 | K68: 76.9 | L68: 72 | M68: 92.08356
A69: 59 | B69: BEML | C69: 719.35 | D69: 738.58 | E69: 691.82 | F69: 664.28 | G69: 617.52 | H69: 766.12 | I69: 812.88 | J69: 840.42 | K69: 785.35 | L69: 711.05 | M69: 2.97274
A70: 60 | B70: BERGEPAINT | C70: 556.95 | D70: 561.52 | E70: 546.03 | F70: 535.12 | G70: 519.63 | H70: 572.43 | I70: 587.92 | J70: 598.83 | K70: 577 | L70: 550.6 | M70: 12.86412
A71: 61 | B71: BHARATFORG | C71: 450.95 | D71: 452.45 | E71: 438.50 | F71: 426.05 | G71: 412.10 | H71: 464.90 | I71: 478.85 | J71: 491.30 | K71: 466.4 | L71: 440 | M71: 14.21454
A72: 62 | B72: BHARTIARTL | C72: 518.35 | D72: 522.07 | E72: 508.13 | F72: 497.92 | G72: 483.98 | H72: 532.28 | I72: 546.22 | J72: 556.43 | K72: 536 | L72: 511.85 | M72: 99.10097
A73: 63 | B73: BHEL | C73: 29.55 | D73: 30.10 | E73: 28.50 | F73: 27.45 | G73: 25.85 | H73: 31.15 | I73: 32.75 | J73: 33.80 | K73: 31.7 | L73: 29.05 | M73: 230.2662
A74: 64 | B74: BIOCON | C74: 282.65 | D74: 285.60 | E74: 275.20 | F74: 267.75 | G74: 257.35 | H74: 293.05 | I74: 303.45 | J74: 310.90 | K74: 296 | L74: 278.15 | M74: 43.91067
A75: 65 | B75: BIRLACORPN | C75: 717.8 | D75: 718.37 | E75: 700.53 | F75: 683.27 | G75: 665.43 | H75: 735.63 | I75: 753.47 | J75: 770.73 | K75: 736.2 | L75: 701.1 | M75: 0.80651
A76: 66 | B76: BLISSGVS | C76: 99.3 | D76: 97.73 | E76: 94.57 | F76: 89.83 | G76: 86.67 | H76: 102.47 | I76: 105.63 | J76: 110.37 | K76: 100.9 | L76: 93 | M76: 13.46074
A77: 67 | B77: BLUEDART | C77: 2785.6 | D77: 2791.83 | E77: 2643.77 | F77: 2501.93 | G77: 2353.87 | H77: 2933.67 | I77: 3081.73 | J77: 3223.57 | K77: 2939.9 | L77: 2650 | M77: 0.05957
A78: 68 | B78: BLUESTARCO | C78: 811.1 | D78: 812.28 | E78: 802.12 | F78: 793.13 | G78: 782.97 | H78: 821.27 | I78: 831.43 | J78: 840.42 | K78: 822.45 | L78: 803.3 | M78: 1.39607
A79: 69 | B79: BOMDYEING | C79: 68.95 | D79: 70.30 | E79: 66.75 | F79: 64.55 | G79: 61.00 | H79: 72.50 | I79: 76.05 | J79: 78.25 | K79: 73.85 | L79: 68.1 | M79: 14.87144
A80: 70 | B80: BOSCHLTD | C80: 12448.9 | D80: 12518.85 | E80: 12239.75 | F80: 12030.60 | G80: 11751.50 | H80: 12728.00 | I80: 13007.10 | J80: 13216.25 | K80: 12797.95 | L80: 12309.7 | M80: 0.34896
A81: 71 | B81: BPCL | C81: 412.35 | D81: 420.23 | E81: 398.62 | F81: 384.88 | G81: 363.27 | H81: 433.97 | I81: 455.58 | J81: 469.32 | K81: 441.85 | L81: 406.5 | M81: 78.1219
A82: 72 | B82: BRIGADE | C82: 217.4 | D82: 222.67 | E82: 208.08 | F82: 198.77 | G82: 184.18 | H82: 231.98 | I82: 246.57 | J82: 255.88 | K82: 237.25 | L82: 213.35 | M82: 1.30369
A83: 73 | B83: BRITANNIA | C83: 2949.1 | D83: 2976.02 | E83: 2898.08 | F83: 2847.07 | G83: 2769.13 | H83: 3027.03 | I83: 3104.97 | J83: 3155.98 | K83: 3053.95 | L83: 2925 | M83: 3.48147
A84: 74 | B84: BSE | C84: 457.35 | D84: 458.75 | E84: 452.60 | F84: 447.85 | G84: 441.70 | H84: 463.50 | I84: 469.65 | J84: 474.40 | K84: 464.9 | L84: 454 | M84: 1.57059
A85: 75 | B85: BSOFT | C85: 89.45 | D85: 90.33 | E85: 86.42 | F85: 83.38 | G85: 79.47 | H85: 93.37 | I85: 97.28 | J85: 100.32 | K85: 94.25 | L85: 87.3 | M85: 23.81541
A86: 76 | B86: CADILAHC | C86: 250.15 | D86: 253.67 | E86: 243.78 | F86: 237.42 | G86: 227.53 | H86: 260.03 | I86: 269.92 | J86: 276.28 | K86: 263.55 | L86: 247.3 | M86: 21.60496
A87: 77 | B87: CANBK | C87: 138.15 | D87: 140.75 | E87: 133.60 | F87: 129.05 | G87: 121.90 | H87: 145.30 | I87: 152.45 | J87: 157.00 | K87: 147.9 | L87: 136.2 | M87: 101.12716
A88: 78 | B88: CANFINHOME | C88: 500.05 | D88: 495.93 | E88: 490.12 | F88: 480.18 | G88: 474.37 | H88: 505.87 | I88: 511.68 | J88: 521.62 | K88: 501.75 | L88: 486 | M88: 3.66929
A89: 79 | B89: CAPLIPOINT | C89: 305.15 | D89: 308.73 | E89: 293.47 | F89: 281.78 | G89: 266.52 | H89: 320.42 | I89: 335.68 | J89: 347.37 | K89: 324 | L89: 297.05 | M89: 0.96995
A90: 80 | B90: CARBORUNIV | C90: 327.3 | D90: 327.27 | E90: 323.53 | F90: 319.77 | G90: 316.03 | H90: 331.03 | I90: 334.77 | J90: 338.53 | K90: 331 | L90: 323.5 | M90: 0.45095
A91: 81 | B91: CARERATING | C91: 459.05 | D91: 468.50 | E91: 440.85 | F91: 422.65 | G91: 395.00 | H91: 486.70 | I91: 514.35 | J91: 532.55 | K91: 496.15 | L91: 450.3 | M91: 1.14715
A92: 82 | B92: CASTROLIND | C92: 149.65 | D92: 149.10 | E92: 147.50 | F92: 145.35 | G92: 143.75 | H92: 151.25 | I92: 152.85 | J92: 155.00 | K92: 150.7 | L92: 146.95 | M92: 19.09566
A93: 83 | B93: CCL | C93: 226.65 | D93: 229.80 | E93: 219.15 | F93: 211.65 | G93: 201.00 | H93: 237.30 | I93: 247.95 | J93: 255.45 | K93: 240.45 | L93: 222.3 | M93: 1.23038
A94: 84 | B94: CDSL | C94: 252.95 | D94: 258.65 | E94: 243.30 | F94: 233.65 | G94: 218.30 | H94: 268.30 | I94: 283.65 | J94: 293.30 | K94: 274 | L94: 249 | M94: 10.26369
A95: 85 | B95: CEATLTD | C95: 995.55 | D95: 1012.52 | E95: 964.03 | F95: 932.52 | G95: 884.03 | H95: 1044.03 | I95: 1092.52 | J95: 1124.03 | K95: 1061 | L95: 981 | M95: 0.81596
A96: 86 | B96: CENTRALBK | C96: 15.3 | D96: 15.62 | E96: 14.73 | F96: 14.17 | G96: 13.28 | H96: 16.18 | I96: 17.07 | J96: 17.63 | K96: 16.5 | L96: 15.05 | M96: 3.56828
A97: 87 | B97: CENTURYPLY | C97: 155.55 | D97: 155.63 | E97: 153.42 | F97: 151.28 | G97: 149.07 | H97: 157.77 | I97: 159.98 | J97: 162.12 | K97: 157.85 | L97: 153.5 | M97: 0.928
A98: 88 | B98: CERA | C98: 2442.35 | D98: 2407.82 | E98: 2355.58 | F98: 2268.82 | G98: 2216.58 | H98: 2494.58 | I98: 2546.82 | J98: 2633.58 | K98: 2460.05 | L98: 2321.05 | M98: 0.1799
A99: 89 | B99: CESC | C99: 641.55 | D99: 644.25 | E99: 630.15 | F99: 618.75 | G99: 604.65 | H99: 655.65 | I99: 669.75 | J99: 681.15 | K99: 658.35 | L99: 632.85 | M99: 5.27911
A100: 90 | B100: CGCL | C100: 214.3 | D100: 211.28 | E100: 206.07 | F100: 197.83 | G100: 192.62 | H100: 219.52 | I100: 224.73 | J100: 232.97 | K100: 216.5 | L100: 203.05 | M100: 3.6711
A101: 91 | B101: CHALET | C101: 329.2 | D101: 332.18 | E101: 318.37 | F101: 307.53 | G101: 293.72 | H101: 343.02 | I101: 356.83 | J101: 367.67 | K101: 346 | L101: 321.35 | M101: 0.61017
A102: 92 | B102: CHAMBLFERT | C102: 138.4 | D102: 140.73 | E102: 134.67 | F102: 130.93 | G102: 124.87 | H102: 144.47 | I102: 150.53 | J102: 154.27 | K102: 146.8 | L102: 137 | M102: 4.48974
A103: 93 | B103: CHENNPETRO | C103: 103 | D103: 103.35 | E103: 99.85 | F103: 96.70 | G103: 93.20 | H103: 106.50 | I103: 110.00 | J103: 113.15 | K103: 106.85 | L103: 100.2 | M103: 3.66446
A104: 94 | B104: CHOLAFIN | C104: 302 | D104: 306.18 | E104: 295.37 | F104: 288.73 | G104: 277.92 | H104: 312.82 | I104: 323.63 | J104: 330.27 | K104: 317 | L104: 299.55 | M104: 12.51381
A105: 95 | B105: CHOLAHLDNG | C105: 518.35 | D105: 521.10 | E105: 508.50 | F105: 498.65 | G105: 486.05 | H105: 530.95 | I105: 543.55 | J105: 553.40 | K105: 533.7 | L105: 511.25 | M105: 0.21625
A106: 96 | B106: CIPLA | C106: 401.95 | D106: 402.62 | E106: 393.98 | F106: 386.02 | G106: 377.38 | H106: 410.58 | I106: 419.22 | J106: 427.18 | K106: 411.25 | L106: 394.65 | M106: 34.60583
A107: 97 | B107: COALINDIA | C107: 169.35 | D107: 170.88 | E107: 166.77 | F107: 164.18 | G107: 160.07 | H107: 173.47 | I107: 177.58 | J107: 180.17 | K107: 175 | L107: 168.3 | M107: 119.62711
A108: 98 | B108: COCHINSHIP | C108: 333 | D108: 336.62 | E108: 326.48 | F108: 319.97 | G108: 309.83 | H108: 343.13 | I108: 353.27 | J108: 359.78 | K108: 346.75 | L108: 330.1 | M108: 1.71393
A109: 99 | B109: COLPAL | C109: 1295.35 | D109: 1303.03 | E109: 1281.07 | F109: 1266.78 | G109: 1244.82 | H109: 1317.32 | I109: 1339.28 | J109: 1353.57 | K109: 1325 | L109: 1288.75 | M109: 6.38567
A110: 100 | B110: CONCOR | C110: 496.15 | D110: 503.57 | E110: 483.58 | F110: 471.02 | G110: 451.03 | H110: 516.13 | I110: 536.12 | J110: 548.68 | K110: 523.55 | L110: 491 | M110: 7.29206
A111: 101 | B111: COROMANDEL | C111: 615.35 | D111: 613.78 | E111: 605.57 | F111: 595.78 | G111: 587.57 | H111: 623.57 | I111: 631.78 | J111: 641.57 | K111: 622 | L111: 604 | M111: 3.22847
A112: 102 | B112: CREDITACC | C112: 859.75 | D112: 860.97 | E112: 846.63 | F112: 833.52 | G112: 819.18 | H112: 874.08 | I112: 888.42 | J112: 901.53 | K112: 875.3 | L112: 847.85 | M112: 1.47583
A113: 103 | B113: CRISIL | C113: 1525.95 | D113: 1532.35 | E113: 1504.75 | F113: 1483.55 | G113: 1455.95 | H113: 1553.55 | I113: 1581.15 | J113: 1602.35 | K113: 1559.95 | L113: 1511.15 | M113: 0.2716
A114: 104 | B114: CROMPTON | C114: 276 | D114: 278.28 | E114: 270.72 | F114: 265.43 | G114: 257.87 | H114: 283.57 | I114: 291.13 | J114: 296.42 | K114: 285.85 | L114: 273 | M114: 14.81974
A115: 105 | B115: CUB | C115: 212.45 | D115: 213.35 | E115: 209.70 | F115: 206.95 | G115: 203.30 | H115: 216.10 | I115: 219.75 | J115: 222.50 | K115: 217 | L115: 210.6 | M115: 5.44692
A116: 106 | B116: CUMMINSIND | C116: 500.4 | D116: 506.32 | E116: 491.08 | F116: 481.77 | G116: 466.53 | H116: 515.63 | I116: 530.87 | J116: 540.18 | K116: 521.55 | L116: 497 | M116: 4.32302
A117: 107 | B117: CYIENT | C117: 425.8 | D117: 425.37 | E117: 418.83 | F117: 411.87 | G117: 405.33 | H117: 432.33 | I117: 438.87 | J117: 445.83 | K117: 431.9 | L117: 418.4 | M117: 0.79205
A118: 108 | B118: DABUR | C118: 499.25 | D118: 502.22 | E118: 490.73 | F118: 482.22 | G118: 470.73 | H118: 510.73 | I118: 522.22 | J118: 530.73 | K118: 513.7 | L118: 493.7 | M118: 34.41005
A119: 109 | B119: DALBHARAT | C119: 763.35 | D119: 774.40 | E119: 739.95 | F119: 716.55 | G119: 682.10 | H119: 797.80 | I119: 832.25 | J119: 855.65 | K119: 808.85 | L119: 751 | M119: 1.25568
A120: 110 | B120: DBCORP | C120: 110.45 | D120: 112.18 | E120: 107.37 | F120: 104.28 | G120: 99.47 | H120: 115.27 | I120: 120.08 | J120: 123.17 | K120: 117 | L120: 109.1 | M120: 0.85454
A121: 111 | B121: DBL | C121: 301.25 | D121: 308.15 | E121: 292.30 | F121: 283.35 | G121: 267.50 | H121: 317.10 | I121: 332.95 | J121: 341.90 | K121: 324 | L121: 299.2 | M121: 1.75755
A122: 112 | B122: DCAL | C122: 74.4 | D122: 76.13 | E122: 71.57 | F122: 68.73 | G122: 64.17 | H122: 78.97 | I122: 83.53 | J122: 86.37 | K122: 80.7 | L122: 73.3 | M122: 2.82608
A123: 113 | B123: DCBBANK | C123: 159.9 | D123: 160.30 | E123: 156.70 | F123: 153.50 | G123: 149.90 | H123: 163.50 | I123: 167.10 | J123: 170.30 | K123: 163.9 | L123: 157.1 | M123: 7.70125
A124: 114 | B124: DCMSHRIRAM | C124: 331.3 | D124: 332.77 | E124: 325.53 | F124: 319.77 | G124: 312.53 | H124: 338.53 | I124: 345.77 | J124: 351.53 | K124: 340 | L124: 327 | M124: 0.41674
A125: 115 | B125: DEEPAKNTR | C125: 505.1 | D125: 499.83 | E125: 475.67 | F125: 446.23 | G125: 422.07 | H125: 529.27 | I125: 553.43 | J125: 582.87 | K125: 524 | L125: 470.4 | M125: 23.80603
A126: 116 | B126: DELTACORP | C126: 126.1 | D126: 129.58 | E126: 117.62 | F126: 109.13 | G126: 97.17 | H126: 138.07 | I126: 150.03 | J126: 158.52 | K126: 141.55 | L126: 121.1 | M126: 10.34311
A127: 117 | B127: DHFL | C127: 14.9 | D127: 14.90 | E127: 14.90 | F127: 14.90 | G127: 14.90 | H127: 14.90 | I127: 14.90 | J127: 14.90 | K127: 14.9 | L127: 14.9 | M127: 4.07752
A128: 118 | B128: DISHTV | C128: 8.05 | D128: 8.23 | E128: 7.62 | F128: 7.18 | G128: 6.57 | H128: 8.67 | I128: 9.28 | J128: 9.72 | K128: 8.85 | L128: 7.8 | M128: 76.6284
A129: 119 | B129: DIVISLAB | C129: 2109.25 | D129: 2120.05 | E129: 2075.20 | F129: 2041.15 | G129: 1996.30 | H129: 2154.10 | I129: 2198.95 | J129: 2233.00 | K129: 2164.9 | L129: 2086 | M129: 5.57614
A130: 120 | B130: DIXON | C130: 3935.1 | D130: 3956.02 | E130: 3814.08 | F130: 3693.07 | G130: 3551.13 | H130: 4077.03 | I130: 4218.97 | J130: 4339.98 | K130: 4097.95 | L130: 3835 | M130: 0.91686
A131: 121 | B131: DLF | C131: 203.85 | D131: 205.68 | E131: 197.97 | F131: 192.08 | G131: 184.37 | H131: 211.57 | I131: 219.28 | J131: 225.17 | K131: 213.4 | L131: 199.8 | M131: 104.00591
A132: 122 | B132: DMART | C132: 2228.95 | D132: 2262.98 | E132: 2185.97 | F132: 2142.98 | G132: 2065.97 | H132: 2305.97 | I132: 2382.98 | J132: 2425.97 | K132: 2340 | L132: 2220 | M132: 20.50214
A133: 123 | B133: DRREDDY | C133: 2905.55 | D133: 2926.27 | E133: 2855.28 | F133: 2805.02 | G133: 2734.03 | H133: 2976.53 | I133: 3047.52 | J133: 3097.78 | K133: 2997.25 | L133: 2876 | M133: 8.88866
A134: 124 | B134: ECLERX | C134: 520.65 | D134: 511.22 | E134: 454.43 | F134: 388.22 | G134: 331.43 | H134: 577.43 | I134: 634.22 | J134: 700.43 | K134: 568 | L134: 445 | M134: 0.49811
A135: 125 | B135: EDELWEISS | C135: 86.95 | D135: 87.63 | E135: 83.32 | F135: 79.68 | G135: 75.37 | H135: 91.27 | I135: 95.58 | J135: 99.22 | K135: 91.95 | L135: 84 | M135: 18.54101
A136: 126 | B136: EICHERMOT | C136: 17013.4 | D136: 17146.43 | E136: 16509.97 | F136: 16006.53 | G136: 15370.07 | H136: 17649.87 | I136: 18286.33 | J136: 18789.77 | K136: 17782.9 | L136: 16643 | M136: 3.4837
A137: 127 | B137: EIDPARRY | C137: 185.25 | D137: 187.75 | E137: 177.50 | F137: 169.75 | G137: 159.50 | H137: 195.50 | I137: 205.75 | J137: 213.50 | K137: 198 | L137: 180 | M137: 1.77676
A138: 128 | B138: EIHOTEL | C138: 128.8 | D138: 129.95 | E138: 126.05 | F138: 123.30 | G138: 119.40 | H138: 132.70 | I138: 136.60 | J138: 139.35 | K138: 133.85 | L138: 127.2 | M138: 1.17047
A139: 129 | B139: ELGIEQUIP | C139: 199.85 | D139: 202.93 | E139: 187.87 | F139: 175.88 | G139: 160.82 | H139: 214.92 | I139: 229.98 | J139: 241.97 | K139: 218 | L139: 190.95 | M139: 0.76786
A140: 130 | B140: EMAMILTD | C140: 258.45 | D140: 258.92 | E140: 254.58 | F140: 250.72 | G140: 246.38 | H140: 262.78 | I140: 267.12 | J140: 270.98 | K140: 263.25 | L140: 255.05 | M140: 2.92497
A141: 131 | B141: ENDURANCE | C141: 970 | D141: 976.67 | E141: 953.33 | F141: 936.67 | G141: 913.33 | H141: 993.33 | I141: 1016.67 | J141: 1033.33 | K141: 1000 | L141: 960 | M141: 0.42897
A142: 132 | B142: ENGINERSIN | C142: 72.1 | D142: 71.97 | E142: 70.98 | F142: 69.87 | G142: 68.88 | H142: 73.08 | I142: 74.07 | J142: 75.18 | K142: 72.95 | L142: 70.85 | M142: 10.16041
A143: 133 | B143: EQUITAS | C143: 106.75 | D143: 108.43 | E143: 103.67 | F143: 100.58 | G143: 95.82 | H143: 111.52 | I143: 116.28 | J143: 119.37 | K143: 113.2 | L143: 105.35 | M143: 33.46923
A144: 134 | B144: ERIS | C144: 432.8 | D144: 432.30 | E144: 415.60 | F144: 398.40 | G144: 381.70 | H144: 449.50 | I144: 466.20 | J144: 483.40 | K144: 449 | L144: 415.1 | M144: 0.40405
A145: 135 | B145: ESCORTS | C145: 844.3 | D145: 842.42 | E145: 812.88 | F145: 781.47 | G145: 751.93 | H145: 873.83 | I145: 903.37 | J145: 934.78 | K145: 871.95 | L145: 811 | M145: 87.51507
A146: 136 | B146: ESSELPACK | C146: 155.4 | D146: 160.47 | E146: 142.93 | F146: 130.47 | G146: 112.93 | H146: 172.93 | I146: 190.47 | J146: 202.93 | K146: 178 | L146: 148 | M146: 1.95066
A147: 137 | B147: EXIDEIND | C147: 159.9 | D147: 162.27 | E147: 156.53 | F147: 153.17 | G147: 147.43 | H147: 165.63 | I147: 171.37 | J147: 174.73 | K147: 168 | L147: 158.9 | M147: 24.86077
A148: 138 | B148: FCONSUMER | C148: 12.65 | D148: 12.72 | E148: 11.93 | F148: 11.22 | G148: 10.43 | H148: 13.43 | I148: 14.22 | J148: 14.93 | K148: 13.5 | L148: 12 | M148: 56.64421
A149: 139 | B149: FDC | C149: 225.6 | D149: 231.03 | E149: 217.42 | F149: 209.23 | G149: 195.62 | H149: 239.22 | I149: 252.83 | J149: 261.02 | K149: 244.65 | L149: 222.85 | M149: 1.05623
A150: 140 | B150: FEDERALBNK | C150: 82.8 | D150: 84.22 | E150: 80.23 | F150: 77.67 | G150: 73.68 | H150: 86.78 | I150: 90.77 | J150: 93.33 | K150: 88.2 | L150: 81.65 | M150: 128.83824
A151: 141 | B151: FINCABLES | C151: 330.2 | D151: 330.28 | E151: 324.52 | F151: 318.83 | G151: 313.07 | H151: 335.97 | I151: 341.73 | J151: 347.42 | K151: 336.05 | L151: 324.6 | M151: 1.61599
A152: 142 | B152: FINEORG | C152: 2132.9 | D152: 2126.10 | E152: 2056.80 | F152: 1980.70 | G152: 1911.40 | H152: 2202.20 | I152: 2271.50 | J152: 2347.60 | K152: 2195.4 | L152: 2050 | M152: 0.16377
A153: 143 | B153: FINPIPE | C153: 545.8 | D153: 542.63 | E153: 535.27 | F153: 524.73 | G153: 517.37 | H153: 553.17 | I153: 560.53 | J153: 571.07 | K153: 550 | L153: 532.1 | M153: 0.28137
A154: 144 | B154: FLFL | C154: 340.7 | D154: 343.95 | E154: 330.00 | F154: 319.30 | G154: 305.35 | H154: 354.65 | I154: 368.60 | J154: 379.30 | K154: 357.9 | L154: 333.25 | M154: 0.35847
A155: 145 | B155: FMGOETZE | C155: 521.85 | D155: 524.27 | E155: 508.58 | F155: 495.32 | G155: 479.63 | H155: 537.53 | I155: 553.22 | J155: 566.48 | K155: 539.95 | L155: 511 | M155: 0.01355
A156: 146 | B156: FORTIS | C156: 152 | D156: 153.33 | E156: 149.67 | F156: 147.33 | G156: 143.67 | H156: 155.67 | I156: 159.33 | J156: 161.67 | K156: 157 | L156: 151 | M156: 18.2405
A157: 147 | B157: FRETAIL | C157: 305.8 | D157: 305.63 | E157: 299.27 | F157: 292.73 | G157: 286.37 | H157: 312.17 | I157: 318.53 | J157: 325.07 | K157: 312 | L157: 299.1 | M157: 9.40411
A158: 148 | B158: FSL | C158: 40.7 | D158: 40.88 | E158: 39.97 | F158: 39.23 | G158: 38.32 | H158: 41.62 | I158: 42.53 | J158: 43.27 | K158: 41.8 | L158: 40.15 | M158: 11.58002
A159: 149 | B159: GAIL | C159: 99.65 | D159: 101.90 | E159: 96.45 | F159: 93.25 | G159: 87.80 | H159: 105.10 | I159: 110.55 | J159: 113.75 | K159: 107.35 | L159: 98.7 | M159: 195.21525
A160: 150 | B160: GALAXYSURF | C160: 1604.6 | D160: 1595.20 | E160: 1545.40 | F160: 1486.20 | G160: 1436.40 | H160: 1654.40 | I160: 1704.20 | J160: 1763.40 | K160: 1645 | L160: 1536 | M160: 0.22807
A161: 151 | B161: GARFIBRES | C161: 1528 | D161: 1557.32 | E161: 1481.93 | F161: 1435.87 | G161: 1360.48 | H161: 1603.38 | I161: 1678.77 | J161: 1724.83 | K161: 1632.7 | L161: 1511.25 | M161: 0.11755
A162: 152 | B162: GAYAPROJ | C162: 20.65 | D162: 21.35 | E162: 19.95 | F162: 19.25 | G162: 17.85 | H162: 22.05 | I162: 23.45 | J162: 24.15 | K162: 22.75 | L162: 20.65 | M162: 21.08387
A163: 153 | B163: GEPIL | C163: 730.05 | D163: 722.50 | E163: 713.80 | F163: 697.55 | G163: 688.85 | H163: 738.75 | I163: 747.45 | J163: 763.70 | K163: 731.2 | L163: 706.25 | M163: 0.46959
A164: 154 | B164: GESHIP | C164: 244.55 | D164: 246.70 | E164: 237.85 | F164: 231.15 | G164: 222.30 | H164: 253.40 | I164: 262.25 | J164: 268.95 | K164: 255.55 | L164: 240 | M164: 0.46941
A165: 155 | B165: GET&D | C165: 127.5 | D165: 127.37 | E165: 121.23 | F165: 114.97 | G165: 108.83 | H165: 133.63 | I165: 139.77 | J165: 146.03 | K165: 133.5 | L165: 121.1 | M165: 1.06579
A166: 156 | B166: GHCL | C166: 164.1 | D166: 168.25 | E166: 157.85 | F166: 151.60 | G166: 141.20 | H166: 174.50 | I166: 184.90 | J166: 191.15 | K166: 178.65 | L166: 162 | M166: 1.6784
A167: 157 | B167: GICRE | C167: 164.6 | D167: 166.47 | E167: 160.63 | F167: 156.67 | G167: 150.83 | H167: 170.43 | I167: 176.27 | J167: 180.23 | K167: 172.3 | L167: 162.5 | M167: 3.4175
A168: 158 | B168: GILLETTE | C168: 5765.05 | D168: 5783.35 | E168: 5676.70 | F168: 5588.35 | G168: 5481.70 | H168: 5871.70 | I168: 5978.35 | J168: 6066.70 | K168: 5890 | L168: 5695 | M168: 0.07076
A169: 159 | B169: GLAXO | C169: 1303.25 | D169: 1313.63 | E169: 1289.62 | F169: 1275.98 | G169: 1251.97 | H169: 1327.27 | I169: 1351.28 | J169: 1364.92 | K169: 1337.65 | L169: 1300 | M169: 0.27735
A170: 160 | B170: GLENMARK | C170: 273.8 | D170: 277.73 | E170: 267.97 | F170: 262.13 | G170: 252.37 | H170: 283.57 | I170: 293.33 | J170: 299.17 | K170: 287.5 | L170: 271.9 | M170: 15.03003
A171: 161 | B171: GMDCLTD | C171: 49.9 | D171: 50.75 | E171: 48.55 | F171: 47.20 | G171: 45.00 | H171: 52.10 | I171: 54.30 | J171: 55.65 | K171: 52.95 | L171: 49.4 | M171: 1.21249
A172: 162 | B172: GMRINFRA | C172: 20.05 | D172: 20.28 | E172: 19.37 | F172: 18.68 | G172: 17.77 | H172: 20.97 | I172: 21.88 | J172: 22.57 | K172: 21.2 | L172: 19.6 | M172: 583.58093
A173: 163 | B173: GNFC | C173: 160.05 | D173: 162.02 | E173: 156.03 | F173: 152.02 | G173: 146.03 | H173: 166.03 | I173: 172.02 | J173: 176.03 | K173: 168 | L173: 158 | M173: 3.55318
A174: 164 | B174: GODFRYPHLP | C174: 1121.45 | D174: 1139.48 | E174: 1081.97 | F174: 1042.48 | G174: 984.97 | H174: 1178.97 | I174: 1236.48 | J174: 1275.97 | K174: 1197 | L174: 1100 | M174: 0.9407
A175: 165 | B175: GODREJAGRO | C175: 459.3 | D175: 463.58 | E175: 450.97 | F175: 442.63 | G175: 430.02 | H175: 471.92 | I175: 484.53 | J175: 492.87 | K175: 476.2 | L175: 455.25 | M175: 0.62747
A176: 166 | B176: GODREJCP | C176: 587.15 | D176: 590.75 | E176: 570.20 | F176: 553.25 | G176: 532.70 | H176: 607.70 | I176: 628.25 | J176: 645.20 | K176: 611.3 | L176: 573.8 | M176: 26.37496
A177: 167 | B177: GODREJIND | C177: 397.8 | D177: 397.65 | E177: 390.50 | F177: 383.20 | G177: 376.05 | H177: 404.95 | I177: 412.10 | J177: 419.40 | K177: 404.8 | L177: 390.35 | M177: 1.36761
A178: 168 | B178: GODREJPROP | C178: 1013.95 | D178: 1020.97 | E178: 997.93 | F178: 981.92 | G178: 958.88 | H178: 1036.98 | I178: 1060.02 | J178: 1076.03 | K178: 1044 | L178: 1004.95 | M178: 0.92761
A179: 169 | B179: GPPL | C179: 72.4 | D179: 73.03 | E179: 70.37 | F179: 68.33 | G179: 65.67 | H179: 75.07 | I179: 77.73 | J179: 79.77 | K179: 75.7 | L179: 71 | M179: 2.3133
A180: 170 | B180: GRANULES | C180: 161.65 | D180: 161.43 | E180: 155.37 | F180: 149.08 | G180: 143.02 | H180: 167.72 | I180: 173.78 | J180: 180.07 | K180: 167.5 | L180: 155.15 | M180: 20.27223
A181: 171 | B181: GRAPHITE | C181: 228.6 | D181: 234.32 | E181: 217.78 | F181: 206.97 | G181: 190.43 | H181: 245.13 | I181: 261.67 | J181: 272.48 | K181: 250.85 | L181: 223.5 | M181: 28.96208
A182: 172 | B182: GRASIM | C182: 668.45 | D182: 675.75 | E182: 650.00 | F182: 631.55 | G182: 605.80 | H182: 694.20 | I182: 719.95 | J182: 738.40 | K182: 701.5 | L182: 657.3 | M182: 22.45349
A183: 173 | B183: GREAVESCOT | C183: 129.35 | D183: 131.17 | E183: 126.38 | F183: 123.42 | G183: 118.63 | H183: 134.13 | I183: 138.92 | J183: 141.88 | K183: 135.95 | L183: 128.2 | M183: 1.64701
A184: 174 | B184: GRINDWELL | C184: 575 | D184: 580.17 | E184: 568.18 | F184: 561.37 | G184: 549.38 | H184: 586.98 | I184: 598.97 | J184: 605.78 | K184: 592.15 | L184: 573.35 | M184: 0.30801
A185: 175 | B185: GSFC | C185: 60.6 | D185: 61.07 | E185: 58.83 | F185: 57.07 | G185: 54.83 | H185: 62.83 | I185: 65.07 | J185: 66.83 | K185: 63.3 | L185: 59.3 | M185: 2.66717
A186: 176 | B186: GSPL | C186: 226.65 | D186: 227.55 | E186: 223.70 | F186: 220.75 | G186: 216.90 | H186: 230.50 | I186: 234.35 | J186: 237.30 | K186: 231.4 | L186: 224.6 | M186: 1.88779
A187: 177 | B187: GUJALKALI | C187: 326.75 | D187: 333.57 | E187: 318.18 | F187: 309.62 | G187: 294.23 | H187: 342.13 | I187: 357.52 | J187: 366.08 | K187: 348.95 | L187: 325 | M187: 0.49808
A188: 178 | B188: GUJGASLTD | C188: 278.8 | D188: 279.98 | E188: 273.82 | F188: 268.83 | G188: 262.67 | H188: 284.97 | I188: 291.13 | J188: 296.12 | K188: 286.15 | L188: 275 | M188: 10.19563
A189: 179 | B189: GULFOILLUB | C189: 734.15 | D189: 750.05 | E189: 699.60 | F189: 665.05 | G189: 614.60 | H189: 784.60 | I189: 835.05 | J189: 869.60 | K189: 800.5 | L189: 715.5 | M189: 0.08678
A190: 180 | B190: HAL | C190: 664.05 | D190: 675.02 | E190: 642.03 | F190: 620.02 | G190: 587.03 | H190: 697.03 | I190: 730.02 | J190: 752.03 | K190: 708 | L190: 653 | M190: 0.35013
A191: 181 | B191: HATSUN | C191: 689.35 | D191: 696.32 | E191: 673.18 | F191: 657.02 | G191: 633.88 | H191: 712.48 | I191: 735.62 | J191: 751.78 | K191: 719.45 | L191: 680.15 | M191: 0.13861
A192: 182 | B192: HAVELLS | C192: 627.6 | D192: 631.82 | E192: 615.83 | F192: 604.07 | G192: 588.08 | H192: 643.58 | I192: 659.57 | J192: 671.33 | K192: 647.8 | L192: 620.05 | M192: 23.33347
A193: 183 | B193: HCLTECH | C193: 549.7 | D193: 551.13 | E193: 536.42 | F193: 523.13 | G193: 508.42 | H193: 564.42 | I193: 579.13 | J193: 592.42 | K193: 565.85 | L193: 537.85 | M193: 81.75982
A194: 184 | B194: HDFC | C194: 2179.65 | D194: 2193.93 | E194: 2139.52 | F194: 2099.38 | G194: 2044.97 | H194: 2234.07 | I194: 2288.48 | J194: 2328.62 | K194: 2248.35 | L194: 2153.8 | M194: 39.57634
A195: 185 | B195: HDFCAMC | C195: 3051.3 | D195: 3096.78 | E195: 2973.57 | F195: 2895.83 | G195: 2772.62 | H195: 3174.52 | I195: 3297.73 | J195: 3375.47 | K195: 3220 | L195: 3019.05 | M195: 4.4365
A196: 186 | B196: HDFCBANK | C196: 1179.6 | D196: 1182.30 | E196: 1163.45 | F196: 1147.30 | G196: 1128.45 | H196: 1198.45 | I196: 1217.30 | J196: 1233.45 | K196: 1201.15 | L196: 1166.15 | M196: 73.32449
A197: 187 | B197: HDFCLIFE | C197: 554.5 | D197: 556.57 | E197: 548.88 | F197: 543.27 | G197: 535.58 | H197: 562.18 | I197: 569.87 | J197: 575.48 | K197: 564.25 | L197: 550.95 | M197: 22.99648
A198: 188 | B198: HEG | C198: 908.35 | D198: 917.78 | E198: 855.57 | F198: 802.78 | G198: 740.57 | H198: 970.57 | I198: 1032.78 | J198: 1085.57 | K198: 980 | L198: 865 | M198: 10.62315
A199: 189 | B199: HEIDELBERG | C199: 199.75 | D199: 200.87 | E199: 196.73 | F199: 193.72 | G199: 189.58 | H199: 203.88 | I199: 208.02 | J199: 211.03 | K199: 205 | L199: 197.85 | M199: 4.92446
A200: 190 | B200: HERITGFOOD | C200: 339.7 | D200: 351.27 | E200: 323.53 | F200: 307.37 | G200: 279.63 | H200: 367.43 | I200: 395.17 | J200: 411.33 | K200: 379 | L200: 335.1 | M200: 0.281
A201: 191 | B201: HEROMOTOCO | C201: 1975.45 | D201: 2015.48 | E201: 1920.97 | F201: 1866.48 | G201: 1771.97 | H201: 2069.97 | I201: 2164.48 | J201: 2218.97 | K201: 2110 | L201: 1961 | M201: 12.07967
A202: 192 | B202: HEXAWARE | C202: 360 | D202: 360.35 | E202: 356.70 | F202: 353.40 | G202: 349.75 | H202: 363.65 | I202: 367.30 | J202: 370.60 | K202: 364 | L202: 357.05 | M202: 3.33693
A203: 193 | B203: HFCL | C203: 13 | D203: 13.57 | E203: 12.18 | F203: 11.37 | G203: 9.98 | H203: 14.38 | I203: 15.77 | J203: 16.58 | K203: 14.95 | L203: 12.75 | M203: 23.23622
A204: 194 | B204: HIMATSEIDE | C204: 97.15 | D204: 98.50 | E204: 95.25 | F204: 93.35 | G204: 90.10 | H204: 100.40 | I204: 103.65 | J204: 105.55 | K204: 101.75 | L204: 96.6 | M204: 0.62523
A205: 195 | B205: HINDALCO | C205: 149.75 | D205: 152.68 | E205: 143.92 | F205: 138.08 | G205: 129.32 | H205: 158.52 | I205: 167.28 | J205: 173.12 | K205: 161.45 | L205: 146.85 | M205: 114.41351
A206: 196 | B206: HINDCOPPER | C206: 29.95 | D206: 30.63 | E206: 28.82 | F206: 27.68 | G206: 25.87 | H206: 31.77 | I206: 33.58 | J206: 34.72 | K206: 32.45 | L206: 29.5 | M206: 5.46035
... 321 more rows

Sheet Bulk Deals
E6: Back To Main Page
A7: Subject : | B7: BULK DEAL | D7: =Main!B10 -> 2020-03-03
A9: Date | B9: Scrip code | C9: Scrip Name | D9: Client Name | E9: Buy / Sell | F9: Quantity Traded | G9: Trade Price / Wt.Avg.trade price | H9: Exchange
A10: 2020-03-02 | B10: 506197 | C10: BLISSGVS | D10: BHARAT SURESH PARIKH(H U F) | E10: BUY | F10: 527,200 | G10: 99.62 | H10: BSE
A11: 2020-03-02 | B11: 542934 | C11: CBPL | D11: SUFAL INVESTMENT | E11: SELL | F11: 38,000 | G11: 43.9 | H11: BSE
A12: 2020-03-02 | B12: 522292 | C12: CHANDNI | D12: REENA ASHISH AJMERA | E12: SELL | F12: 100,000 | G12: 25 | H12: BSE
A13: 2020-03-02 | B13: 540080 | C13: NARAYANI | D13: RIKHAV SECURITIES LIMITED | E13: BUY | F13: 84,000 | G13: 35.85 | H13: BSE
A14: 2020-03-02 | B14: 542771 | C14: NOVATEOR | D14: YASH DEEPAKKUMAR JAIN | E14: BUY | F14: 258,000 | G14: 8.83 | H14: BSE
A15: 2020-03-02 | B15: 542771 | C15: NOVATEOR | D15: JHAVERI TRADING AND INVESTMENT PVT LTD | E15: SELL | F15: 60,000 | G15: 8.83 | H15: BSE
A16: 2020-03-02 | B16: 542771 | C16: NOVATEOR | D16: VIVIDOFFSET PRINTERS PRIVATELIMITED | E16: SELL | F16: 180,000 | G16: 8.83 | H16: BSE
A17: 2020-03-02 | B17: 519439 | C17: PIONAGR | D17: OSCAR RETAILERS LIMITED | E17: SELL | F17: 50,000 | G17: 8.75 | H17: BSE
A18: 2020-03-02 | B18: 519439 | C18: PIONAGR | D18: SAMRAAT FINLEASE PRIVATE LIMITED | E18: BUY | F18: 49,496 | G18: 8.75 | H18: BSE
A19: 2020-03-02 | B19: 538452 | C19: QUASAR | D19: AKSHIKA TRADING ENTERPRISES PRIVATE LIMITED | E19: SELL | F19: 28,751 | G19: 4.23 | H19: BSE
A20: 2020-03-02 | B20: 539026 | C20: SSPNFIN | D20: RAJESH RAMANLAL KAPADIA | E20: BUY | F20: 24,000 | G20: 51 | H20: BSE
A21: 2020-03-02 | B21: 539026 | C21: SSPNFIN | D21: RAJESH RAMANLAL KAPADIA | E21: SELL | F21: 24,000 | G21: 50.7 | H21: BSE
A22: 2020-03-02 | B22: ABINFRA | C22: A B Infrabuild Limited | D22: AUMIT CAPITAL ADVISORS LIMITED | E22: BUY | F22: 100,000 | G22: 12.5 | H22: NSE
A23: 2020-03-02 | B23: CREST | C23: Crest Ventures Limited | D23: A R PARTNERSHIP | E23: BUY | F23: 330,060 | G23: 99 | H23: NSE
A24: 2020-03-02 | B24: DLF | C24: DLF Limited | D24: RAJDHANI INVESTMENTS & AGENCIES PRIVATE LIMITED | E24: BUY | F24: 14,927,680 | G24: 210.1 | H24: NSE
A25: 2020-03-02 | B25: EMKAYTOOLS | C25: Emkay Tap & Cut. Tool Ltd | D25: NAGPUR TOOLS PVT LTD | E25: BUY | F25: 81,000 | G25: 160 | H25: NSE
A26: 2020-03-02 | B26: ESCORTS | C26: Escorts India Ltd. | D26: SURJECTIVE RESEARCH CAPITAL LLP | E26: BUY | F26: 655,963 | G26: 850.17 | H26: NSE
A27: 2020-03-02 | B27: IBULHSGFIN | C27: Indiabulls Hsg Fin Ltd | D27: SURJECTIVE RESEARCH CAPITAL LLP | E27: BUY | F27: 3,193,674 | G27: 308.36 | H27: NSE
A28: 2020-03-02 | B28: IBULHSGFIN | C28: Indiabulls Hsg Fin Ltd | D28: TOWER RESEARCH CAPITAL MARKETS INDIA PRIVATE LIMITED | E28: BUY | F28: 3,446,109 | G28: 311.1 | H28: NSE
A29: 2020-03-02 | B29: NCC | C29: NCC Limited | D29: TOWER RESEARCH CAPITAL MARKETS INDIA PRIVATE LIMITED | E29: BUY | F29: 5,163,502 | G29: 36.91 | H29: NSE
A30: 2020-03-02 | B30: NCC | C30: NCC Limited | D30: SHARE INDIA COMMODITY BROKERS PRIVATE LIMITED | E30: BUY | F30: 3,473,196 | G30: 36.61 | H30: NSE
A31: 2020-03-02 | B31: ABINFRA | C31: A B Infrabuild Limited | D31: MANISH KUMAR | E31: SELL | F31: 92,000 | G31: 12.48 | H31: NSE
A32: 2020-03-02 | B32: CREST | C32: Crest Ventures Limited | D32: VT CAPITAL MARKET PVT LTD | E32: SELL | F32: 330,739 | G32: 99 | H32: NSE
A33: 2020-03-02 | B33: DLF | C33: DLF Limited | D33: REALEST BUILDERS AND SERVICES PRIVATE LIMITED | E33: SELL | F33: 14,927,680 | G33: 210.1 | H33: NSE
A34: 2020-03-02 | B34: EMKAYTOOLS | C34: Emkay Tap & Cut. Tool Ltd | D34: AJAYPRAKASH MURLIDHAR KANORIA HUF | E34: SELL | F34: 81,000 | G34: 160 | H34: NSE
A35: 2020-03-02 | B35: ESCORTS | C35: Escorts India Ltd. | D35: SURJECTIVE RESEARCH CAPITAL LLP | E35: SELL | F35: 661,299 | G35: 850.63 | H35: NSE
A36: 2020-03-02 | B36: IBULHSGFIN | C36: Indiabulls Hsg Fin Ltd | D36: SURJECTIVE RESEARCH CAPITAL LLP | E36: SELL | F36: 3,189,758 | G36: 308.52 | H36: NSE
A37: 2020-03-02 | B37: IBULHSGFIN | C37: Indiabulls Hsg Fin Ltd | D37: KB HORIZON ACCESS INDIA FUND | E37: SELL | F37: 3,813,551 | G37: 301.33 | H37: NSE
A38: 2020-03-02 | B38: IBULHSGFIN | C38: Indiabulls Hsg Fin Ltd | D38: TOWER RESEARCH CAPITAL MARKETS INDIA PRIVATE LIMITED | E38: SELL | F38: 3,166,591 | G38: 311.5 | H38: NSE
A39: 2020-03-02 | B39: MACPOWER | C39: Macpower CNC Machines Ltd | D39: HSBC MUTUAL FUND A/C HSBC SMALL CAP EQUITY FUND | E39: SELL | F39: 50,500 | G39: 50.06 | H39: NSE
A40: 2020-03-02 | B40: NCC | C40: NCC Limited | D40: TOWER RESEARCH CAPITAL MARKETS INDIA PRIVATE LIMITED | E40: SELL | F40: 5,097,313 | G40: 36.95 | H40: NSE
A41: 2020-03-02 | B41: NCC | C41: NCC Limited | D41: SHARE INDIA COMMODITY BROKERS PRIVATE LIMITED | E41: SELL | F41: 2,260,196 | G41: 36.26 | H41: NSE

Sheet Call Tracker (Equity & F&O)
M5: Back To Main Page
A6: Retail Research Technical Calls & Fundamental Performance Report for the month of March-2020
M7: =Main!B10 -> 2020-03-03
B8: Positional Call
A9: Sr.no | B9: Date | D9: Company | E9: Rec | F9: Rec Price | G9: Stop Loss*** | H9: Call Closed At | I9: Target | J9: Remark | K9: Profit / Loss per Share | L9: Gain / Loss % | M9: Status | N9: Closed Date | O9: NSE Closed Price
A10: 1 | B10: 2020-02-04 | D10: MARICO | E10: Buy | F10: 306-308 | G10: 287.8 | I10: 335-345 | J10: Open | O10: =VLOOKUP(D10,Sheet2!A2:H1667,6,0) -> 291.25 | R10: R
A11: 2 | B11: 2020-02-05 | D11: FINPIPE | E11: Buy | F11: 552 | G11: 518 | H11: 568.5 | I11: 600-630 | J11: Part Profit of Rs.16.5/- | K11: =H11-F11 -> 16.5 | L11: =K11/F11 -> 2.99% | M11: Successful | N11: 2020-02-24 | O11: =VLOOKUP(D11,Sheet2!A5:H1670,6,0) -> 545.8 | R11: H
A12: 3 | B12: 2020-02-05 | D12: IOC | E12: Buy | F12: 114 | G12: 107 | H12: 118 | I12: 124-128 | J12: Part Profit of Rs.4/- | K12: =H12-F12 -> 4 | L12: =K12/F12 -> 3.51% | M12: Successful | N12: 2020-02-10 | O12: =VLOOKUP(D12,Sheet2!A6:H1671,6,0) -> 103.95 | R12: H
A13: 4 | B13: 2020-02-26 | D13: TITAN | E13: Buy | F13: 1255-1265 | G13: 1189 | I13: 1350-1400 | J13: Open | O13: =VLOOKUP(D13,Sheet2!A15:H1680,6,0) -> 1244.15 | R13: H
A14: 5 | B14: 2020-02-26 | D14: WHIRLPOOL | E14: Buy | F14: 2240-2250 | G14: 2145 | I14: 2430-2450 | J14: Open | O14: =VLOOKUP(D14,Sheet2!A19:H1684,6,0) -> 2213.25 | R14: R
A15: 6 | B15: 2020-02-27 | D15: MARUTI | E15: Buy | F15: 6300 | G15: 6100 | H15: 6305 | I15: 6700 | J15: Profit of Rs.5/- | K15: =H15-F15 -> 5 | L15: =K15/F15 -> 0.08% | M15: Neutral | N15: 2020-03-02 | R15: A
A16: 7 | B16: 2020-02-27 | D16: JKPAPER | E16: Buy | F16: 120-122 | G16: 113 | I16: 132-135 | J16: Open | O16: =VLOOKUP(D16,Sheet2!A21:H1686,6,0) -> 114 | R16: N
A17: 8 | B17: 2020-02-27 | D17: SUNPHARMA | E17: Buy | F17: 390 | G17: 370 | H17: 369 | I17: 430 | J17: Loss of Rs.21/- | K17: =H17-F17 -> -21 | L17: =K17/F17 -> -5.38% | M17: Unsuccessful | N17: 2020-03-02 | R17: A
A18: 9 | B18: 2020-02-27 | D18: HDFCLIFE | E18: Buy | F18: 565-567 | G18: 535 | I18: 625 | J18: Open | O18: =VLOOKUP(D18,Sheet2!A23:H1688,6,0) -> 554.5 | R18: N
A19: 10 | B19: 2020-02-28 | D19: NTPC | E19: Buy | F19: 108-110 | G19: 102 | I19: 125 | J19: Open | O19: =VLOOKUP(D19,Sheet2!A24:H1689,6,0) -> 103.9 | R19: R
A20: 11 | B20: 2020-03-02 | D20: M&M | E20: Buy | F20: 447.5 | G20: 420 | H20: 468 | I20: 490-500 | J20: Profit of Rs.20.50/- | K20: =H20-F20 -> 20.5 | L20: =K20/F20 -> 4.58% | M20: Successful | N20: 2020-03-02 | R20: N
A21: 12 | B21: 2020-03-02 | D21: MCDOWELL-N | E21: Buy | F21: 674-678 | G21: 645 | I21: 730-750 | J21: Open | O21: =VLOOKUP(D21,Sheet2!A26:H1691,6,0) -> 657.45 | R21: H
A22: 13
A23: 14
A24: 15
A25: 16
A29: CLBS = Closing Basis ***
A30: Dividend adjusted <> | F30: Reinitiated $
A31: Part book {} | F31: Revised stoploss #
B33: Momentum Call
A34: Sr.no | B34: Date | D34: Company | E34: Rec | F34: Rec Price | G34: Stop Loss | H34: Call Closed At | I34: Target | J34: Remark | K34: Profit / Loss per Share/Lot | L34: Gain / Loss % | M34: Gain / Loss per Lot | N34: Lot | O34: Status | P34: Closed Date
A35: 1 | B35: 2020-02-28 | D35: HDFCBANK | E35: Buy | F35: 1172.5 | G35: 1140 | H35: 1200 | I35: 1210-1230 | J35: Profit of Rs.27.5/- | K35: =H35-F35 -> 27.5 | L35: =K35/F35 -> 2.35% | O35: Successful | P35: 2020-03-02 | R35: H
A36: 2 | B36: 2020-02-28 | D36: SBIN | E36: Buy | F36: 311.5 | G36: 299 | H36: 301.5 | I36: 325-330 | J36: Loss of Rs.10/- | K36: =H36-F36 -> -10 | L36: -3.21% | O36: Unsuccessful | P36: 2020-03-02 | R36: H
A37: 3 | B37: 2020-03-02 | D37: HEROMOTOCO | E37: Sell | F37: 2095 | G37: 2167 | H37: 2065.5 | I37: 2000-1970 | J37: Profit of Rs.29.50/- | K37: =F37-H37 -> 29.5 | L37: =K37/F37 -> 1.41% | O37: Successful | P37: 2020-03-02 | R37: H
A38: 4 | B38: 2020-03-02 | D38: APOLLOHOSP MAR FUT | E38: Buy | F38: 1740 | G38: 1715 | H38: 1754 | I38: 1780-1790 | J38: Profit of Rs.14/- | K38: =H38-F38 -> 14 | M38: =N38*K38 -> 7000 | N38: 500 | O38: Successful | P38: 2020-03-02 | R38: N
A39: 5 | B39: 2020-03-02 | D39: HDFCBANK | E39: Buy | F39: 1178 | G39: 1145 | H39: 1190 | I39: 1220-1240 | J39: Profit of Rs.12/- | K39: 12 | L39: =K39/F39 -> 1.02% | O39: Successful | P39: 2020-03-02 | R39: H
A40: 6 | B40: 2020-03-02 | D40: IGL | E40: Buy | F40: 442-446 | G40: 429 | I40: 465-470 | J40: Open | R40: H
A41: 7 | B41: 2020-03-02 | D41: AXISBANK | E41: Buy | F41: 690 | G41: 670 | H41: 700.5 | I41: 730 | J41: Profit of Rs.10.5/- | K41: =H41-F41 -> 10.5 | L41: =K41/F41 -> 1.52% | O41: Successful | P41: 2020-03-02 | R41: N
A42: 8
A43: 9
A44: 10
A56: 78
A57: CLBS = Closing Basis ***
A58: Dividend adjusted <> | F58: Reinitiated $
F59: Revised stoploss #
A61: Master Trade High Risk
A62: Sr.no | B62: Date | D62: Company | E62: Rec | F62: Rec Price | G62: Stop Loss | H62: Call Closed At | I62: Target | J62: Remark | K62: Profit / Loss per share | L62: Gain / Loss per Lot | M62: Lot | N62: Status | O62: Closed Date
A63: 1 | B63: 2020-03-02 | D63: NIFTY MAR FUT | E63: Buy | F63: 11315 | G63: 11170 | H63: 11170 | I63: 11600 | J63: Loss of Rs.120/- | K63: =H63-F63 -> -145 | L63: =+-120*75 -> -9000 | M63: 75 | N63: Unsuccessful | O63: 2020-03-02 | R63: H
D64: NIFTY 26 MARCH 11500 CE | E64: Sell | F64: 152.50 | H64: 127.5 | K64: =F64-H64 -> 25 | R64: H
A72: Master Trade Medium Risk
A73: Sr.no | B73: Date | D73: Company | E73: Rec | F73: Rec Price | G73: Stop Loss | H73: Call Closed At | I73: Target | J73: Remark | K73: Profit/ Loss per lot | L73: Gain / Loss per Lot | M73: Lot | N73: Status | O73: Closed Date
A83: Techno -Funda (positional)
A84: Sr.no | B84: Date | D84: Company | E84: Rec | F84: Rec Price | G84: Stop Loss*** | H84: Call Closed At | I84: Target | J84: Remark | K84: Profit / Loss per Share | L84: Gain / Loss % | M84: Status | N84: Closed Date | O84: NSE Closed Price
A87: CLBS = Closing Basis *** | F87: Reinitiated $
A88: Dividend adjusted <> | F88: Revised stoploss #
B93: Investment Idea
A94: Sr.no | B94: Date | D94: Company | E94: Rec | F94: Rec Price | G94: Point of Review | H94: Close Rate | I94: Target | J94: Remark | K94: Profit / Loss per Share | L94: Gain / Loss % | M94: Status | N94: Closed Date
A95: 1 | B95: 2013-11-01 | D95: L&T Finance Holding | E95: Accu | F95: 82.00 | G95: - | H95: 100 | I95: 100.00 | J95: Target Achieved | K95: =H95-F95 -> 18.00 | L95: =K95/F95 -> 21.95% | M95: Successful | N95: 2016-10-14
A96: 2 | B96: 2014-06-04 | D96: Finolex Inds | E96: Buy | F96: 257.00 | G96: - | H96: 300 | I96: 300.00 | J96: Target Achieved | K96: 43.00 | L96: 16.73% | M96: Successful | N96: 2014-07-02
A97: 3 | B97: 2014-07-08 | D97: JK Cement | E97: Buy | F97: 393.00 | G97: - | H97: 468 | I97: 468.00 | J97: Target Achieved | K97: 75.00 | L97: 19.08% | M97: Successful | N97: 2014-08-12
A98: 4 | B98: 2014-08-06 | D98: Finolex Cables | E98: Buy | F98: 205.00 | G98: - | H98: 275 | I98: 250.00 | J98: Target Achieved | K98: 70.00 | L98: 34.15% | M98: Successful | N98: 2014-11-19
A99: 5 | B99: 2014-09-04 | D99: Exide Inds | E99: Buy | F99: 162.00 | G99: - | H99: 190 | I99: 190.00 | J99: Target Achieved | K99: 28.00 | L99: 17.28% | M99: Successful | N99: 2015-01-02
A100: 6 | B100: 2014-09-04 | D100: Deepak Nitrite | E100: Buy | F100: 75.00 | G100: - | H100: 91.5 | I100: 95-100 | J100: Profit of Rs.16.50/- | K100: 16.50 | L100: 22.00% | M100: Successful | N100: 2014-11-11
A101: 7 | B101: 2014-10-01 | D101: Mercks | E101: Buy | F101: 850.00 | G101: - | H101: 982.5 | I101: 1050.00 | J101: Profit of Rs.132.50/- | K101: 132.50 | L101: 15.59% | M101: Successful | N101: 2015-02-04
A102: 8 | B102: 2014-10-01 | D102: Grindwell Norton | E102: Buy | F102: 475.00 | G102: - | H102: 515 | I102: 600.00 | J102: Profit of Rs.40/- | K102: 40.00 | L102: 8.42% | M102: Successful | N102: 2014-10-27
A103: 9 | B103: 2014-10-01 | D103: Snowman Logistics | E103: Buy | F103: 86.00 | G103: - | H103: 99 | I103: 140.00 | J103: Profit of Rs.13.00/- | K103: 13.00 | L103: 15.12% | M103: Successful | N103: 2014-10-27
A104: 10 | B104: 2014-10-14 | D104: Birla Corp | E104: Buy | F104: 496.60 | G104: - | H104: 621 | I104: 580.00 | J104: Target Achieved | K104: 124.40 | L104: 25.05% | M104: Successful | N104: 2016-08-23
A105: 11 | B105: 2014-10-14 | D105: Ultratech Cem | E105: Buy | F105: 2481.90 | G105: - | H105: 2840 | I105: 2870.00 | J105: Profit of Rs.358.10/- | K105: 358.10 | L105: 14.43% | M105: Successful | N105: 2015-01-13
A106: 12 | B106: 2014-10-16 | D106: Sintex Inds | E106: Buy | F106: 84.50 | G106: - | H106: 93 | I106: 110.00 | J106: Profit of Rs.8.50/- | K106: 8.50 | L106: 10.06% | M106: Successful | N106: 2014-10-27
A107: 13 | B107: 2014-10-16 | D107: HSIL | E107: Buy | F107: 401.00 | G107: - | H107: 428 | I107: 450.00 | J107: Profit of Rs.27.00/- | K107: 27.00 | L107: 6.73% | M107: Successful | N107: 2015-01-16
A108: 14 | B108: 2014-10-16 | D108: Eveready Inds | E108: Buy | F108: 101.00 | G108: - | H108: 112 | I108: 120.00 | J108: Profit of Rs.11.00/- | K108: 11.00 | L108: 10.89% | M108: Successful | N108: 2014-10-27
A109: 15 | B109: 2014-11-11 | D109: Pennar Inds | E109: Buy | F109: 59.00 | G109: - | H109: 76 | I109: 76.00 | J109: Target Achieved | K109: 17.00 | L109: 28.81% | M109: Successful | N109: 2017-10-24
A110: 16 | B110: 2014-11-11 | D110: Snowman Logistics | E110: Buy | F110: 99.00 | G110: - | H110: 120 | I110: 120.00 | J110: Profit of Rs.21/- | K110: 21.00 | L110: 21.21% | M110: Successful | N110: 2014-11-17
A111: 17 | B111: 2014-11-13 | D111: Dharamsi Morarji Chem | E111: Buy | F111: 22.00 | G111: - | H111: 33.55 | I111: 32.00 | J111: Profit of Rs 11.55/- | K111: 11.55 | L111: 52.50% | M111: Successful | N111: 2015-07-03
A112: 18 | B112: 2014-12-03 | D112: Tatachem | E112: Buy | F112: 440.00 | G112: - | H112: 520 | I112: 520.00 | J112: Profit of Rs 80.00/- | K112: 80.00 | L112: 18.18% | M112: Successful | N112: 2015-07-23
A113: 19 | B113: 2014-12-03 | D113: Advanta | E113: Buy | F113: 360.00 | G113: - | H113: 427 | I113: 425.00 | J113: Profit of Rs.67.00/- | K113: 67.00 | L113: 18.61% | M113: Successful | N113: 2015-02-23
A114: 20 | B114: 2015-01-08 | D114: GDL | E114: Buy | F114: 360.00 | G114: - | H114: 455 | I114: 420.00 | J114: Profit of Rs.95.00/- | K114: 95.00 | L114: 26.39% | M114: Successful | N114: 2015-01-20
A115: 21 | B115: 2015-01-08 | D115: NRB Bearing | E115: Buy | F115: 130.00 | H115: 175.5 | I115: 165.00 | J115: Profit of Rs 45.50/- | K115: 45.50 | L115: 35.00% | M115: Successful | N115: 2017-12-19
A116: 22 | B116: 2015-02-05 | D116: GSFC | E116: Accu | F116: 98.00 | H116: 120 | I116: 120.00 | J116: Target Achieved | K116: 22.00 | L116: 22.45% | M116: Successful | N116: 2017-01-18
A117: 23 | B117: 2015-02-05 | D117: Sundrmfast | E117: Accu | F117: 196.00 | H117: 262 | I117: 255.00 | J117: Target Achieved | K117: 66.00 | L117: 33.67% | M117: Successful | N117: 2016-08-17
A118: 24 | B118: 2015-03-04 | D118: GPPL | E118: Accu | F118: 235 | H118: 77.00 | I118: 280-285 | J118: Loss of Rs.158/- | K118: -158.00 | L118: -67.23% | M118: Unsuccessful | N118: 2019-02-26
A119: 25 | B119: 2015-03-04 | D119: ORIENTCEM | E119: Accu | F119: 185.00 | H119: 224 | I119: 220-225 | J119: Target Achieved | K119: 39.00 | L119: 21.08% | M119: Successful | N119: 2016-10-04
A120: 26 | B120: 2015-03-27 | D120: PFS | E120: Accu | F120: 49.5 | H120: 15.85 | I120: 67.00 | J120: Loss of Rs.33.65/- | K120: -33.65 | L120: -68% | M120: Unsuccessful | N120: 2019-06-11
A121: 27 | B121: 2015-03-30 | D121: Walchandnagar Ind Ltd | E121: Accu | F121: 183.50 | H121: 219 | I121: 218.00 | J121: Profit of Rs.35.50/- | K121: 35.50 | L121: 19.35% | M121: Successful | N121: 2015-04-09
A122: 28 | B122: 2015-04-20 | D122: Kalpataru Power Transmission Ltd | E122: Accu | F122: =(227+237)/2 -> 232.00 | H122: 298 | I122: 298.00 | J122: Target Achieved | K122: 66.00 | L122: 28.45% | M122: Successful | N122: 2017-03-29
A123: 29 | B123: 2015-05-04 | D123: Mastek Ltd | E123: Buy | F123: 385.00 | H123: =212.5+331 -> 543.5 | I123: 510.00 | J123: Profit of Rs 158.50/- | K123: 158.50 | L123: 41.17% | M123: Successful | N123: 2015-08-19
A124: 30 | B124: 2015-05-04 | D124: Suprajit Eng | E124: Buy | F124: 115.50 | H124: 146 | I124: 142.00 | J124: Profit of Rs 30.50/- | K124: 30.50 | L124: 26.41% | M124: Successful | N124: 2015-07-17
A125: 31 | B125: 2015-05-27 | D125: TCI | E125: Buy | F125: 237.50 | H125: 279.5 | I125: 278.00 | J125: Target Achieved | K125: 42.00 | L125: 17.68% | M125: Successful | N125: 2015-08-06
A126: 32 | B126: 2015-06-19 | D126: HSIL | E126: Accu | F126: 340.00 | H126: 448 | I126: 448.00 | J126: Target Achieved | K126: 108.00 | L126: 31.76% | M126: Successful | N126: 2017-10-10
A127: 33 | B127: 2015-07-06 | D127: Capital First | E127: Accu | F127: 390.00 | H127: 460 | I127: 460.00 | J127: Target Achieved | K127: =H127-F127 -> 70.00 | L127: =K127/F127 -> 17.95% | M127: Successful | N127: 2016-04-18
A128: 34 | B128: 2015-07-10 | D128: Dolphin OffShore | E128: Accu | F128: 122.5 | H128: 61.00 | I128: 172.00 | J128: Loss of Rs.61.50/- | K128: -61.50 | L128: -50.20% | M128: Unsuccessful | N128: 2018-08-21
A129: 35 | B129: 2015-08-03 | D129: Allcargo logistics | E129: Accu | F129: 297.50 | H129: 350 | I129: 360.00 | J129: Profit of Rs 52.50/- | K129: 52.50 | L129: 17.65% | M129: Successful | N129: 2015-08-16
A130: 36 | B130: 2015-08-03 | D130: Camline Fine | E130: Accu | F130: 115.50 | H130: 149 | I130: 140.00 | J130: Profit of Rs 33.50/- | K130: 33.50 | L130: 29.00% | M130: Successful | N130: 2017-01-05
A131: 37 | B131: 2015-09-04 | D131: TCI | E131: Accu | F131: 226.00 | H131: 292 | I131: 292.00 | J131: Target Achieved | K131: 66.00 | L131: 29.20% | M131: Successful | N131: 2015-10-09
A132: 38 | B132: 2015-09-07 | D132: Kalpataru Power Transmission Ltd | E132: Accu | F132: 232.50 | H132: 312.5 | I132: 310.00 | J132: Target Achieved | K132: 80.00 | L132: 34.41% | M132: Successful | N132: 2017-03-29
A133: 39 | B133: 2015-09-21 | D133: LLOYD ELECTRIC & ENG LTD | E133: Accu | F133: 196.50 | H133: 238 | I133: 238.00 | J133: Target Achieved | K133: 41.50 | L133: 21.12% | M133: Successful | N133: 2015-10-14
A134: 40 | B134: 2015-09-24 | D134: L&T Finance Holding | E134: Accu | F134: 65.00 | H134: 82 | I134: 82.00 | J134: Target Achieved | K134: 17.00 | L134: 26.15% | M134: Successful | N134: 2016-07-27
A135: 41 | B135: 2015-10-14 | D135: KEC International ltd | E135: Accu | F135: 144.00 | H135: 182.5 | I135: 181.00 | J135: Target Achieved | K135: 38.50 | L135: 26.74% | M135: Successful | N135: 2017-03-23
A136: 42 | B136: 2015-10-14 | D136: Gruh Finance | E136: Accu | F136: 264.00 | H136: 311 | I136: 311.00 | J136: Target Achieved | K136: 47.00 | L136: 17.80% | M136: Successful | N136: 2016-08-22
A137: 43 | B137: 2015-11-10 | D137: Pidilitind | E137: Buy | F137: 549.50 | H137: 630 | I137: 630.00 | J137: Target Achieved | K137: 80.50 | L137: 14.65% | M137: Successful | N137: 2016-02-19
A138: 44 | B138: 2015-12-04 | D138: Zensar Technology | E138: Accu | F138: 1027.50 | H138: 1315 | I138: 1250.00 | J138: Target Achieved | K138: 287.50 | L138: 27.98% | M138: Successful | N138: 2018-05-24
A139: 45 | B139: 2015-12-29 | D139: Vinati Organics Ltd | E139: Accu | F139: 465.00 | H139: 540 | I139: 540.00 | J139: Target Achieved | K139: 75.00 | L139: 16.13% | M139: Successful | N139: 2016-06-09
A140: 46 | B140: 2016-01-11 | D140: GSFC | E140: Buy | F140: 81.00 | H140: 110 | I140: 110.00 | J140: Target Achieved | K140: 29.00 | L140: 35.80% | M140: Successful | N140: 2017-01-10
A141: 47 | B141: 2016-01-13 | D141: SSWL | E141: Buy | F141: 417.50 | H141: 547 | I141: 535.00 | J141: Target Achieved | K141: 129.50 | L141: 31.02% | M141: Successful | N141: 2016-07-27
A142: 48 | B142: 2016-02-08 | D142: Persistent System Ltd | E142: Accu | F142: 650.00 | H142: 800 | I142: 800.00 | J142: Target Achieved | K142: 150.00 | L142: 23.08% | M142: Successful | N142: 2018-02-23
A143: 49 | B143: 2016-03-04 | D143: UPL | E143: Accu | F143: 437.50 | H143: 504.5 | I143: 522.00 | J143: Profit of Rs.67/- | K143: 67.00 | L143: 15.31% | M143: Successful | N143: 2016-04-20
A144: 50 | B144: 2016-03-09 | D144: Ashoka Buildcon Ltd | E144: Accu | F144: 189.50 | H144: 218 | I144: 218.00 | J144: Target Achieved | K144: 28.50 | L144: 15.04% | M144: Successful | N144: 2017-10-26
A145: 51 | B145: 2016-04-11 | D145: PTC INDIA FIN SERV LTD | E145: Accu | F145: 36.5 | H145: 15.85 | I145: 60.00 | J145: Loss of Rs.20.65/- | K145: -20.65 | L145: -56.58% | M145: Unsuccessful | N145: 2019-06-11
A146: 52 | B146: 2016-04-12 | D146: CAMLINFINE $ | E146: Accu | F146: 93.00 | H146: 149 | I146: 140.00 | J146: Profit of Rs 56/- | K146: 56.00 | L146: 60.22% | M146: Successful | N146: 2017-01-05
A147: 53 | B147: 2016-04-12 | D147: Greaves Cotton Ltd. | E147: Accu | F147: 130.00 | H147: 150 | I147: 150-155 | J147: Target Achieved | K147: 20.00 | L147: 15.38% | M147: Successful | N147: 2016-07-13
A148: 54 | B148: 2016-04-13 | D148: DHFL | E148: Accu | F148: 196.00 | H148: 299 | I148: 299.00 | J148: Target Achieved | K148: 103.00 | L148: 52.55% | M148: Successful | N148: 2016-09-07
A149: 55 | B149: 2016-04-13 | D149: Magma | E149: Accu | F149: 88.00 | H149: 103 | I149: 103.00 | J149: Target Achieved | K149: 15.00 | L149: 17.05% | M149: Successful | N149: 2016-06-09
A150: 56 | B150: 2016-05-02 | D150: KEC International ltd $ | E150: Accu | F150: 127.50 | H150: 148 | I150: 148-150 | J150: Target Achieved | K150: =H150-F150 -> 20.50 | L150: =K150/F150 -> 16.08% | M150: Successful | N150: 2016-07-13
A151: 57 | B151: 2016-05-03 | D151: Mindtree | E151: Accu | F151: 675.00 | H151: 815 | I151: 790-800 | J151: Target Achieved | K151: =H151-F151 -> 140.00 | L151: =K151/F151 -> 20.74% | M151: Successful | N151: 2018-02-23
A152: 58 | B152: 2016-06-01 | D152: Atulauto | E152: Accu | F152: 500 | H152: 232.50 | I152: 565-570 | J152: Loss of Rs.267.50 /- | K152: =H152-F152 -> -267.50 | L152: =K152/F152 -> -53.50% | M152: Unsuccessful | N152: 2019-09-27
A153: 59 | B153: 2016-06-06 | D153: TRITURBINE | E153: Accu | F153: 110.00 | H153: 126.5 | I153: 125.00 | J153: Profit of Rs.16.50/- | K153: =H153-F153 -> 16.50 | L153: =K153/F153 -> 15.00% | M153: Successful | N153: 2016-07-01
A154: 60 | B154: 2016-06-17 | D154: Pennar Industries Ltd | E154: Accu | F154: 44.00 | H154: 69.5 | I154: 69.50 | J154: Profit of Rs.25.50/- | K154: =H154-F154 -> 25.50 | L154: =K154/F154 -> 57.95% | M154: Successful | N154: 2017-08-30
A155: 61 | B155: 2016-06-28 | D155: EVEREADY | E155: Accu | F155: 262.50 | H155: 340 | I155: 333.00 | J155: Profit of Rs.77.50/- | K155: 77.50 | L155: 29.52% | M155: Successful | N155: 2017-10-09
A156: 62 | B156: 2016-06-28 | D156: FIEMIND | E156: Accu | F156: 840.00 | H156: 1230 | I156: 1230.00 | J156: Target Achieved | K156: 390.00 | L156: 46.43% | M156: Successful | N156: 2016-10-06
A157: 63 | B157: 2016-07-05 | D157: Bajaj Corp Ltd | E157: Accu | F157: 395 | H157: =(468.5+342.5)/2 -> 405.50 | I157: 510.00 | J157: Profit of Rs.10.50/- | K157: =H157-F157 -> 10.50 | L157: =K157/F157 -> 3% | M157: Neutral | N157: 2019-05-21
A158: 64 | B158: 2016-08-02 | D158: GPPL $ | E158: Buy | F158: =169.5-12.8 -> 156.7 | H158: 77.00 | I158: 198-200 | J158: Loss of Rs.79.7/- | K158: -79.70 | L158: -50.86% | M158: Unsuccessful | N158: 2019-02-26
A159: 65 | B159: 2016-08-04 | D159: WONDERLA HOLIDAYS LTD | E159: Accu | F159: 400 | H159: 305.00 | I159: 475.00 | J159: Loss of Rs.95/- | K159: -95.00 | L159: -23.75% | M159: Unsuccessful | N159: 2019-05-21
A160: 66 | B160: 2016-08-11 | D160: CAMLINFINE | E160: Accu | F160: 86.50 | H160: 130 | I160: 130.00 | J160: Profit of Rs.43.50/- | K160: 43.50 | L160: 50.29% | M160: Successful | N160: 2017-12-22
A161: 67 | B161: 2016-08-18 | D161: GRANULES | E161: Accu | F161: 133.5 | H161: 126.50 | I161: 178.00 | J161: Exit | K161: -7.00 | L161: -5.24% | M161: Unsuccessful | N161: 2016-09-02
A162: 68 | B162: 2016-08-31 | D162: VA TECH WABAG | E162: Accu | F162: 560.00 | H162: 725 | I162: 725.00 | J162: Target Achieved | K162: 165.00 | L162: 29.46% | M162: Successful | N162: 2016-03-27
A163: 69 | B163: 2016-09-01 | D163: SKIPPER LIMITED | E163: Accu | F163: 160.50 | H163: 210 | I163: 210.00 | J163: Target Achieved | K163: 49.50 | L163: 30.84% | M163: Successful | N163: 2017-05-16
A164: 70 | B164: 2016-10-03 | D164: IFBIND | E164: Accu | F164: 430.00 | H164: 596 | I164: 575.00 | J164: Profit of Rs.166/- | K164: 166.00 | L164: 38.60% | M164: Successful | N164: 2017-02-03
A165: 71 | B165: 2016-10-14 | D165: ASIANTILES | E165: Accu | F165: 280.00 | H165: 345 | I165: 345.00 | J165: Target Achieved | K165: =H165-F165 -> 65.00 | L165: =K165/F165 -> 23.21% | M165: Successful | N165: 2017-03-20
A166: 72 | B166: 2016-10-14 | D166: DEEPIND | E166: Accu | F166: 245.00 | H166: 325.5 | I166: 330.00 | J166: Profit of Rs.80.5/- | K166: 80.50 | L166: =K166/F166 -> 32.86% | M166: Successful | N166: 2017-02-03
A167: 73 | B167: 2016-10-17 | D167: DCBBANK | E167: Accu | F167: 125.00 | H167: 160 | I167: 160.00 | J167: Target Achieved | K167: 35.00 | L167: 28.00% | M167: Successful | N167: 2017-03-09
A168: 74 | B168: 2016-10-17 | D168: ORIENTREF | E168: Accu | F168: 114.00 | H168: 145 | I168: 145.00 | J168: Target Achieved | K168: 31.00 | L168: =K168/F168 -> 27.19% | M168: Successful | N168: 2017-05-04
A169: 75 | B169: 2016-10-17 | D169: GANECOS | E169: Accu | F169: 212.00 | H169: 280 | I169: 276.00 | J169: Profit of Rs.68/- | K169: 68.00 | L169: =K169/F169 -> 32.08% | M169: Successful | N169: 2017-05-03
A170: 76 | B170: 2016-11-04 | D170: NBCC | E170: Accu | F170: 155.00 | H170: 210 | I170: 210.00 | J170: Profit of Rs.55/- | K170: 55.00 | L170: =K170/F170 -> 35.48% | M170: Successful | N170: 2017-07-28
A171: 77 | B171: 2016-12-06 | D171: PRECAM | E171: Accu | F171: 150.5 | H171: 72.50 | I171: 174.00 | J171: Loss of Rs.78/- | K171: -78.00 | L171: -51.83% | M171: Unsuccessful | N171: 2018-08-21
A172: 78 | B172: 2016-12-08 | D172: INFRATEL | E172: Accu | F172: 380.00 | H172: 478 | I172: 468.00 | J172: Target Achieved | K172: =H172-F172 -> 98.00 | L172: =K172/F172 -> 25.79% | M172: Successful | N172: 2017-10-17
A173: 79 | B173: 2016-12-30 | D173: GODREJPROP | E173: Accu | F173: 305.00 | H173: 375 | I173: 375.00 | J173: Target Achieved | K173: =H173-F173 -> 70.00 | L173: =K173/F173 -> 22.95% | M173: Successful | N173: 2017-02-02
A174: 80 | B174: 2017-01-04 | D174: DEEPAKNTR | E174: Accu | F174: 99.50 | H174: 158 | I174: 158.00 | J174: Target Achieved | K174: =H174-F174 -> 58.50 | L174: =K174/F174 -> 58.79% | M174: Successful | N174: 2017-06-12
A175: 81 | B175: 2017-01-04 | D175: DEEPAKNTR | E175: Accu | F175: 99.50 | H175: 158 | I175: 158.00 | J175: Target Achieved | K175: 58.50 | L175: 58.79% | M175: Successful | N175: 2017-06-12
A176: 82 | B176: 2017-02-20 | D176: RECLTD | E176: Accu | F176: 140.50 | H176: 220 | I176: 220.00 | J176: Target Achieved | K176: =H176-F176 -> 79.50 | L176: =K176/F176 -> 56.58% | M176: Successful | N176: 2017-05-09
A177: 83 | B177: 2017-02-20 | D177: SUBROS | E177: Accu | F177: 202.50 | H177: 234 | I177: 234.00 | J177: Target Achieved | K177: 31.50 | L177: 15.56% | M177: Successful | N177: 2017-04-11
A178: 84 | B178: 2017-03-24 | D178: VRLLOG | E178: Accu | F178: 300.50 | H178: 417.5 | I178: 420.00 | J178: Profit of Rs.117/- | K178: =H178-F178 -> 117.00 | L178: =K178/F178 -> 38.94% | M178: Successful | N178: 2017-12-01
A179: 85 | B179: 2017-03-24 | D179: FIEMIND | E179: Accu | F179: 850.00 | H179: 1042.5 | I179: 1023.00 | J179: Profit of Rs 192.50/- | K179: 192.50 | L179: 22.65% | M179: Successful | N179: 2017-04-05
A180: 86 | B180: 2017-04-05 | D180: RATNAMANI | E180: Accu | F180: 785.00 | H180: 930 | I180: 920.00 | J180: Profit of Rs.145/- | K180: =H180-F180 -> 145.00 | L180: =K180/F180 -> 18.47% | M180: Successful | N180: 2017-08-29
A181: 87 | B181: 2017-04-06 | D181: ZEEMEDIA | E181: Accu | F181: 40 | H181: 13.10 | I181: 60.00 | J181: Loss of Rs.26.9/- | K181: -26.90 | L181: -67.25% | M181: Unsuccessful | N181: 2018-02-07
A182: 88 | B182: 2017-04-12 | D182: DABUR | E182: Accu | F182: 289.50 | H182: 354 | I182: 360.00 | J182: Profit of Rs.64.5/- | K182: =H182-F182 -> 64.50 | L182: =K182/F182 -> 22.28% | M182: Successful | N182: 2017-11-01
A183: 89 | B183: 2017-04-20 | D183: KPRMILL | E183: Accu | F183: 700.00 | H183: 840 | I183: 840.00 | J183: Profit of Rs.140/- | K183: 140.00 | L183: 20.00% | M183: Successful | N183: 2017-06-07
A184: 90 | B184: 2017-06-01 | D184: ESSELPACK | E184: Accu | F184: 130.00 | H184: 144.25 | I184: 170.00 | J184: Profit of Rs.14.25/- | K184: 14.25 | L184: 10.96% | M184: Successful | N184: 2019-07-29
A185: 91 | B185: 2017-06-15 | D185: KEI | E185: Accu | F185: 214.50 | H185: 262 | I185: 262.00 | J185: Profit of Rs.47.5/- | K185: 47.50 | L185: 22.14% | M185: Successful | N185: 2017-08-30
A186: 92 | B186: 2017-07-17 | D186: MAYURUNIQ | E186: Accu | F186: 370.00 | H186: 447.5 | I186: 450.00 | J186: Target Achieved | K186: 77.50 | L186: 20.95% | M186: Successful | N186: 2017-10-27
A187: 93 | B187: 2017-07-27 | D187: RAMCOCEM | E187: Accu | F187: 657.50 | H187: 825 | I187: 820.00 | J187: Target Achieved | K187: 167.50 | L187: 25.48% | M187: Successful | N187: 2017-12-21
A188: 94 | B188: 2017-08-17 | D188: FINPIPE | E188: Accu | F188: 605.00 | H188: 750 | I188: 750.00 | J188: Profit of Rs.145/- | K188: 145.00 | L188: 23.97% | M188: Successful | N188: 2017-10-19
A189: 95 | B189: 2017-09-01 | D189: SHK | E189: Accu | F189: 255 | H189: 217.25 | I189: 320.00 | J189: Loss of Rs.37.75/- | K189: -37.75 | L189: -15% | M189: Unsuccessful | N189: 2019-07-15
A190: 96 | B190: 2017-09-19 | D190: SKIPPER | E190: Accu | F190: 215.00 | H190: 258 | I190: 258.00 | J190: Target Achieved | K190: 43.00 | L190: 20.00% | M190: Successful | N190: 2017-11-01
A191: 97 | B191: 2017-09-19 | D191: SKIPPER | E191: Accu | F191: 215.00 | H191: 258 | I191: 258.00 | J191: Target Achieved | K191: 43.00 | L191: 20.00% | M191: Successful | N191: 2017-11-01
A192: 98 | B192: 2017-09-20 | D192: CAMLINFINE$ | E192: Accu | F192: 75.00 | H192: 90 | I192: 90.00 | J192: Profit of Rs.15.00/- | K192: =H192-F192 -> 15.00 | L192: =K192/F192 -> 20.00% | M192: Successful | N192: 2017-10-11
A193: 99 | B193: 2017-10-03 | D193: GNA | E193: Accu | F193: 315.00 | H193: 392 | I193: 384.00 | J193: Profit of Rs.77/- | K193: 77.00 | L193: 24.44% | M193: Successful | N193: 2017-10-09
A194: 100 | B194: 2017-10-05 | D194: NOCIL | E194: Accu | F194: 145.00 | H194: 179 | I194: 180.00 | J194: Profit of Rs.34/- | K194: 34.00 | L194: 23.45% | M194: Successful | N194: 2017-10-17
A195: 101 | B195: 2017-10-06 | D195: CENTURYPLY | E195: Accu | F195: 256.00 | H195: 323 | I195: 320.00 | J195: Target Achieved | K195: 67.00 | L195: 26.17% | M195: Successful | N195: 2017-11-28
A196: 102 | B196: 2017-10-09 | D196: EIHOTEL | E196: Accu | F196: 137.50 | H196: 184 | I196: 183.00 | J196: Profit of Rs.46.5/- | K196: 46.50 | L196: 33.82% | M196: Successful | N196: 2018-01-08
A197: 103 | B197: 2017-10-10 | D197: NRBBEARING | E197: Accu | F197: 125.50 | H197: 158 | I197: 155.00 | J197: Profit of Rs.32.5/- | K197: 32.50 | L197: 25.90% | M197: Successful | N197: 2017-11-28
A198: 104 | B198: 2017-10-10 | D198: BOROSIL | E198: Accu | F198: 895.00 | H198: 1122.5 | I198: 1078.00 | J198: Profit of Rs.227.5/- | K198: 227.50 | L198: 25.42% | M198: Successful | N198: 2018-01-17
A199: 105 | B199: 2017-10-12 | D199: CYIENT | E199: Accu | F199: 525.00 | H199: 629 | I199: 629.00 | J199: Target Achieved | K199: 104.00 | L199: 19.81% | M199: Successful | N199: 2018-01-19
A200: 106 | B200: 2017-11-07 | D200: HATSUN | E200: Accu | F200: 740.00 | H200: 892.5 | I200: 900.00 | J200: Profit of Rs.152.5/- | K200: =H200-F200 -> 152.50 | L200: =K200/F200 -> 20.61% | M200: Successful | N200: 2017-11-13
A201: 107 | B201: 2017-12-04 | D201: SANGHIIND | E201: Accu | F201: 118.50 | H201: 143.5 | I201: 145.00 | J201: Profit of Rs.25/- | K201: =H201-F201 -> 25.00 | L201: =K201/F201 -> 21.10% | M201: Successful | N201: 2017-12-28
A202: 108 | B202: 2017-12-21 | D202: KAJARIACER | E202: Accu | F202: 715 | H202: 500.00 | I202: 872.00 | J202: Loss of Rs.215/- | K202: =H202-F202 -> -215.00 | L202: =K202/F202 -> -30.07% | M202: Unsuccessful | N202: 2019-07-24
A203: 109 | B203: 2017-12-29 | D203: GNA | E203: Accu | F203: 435.00 | H203: 542.5 | I203: 539.00 | J203: Target Achieved | K203: 107.50 | L203: 24.71% | M203: Successful | N203: 2018-04-16
A204: 110 | B204: 2017-12-29 | D204: ZENSARTECH | E204: Accu | F204: 885.00 | H204: 1090 | I204: 1084.00 | J204: Target Achieved | K204: 205.00 | L204: 23.16% | M204: Successful | N204: 2018-04-23
A205: 111 | B205: 2018-04-02 | D205: EVERESTIND | E205: Accu | F205: 478.50 | H205: 442 | I205: 613.00 | J205: Loss of Rs.36.50 /- | K205: =H205-F205 -> -36.50 | L205: =K205/F205 -> -7.63% | M205: Unsuccessful | N205: 2019-10-24
A206: 112 | B206: 2018-04-04 | D206: GPPL$ | E206: Accu | F206: =141.5-7.3 -> 134.2 | H206: 77.00 | I206: 180.00 | J206: Loss of Rs.57.2/- | K206: =H206-F206 -> -57.20 | L206: =K206/F206 -> -42.62% | M206: Unsuccessful | N206: 2019-02-26
A207: 113 | B207: 2018-04-19 | D207: MANPASAND | E207: Accu | F207: 430 | H207: 220.00 | I207: 537.00 | J207: Loss of Rs.210/- | K207: =H207-F207 -> -210.00 | L207: =K207/F207 -> -48.84% | M207: Unsuccessful | N207: 2018-06-01
A208: 114 | B208: 2018-04-30 | D208: HEIDELBERG | E208: Accu | F208: 156 | H208: 196.00 | I208: 196.00 | J208: Profit of Rs.40/- | K208: =H208-F208 -> 40.00 | L208: =K208/F208 -> 26% | M208: Successful | N208: 2019-05-20
A209: 115 | B209: 2018-07-25 | D209: ZEEMEDIA | E209: Accu | F209: 27.5 | H209: 13.10 | I209: 60.00 | J209: Loss of Rs.14.40/- | K209: -14.40 | L209: -52.36% | M209: Unsuccessful | N209: 2018-02-07
A210: 116 | B210: 2018-08-06 | D210: GABRIEL | E210: Accu | F210: 150.00 | H210: 102 | I210: 182.00 | J210: Loss of Rs.48 /- | K210: =H210-F210 -> -48.00 | L210: =K210/F210 -> -32.00% | M210: Unsuccessful | N210: 2019-07-15
A211: 117 | B211: 2018-08-23 | D211: INDIANHUME | E211: Accu | F211: 285.00 | H211: 355 | I211: 364.00 | J211: Profit of Rs.70/- | K211: 70.00 | L211: 24.56% | M211: Successful | N211: 2018-12-21
A212: 118 | B212: 2018-08-29 | D212: GRINDWELL | E212: Accu | F212: 525.00 | H212: 585 | I212: 635.00 | J212: Profit of Rs.60- | K212: =H212-F212 -> 60.00 | L212: =K212/F212 -> 11.43% | M212: Successful | N212: 2019-07-16
A213: 119 | B213: 2018-10-22 | D213: FINPIPE | E213: Accu | F213: 475.00 | H213: 574 | I213: 570.00 | J213: Target Achieved | K213: 99.00 | L213: 20.84% | M213: Successful | N213: 2018-10-30
A214: 120 | B214: 2018-10-24 | D214: GULFOILLUB | E214: Accu | F214: 707.50 | H214: 872 | I214: 872.00 | J214: Target Achieved | K214: 164.50 | L214: 23.25% | M214: Successful | N214: 2019-01-17
A215: 121 | B215: 2018-10-25 | D215: DBCORP | E215: Accu | F215: 164.00 | H215: 204 | I215: 209.00 | J215: Profit of Rs.40/- | K215: 40.00 | L215: 24.39% | M215: Successful | N215: 2019-03-15
A216: 122 | B216: 2018-10-26 | D216: RITES | E216: Accu | F216: 240.00 | H216: 297 | I216: 297.00 | J216: Target Achieved | K216: 57.00 | L216: 23.75% | M216: Successful | N216: 2018-11-13
A217: 123 | B217: 2018-12-05 | D217: BRIGADE | E217: Accu | F217: 202.50 | H217: 255 | I217: 252.00 | J217: Target Achieved | K217: 52.50 | L217: 25.93% | M217: Successful | N217: 2019-03-18
A218: 124 | B218: 2018-12-31 | D218: JKCEMENT | E218: Accu | F218: 710.00 | H218: 866 | I218: 866.00 | J218: Target Achieved | K218: 156.00 | L218: 21.97% | M218: Successful | N218: 2019-03-29
A219: 125 | B219: 2019-02-26 | D219: MARICO | E219: Accu | F219: 340.00 | H219: 398.5 | I219: 411.00 | J219: Profit of Rs.58.50/- | K219: 58.50 | L219: 17.21% | M219: Successful | N219: 2019-10-22
A220: 126 | B220: 2019-04-04 | D220: ITDCEM | E220: Accu | F220: 130.00 | H220: 65 | I220: 158.00 | J220: Loss of Rs.65 /- | K220: -65.00 | L220: -50.00% | M220: Unsuccessful | N220: 2019-09-18
A221: 127 | B221: 2017-10-09 | D221: RECLTD | E221: Accu | F221: 141.5 | H221: 183.50 | I221: 210.00 | J221: Part Profit of Rs.42/- | K221: 42.00 | L221: 30% | M221: Successful | N221: 2017-11-03 | R221: V
A222: 128 | B222: 2017-12-05 | D222: ALLCARGO | E222: Accu | F222: 172.00 | H222: 155.25 | I222: 230.00 | J222: Loss of Rs.16.75/- | K222: =H222-F222 -> -16.75 | L222: =K222/F222 -> -9.74% | M222: Unsuccessful | N222: 2019-11-18 | R222: V
A223: 129 | B223: 2018-10-25 | D223: GODREJCP | E223: Accu | F223: 707.5 | H223: 850.00 | I223: 890.00 | J223: Part Profit of Rs.142.5/- | K223: 142.50 | L223: 20% | M223: Successful | N223: 2018-12-19 | R223: V
A224: 130 | B224: 2017-05-22 | D224: GREAVESCOT | E224: Accu | F224: 127.6 | H224: 138.00 | I224: 190.00 | J224: Profit of Rs.10.40 | K224: 10.40 | L224: 8% | M224: Successful | N224: 2019-11-05 | R224: K
A225: 131 | B225: 2018-02-27 | D225: MOLDTKPAC | E225: Accu | F225: 317.00 | I225: 398.00 | M225: Open | R225: K
A226: 132 | B226: 2018-03-05 | D226: LICHSGFIN | E226: Accu | F226: =510-14.4 -> 495.60 | H226: 350 | I226: 672.00 | J226: Loss of Rs.145.60/- | K226: =H226-F226 -> -145.60 | L226: =K226/F226 -> -29.38% | M226: Unsuccessful | N226: 2020-02-26 | R226: K
A227: 133 | B227: 2018-05-17 | D227: PHILIPCARB | E227: Accu | F227: 230.30 | I227: 348.00 | M227: Open | R227: V
A228: 134 | B228: 2018-06-07 | D228: KEC | E228: Accu | F228: =342.5-5.1 -> 337.40 | I228: 439.00 | M228: Open | R228: K
A229: 135 | B229: 2018-07-04 | D229: ASHOKLEY | E229: Accu | F229: =127.5-5.53 -> 121.97 | I229: 170.00 | M229: Open | R229: K
A230: 136 | B230: 2018-07-13 | D230: FCONSUMER | E230: Accu | F230: 46.50 | H230: 17 | I230: 59.00 | J230: Loss of Rs.29.50/- | K230: =H230-F230 -> -29.50 | L230: =K230/F230 -> -63.44% | M230: Unsuccessful | N230: 2020-02-26 | R230: V
A231: 137 | B231: 2018-10-23 | D231: JKPAPER | E231: Accu | F231: 156.50 | I231: 191.00 | M231: Open | R231: V
A232: 138 | B232: 2018-12-05 | D232: CCL | E232: Accu | F232: 259.50 | I232: 321.00 | M232: Open | R232: K
A233: 139 | B233: 2018-12-05 | D233: VARROC | E233: Accu | F233: 715.00 | H233: 445 | I233: 840.00 | J233: Loss of Rs.270/- | K233: =H233-F233 -> -270.00 | L233: =K233/F233 -> -37.76% | M233: Unsuccessful | N233: 2019-12-01 | R233: V
A234: 140 | B234: 2019-01-04 | D234: MGL | E234: Accu | F234: 895.00 | H234: 1165 | I234: 1185.00 | J234: Profit of Rs.270/- | K234: 270.00 | L234: 30.17% | M234: Successful | N234: 2020-01-17 | R234: V
A235: 141 | B235: 2019-04-04 | D235: COCHINSHIP | E235: Accu | F235: 387.00 | H235: 490 | I235: 490.00 | J235: Target Achieved | K235: 103.00 | L235: 26.61% | M235: Successful | N235: 2020-01-20 | R235: V
A236: 142 | B236: 2019-04-23 | D236: MAHINDCIE | E236: Buy | F236: 215-225 | I236: 284.00 | M236: Open | R236: V
A237: 143 | B237: 2019-06-06 | D237: RADICO | E237: Buy | F237: 334.00 | H237: 405 | I237: 419.00 | J237: Profit of Rs.71/- | K237: =H237-F237 -> 71.00 | L237: =K237/F237 -> 21.26% | M237: Successful | N237: 2020-01-30 | R237: V
A238: 144 | B238: 2019-06-25 | D238: M&MFIN | E238: Accu | F238: 386 | H238: 395.00 | I238: 452.00 | J238: Profit of Rs.9/- | K238: =H238-F238 -> 9.00 | L238: =K238/F238 -> 2% | M238: Neutral | N238: 2020-02-07 | R238: V
A239: 145 | B239: 2019-08-30 | D239: INDHOTEL | E239: Accu | F239: 135-140 | I239: 190.00 | M239: Open | R239: V
A240: 146 | B240: 2019-09-23 | D240: KNRCON | E240: Accu | F240: 235.00 | H240: 295 | I240: 296.00 | J240: Profit of Rs.60/- | K240: =H240-F240 -> 60.00 | L240: =K240/F240 -> 25.53% | M240: Successful | N240: 2020-01-14 | R240: V
A241: 147 | B241: 2019-10-14 | D241: KEC$ | E241: Accu | F241: 277.50 | H241: 333 | I241: 333.00 | J241: Profit of Rs.55.50/- | K241: =H241-F241 -> 55.50 | L241: =K241/F241 -> 20.00% | M241: Successful | N241: 2020-01-16 | R241: K
A242: 148 | B242: 2019-10-14 | D242: MGL$ | E242: Accu | F242: 930.00 | H242: 1165 | I242: 1200.00 | J242: Profit of Rs.235/- | K242: =H242-F242 -> 235.00 | L242: =K242/F242 -> 25.27% | M242: Successful | N242: 2020-01-17 | R242: K
... 5 more rows

Sheet Sheet2 (hidden)
A1: SYMBOL | B1: SERIES | C1: OPEN | D1: HIGH | E1: LOW | F1: CLOSE | G1: LAST | H1: PREVCLOSE | I1: TOTTRDQTY | J1: TOTTRDVAL | K1: TIMESTAMP | L1: TOTALTRADES | M1: ISIN | N1: ISIN
A2: 20MICRONS | B2: EQ | C2: 31.6 | D2: 32.6 | E2: 30.15 | F2: 31.15 | G2: 30.25 | H2: 31.2 | I2: 30895 | J2: 975811.95 | K2: 2020-03-02 | L2: 292 | M2: INE144J01027
A3: 21STCENMGM | B3: EQ | C3: 12.1 | D3: 12.5 | E3: 12.1 | F3: 12.1 | G3: 12.1 | H3: 12.3 | I3: 35334 | J3: 439541.4 | K3: 2020-03-02 | L3: 19 | M3: INE253B01015
A4: 3IINFOTECH | B4: EQ | C4: 2 | D4: 2.05 | E4: 1.9 | F4: 1.9 | G4: 1.95 | H4: 1.95 | I4: 1659814 | J4: 3251102.1 | K4: 2020-03-02 | L4: 724 | M4: INE748C01020
A5: 3MINDIA | B5: EQ | C5: 20805 | D5: 20995 | E5: 20000 | F5: 20131.65 | G5: 20100 | H5: 20575.25 | I5: 3958 | J5: 81098715.15 | K5: 2020-03-02 | L5: 1484 | M5: INE470A01017
A6: 3PLAND | B6: EQ | C6: 4.75 | D6: 4.75 | E6: 4.35 | F6: 4.5 | G6: 4.5 | H6: 4.55 | I6: 156 | J6: 684.65 | K6: 2020-03-02 | L6: 7 | M6: INE105C01023
A7: 5PAISA | B7: EQ | C7: 189.9 | D7: 189.9 | E7: 155.6 | F7: 162.1 | G7: 160.5 | H7: 158.9 | I7: 5856 | J7: 957152.3 | K7: 2020-03-02 | L7: 201 | M7: INE618L01018
A8: 63MOONS | B8: EQ | C8: 89.2 | D8: 94.7 | E8: 86.05 | F8: 87.95 | G8: 87 | H8: 88.7 | I8: 107060 | J8: 9664322.05 | K8: 2020-03-02 | L8: 2322 | M8: INE111B01023
A9: A2ZINFRA | B9: EQ | C9: 4.8 | D9: 4.8 | E9: 4.1 | F9: 4.4 | G9: 4.2 | H9: 4.5 | I9: 188793 | J9: 849907.65 | K9: 2020-03-02 | L9: 372 | M9: INE619I01012
A10: AARTIDRUGS | B10: EQ | C10: 702 | D10: 729 | E10: 660 | F10: 668.3 | G10: 675 | H10: 692.95 | I10: 82483 | J10: 57671768.75 | K10: 2020-03-02 | L10: 5310 | M10: INE767A01016
A11: AARTIIND | B11: EQ | C11: 986 | D11: 999.5 | E11: 956 | F11: 971 | G11: 977.4 | H11: 976.05 | I11: 306520 | J11: 301501168.2 | K11: 2020-03-02 | L11: 12384 | M11: INE769A01020
A12: AARVEEDEN | B12: EQ | C12: 12.05 | D12: 12.8 | E12: 11.7 | F12: 11.8 | G12: 11.75 | H12: 12.2 | I12: 3360 | J12: 40491.35 | K12: 2020-03-02 | L12: 135 | M12: INE273D01019
A13: AAVAS | B13: EQ | C13: 1877 | D13: 1916 | E13: 1846.35 | F13: 1858.4 | G13: 1850 | H13: 1878.85 | I13: 183494 | J13: 342717035.4 | K13: 2020-03-02 | L13: 8615 | M13: INE216P01012
A14: ABAN | B14: EQ | C14: 20.5 | D14: 20.9 | E14: 20 | F14: 20.15 | G14: 20.15 | H14: 20.25 | I14: 51886 | J14: 1061495.55 | K14: 2020-03-02 | L14: 688 | M14: INE421A01028
A15: ABB | B15: EQ | C15: 1185 | D15: 1198.9 | E15: 1182.05 | F15: 1190.2 | G15: 1190 | H15: 1185 | I15: 99510 | J15: 118515856.2 | K15: 2020-03-02 | L15: 2500 | M15: INE117A01022
A16: ABBOTINDIA | B16: EQ | C16: 15875 | D16: 16099.9 | E16: 15210 | F16: 15393.6 | G16: 15400 | H16: 15718.95 | I16: 15393 | J16: 240980627 | K16: 2020-03-02 | L16: 4211 | M16: INE358A01014
A17: ABCAPITAL | B17: EQ | C17: 79 | D17: 79.8 | E17: 75.8 | F17: 76.7 | G17: 76.6 | H17: 77.5 | I17: 1238881 | J17: 96896882.35 | K17: 2020-03-02 | L17: 18353 | M17: INE674K01013
A18: ABFRL | B18: EQ | C18: 252.1 | D18: 260 | E18: 234.55 | F18: 238 | G18: 240.65 | H18: 251.4 | I18: 666569 | J18: 163897202.1 | K18: 2020-03-02 | L18: 18442 | M18: INE647O01011
A19: ABSLBANETF | B19: EQ | C19: 292.49 | D19: 292.49 | E19: 292.49 | F19: 292.49 | G19: 292.49 | H19: 292 | I19: 1 | J19: 292.49 | K19: 2020-03-02 | L19: 1 | M19: INF209KB1O58
A20: ABSLNN50ET | B20: EQ | C20: 300 | D20: 300 | E20: 270 | F20: 270 | G20: 270 | H20: 267.85 | I20: 60 | J20: 16260.6 | K20: 2020-03-02 | L20: 6 | M20: INF209KB1B87
A21: ACC | B21: EQ | C21: 1340.45 | D21: 1356.45 | E21: 1270 | F21: 1284.2 | G21: 1275 | H21: 1320.85 | I21: 612866 | J21: 813650061 | K21: 2020-03-02 | L21: 20586 | M21: INE012A01025
A22: ACCELYA | B22: EQ | C22: 1045.95 | D22: 1059.75 | E22: 980 | F22: 1039.05 | G22: 1050 | H22: 1045.95 | I22: 15573 | J22: 15869187.85 | K22: 2020-03-02 | L22: 752 | M22: INE793A01012
A23: ACE | B23: EQ | C23: 71 | D23: 72.45 | E23: 67 | F23: 68.1 | G23: 67.35 | H23: 70.05 | I23: 136309 | J23: 9578688.25 | K23: 2020-03-02 | L23: 1869 | M23: INE731H01025
A24: ADANIENT | B24: EQ | C24: 223 | D24: 226.7 | E24: 216.15 | F24: 218.6 | G24: 218 | H24: 218.65 | I24: 3162614 | J24: 702561691.2 | K24: 2020-03-02 | L24: 19406 | M24: INE423A01024
A25: ADANIGAS | B25: EQ | C25: 140.3 | D25: 146.4 | E25: 130.55 | F25: 133.7 | G25: 134 | H25: 134.05 | I25: 5583534 | J25: 777532456.5 | K25: 2020-03-02 | L25: 43518 | M25: INE399L01023
A26: ADANIGREEN | B26: EQ | C26: 156.6 | D26: 162.65 | E26: 150 | F26: 156.05 | G26: 159 | H26: 154.95 | I26: 1127956 | J26: 181073276.4 | K26: 2020-03-02 | L26: 12138 | M26: INE364U01010
A27: ADANIPORTS | B27: EQ | C27: 346.1 | D27: 351.05 | E27: 338.3 | F27: 340.65 | G27: 340.5 | H27: 342.2 | I27: 2510491 | J27: 868759795.3 | K27: 2020-03-02 | L27: 38730 | M27: INE742F01042
A28: ADANIPOWER | B28: EQ | C28: 49.2 | D28: 50.05 | E28: 46.45 | F28: 47.05 | G28: 46.75 | H28: 47.3 | I28: 9497793 | J28: 462318026.5 | K28: 2020-03-02 | L28: 21981 | M28: INE814H01011
A29: ADANITRANS | B29: EQ | C29: 259 | D29: 274.05 | E29: 248.15 | F29: 254.4 | G29: 258 | H29: 251.9 | I29: 295171 | J29: 76739801.8 | K29: 2020-03-02 | L29: 6449 | M29: INE931S01010
A30: ADFFOODS | B30: EQ | C30: 266.7 | D30: 274.95 | E30: 255.1 | F30: 259 | G30: 258 | H30: 264.4 | I30: 17556 | J30: 4642092.65 | K30: 2020-03-02 | L30: 606 | M30: INE982B01019
A31: ADHUNIKIND | B31: EQ | C31: 34.05 | D31: 34.65 | E31: 32.35 | F31: 32.35 | G31: 32.35 | H31: 34.05 | I31: 258688 | J31: 8607829.95 | K31: 2020-03-02 | L31: 105 | M31: INE452L01012
A32: ADLABS | B32: BE | C32: 3.8 | D32: 3.8 | E32: 3.55 | F32: 3.75 | G32: 3.7 | H32: 3.65 | I32: 53929 | J32: 203038.6 | K32: 2020-03-02 | L32: 110 | M32: INE172N01012
A33: ADORWELD | B33: EQ | C33: 291 | D33: 311.9 | E33: 288.1 | F33: 293.45 | G33: 295 | H33: 296 | I33: 3114 | J33: 926372.45 | K33: 2020-03-02 | L33: 303 | M33: INE045A01017
A34: ADROITINFO | B34: BE | C34: 6.6 | D34: 6.9 | E34: 6.6 | F34: 6.6 | G34: 6.6 | H34: 6.6 | I34: 1022 | J34: 6748.8 | K34: 2020-03-02 | L34: 8 | M34: INE737B01033
A35: ADSL | B35: BE | C35: 18.1 | D35: 19 | E35: 18 | F35: 18.6 | G35: 18.1 | H35: 18.1 | I35: 24727 | J35: 464069 | K35: 2020-03-02 | L35: 73 | M35: INE102I01027
A36: ADVANIHOTR | B36: EQ | C36: 54.1 | D36: 54.1 | E36: 51.1 | F36: 51.45 | G36: 51.2 | H36: 51 | I36: 1680 | J36: 87199.85 | K36: 2020-03-02 | L36: 37 | M36: INE199C01026
A37: ADVENZYMES | B37: EQ | C37: 153.2 | D37: 156.7 | E37: 145.05 | F37: 147.05 | G37: 146.75 | H37: 152.4 | I37: 89170 | J37: 13500832.65 | K37: 2020-03-02 | L37: 2000 | M37: INE837H01020
A38: AEGISCHEM | B38: EQ | C38: 226.8 | D38: 236 | E38: 211 | F38: 214.55 | G38: 214.5 | H38: 223.3 | I38: 165274 | J38: 36964217.35 | K38: 2020-03-02 | L38: 5109 | M38: INE208C01025
A39: AFFLE | B39: EQ | C39: 1860 | D39: 1947 | E39: 1756 | F39: 1802.25 | G39: 1800 | H39: 1798.9 | I39: 296739 | J39: 558343592 | K39: 2020-03-02 | L39: 27962 | M39: INE00WC01019
A40: AGARIND | B40: EQ | C40: 74.95 | D40: 74.95 | E40: 70 | F40: 70.8 | G40: 73 | H40: 71.55 | I40: 6328 | J40: 455791.75 | K40: 2020-03-02 | L40: 140 | M40: INE204E01012
A41: AGCNET | B41: EQ | C41: 439 | D41: 441.95 | E41: 404 | F41: 411.5 | G41: 405 | H41: 422.15 | I41: 27900 | J41: 11859507.2 | K41: 2020-03-02 | L41: 1018 | M41: INE676A01019
A42: AGRITECH | B42: EQ | C42: 39.25 | D42: 40.45 | E42: 38.75 | F42: 39 | G42: 38.8 | H42: 38.35 | I42: 4519 | J42: 177624.3 | K42: 2020-03-02 | L42: 134 | M42: INE449G01018
A43: AGROPHOS | B43: EQ | C43: 13.4 | D43: 14.75 | E43: 13.4 | F43: 13.9 | G43: 13.9 | H43: 14.05 | I43: 210383 | J43: 2972460.95 | K43: 2020-03-02 | L43: 1173 | M43: INE740V01019
A44: AHLEAST | B44: EQ | C44: 196.95 | D44: 196.95 | E44: 188 | F44: 190.05 | G44: 194 | H44: 186.05 | I44: 4636 | J44: 882467.5 | K44: 2020-03-02 | L44: 51 | M44: INE926K01017
A45: AHLUCONT | B45: EQ | C45: 349.95 | D45: 366 | E45: 346.05 | F45: 350.05 | G45: 349 | H45: 350 | I45: 18295 | J45: 6533648.95 | K45: 2020-03-02 | L45: 679 | M45: INE758C01029
A46: AHLWEST | B46: EQ | C46: 328.55 | D46: 339.4 | E46: 290.65 | F46: 300.15 | G46: 295 | H46: 328.05 | I46: 1309 | J46: 408340.75 | K46: 2020-03-02 | L46: 148 | M46: INE915K01010
A47: AIAENG | B47: EQ | C47: 1780 | D47: 1814.4 | E47: 1720.05 | F47: 1737.05 | G47: 1755 | H47: 1788.65 | I47: 261838 | J47: 463629766.5 | K47: 2020-03-02 | L47: 7906 | M47: INE212H01026
A48: AIONJSW | B48: EQ | C48: 13.4 | D48: 13.8 | E48: 12.7 | F48: 12.8 | G48: 12.7 | H48: 13.35 | I48: 117001 | J48: 1533930.3 | K48: 2020-03-02 | L48: 349 | M48: INE743C01021
A49: AIRAN | B49: EQ | C49: 11.6 | D49: 11.95 | E49: 11.6 | F49: 11.8 | G49: 11.8 | H49: 11.6 | I49: 6413 | J49: 75776.45 | K49: 2020-03-02 | L49: 38 | M49: INE645W01026
A50: AJANTPHARM | B50: EQ | C50: 1393 | D50: 1438 | E50: 1348 | F50: 1394.7 | G50: 1395.25 | H50: 1385.15 | I50: 135654 | J50: 189840977.6 | K50: 2020-03-02 | L50: 11422 | M50: INE031B01049
A51: AJMERA | B51: EQ | C51: 97 | D51: 102 | E51: 94.5 | F51: 95.95 | G51: 94.7 | H51: 95.75 | I51: 38932 | J51: 3792566.45 | K51: 2020-03-02 | L51: 847 | M51: INE298G01027
A52: AKASH | B52: BE | C52: 96 | D52: 100 | E52: 96 | F52: 96 | G52: 96 | H52: 96 | I52: 200 | J52: 19600 | K52: 2020-03-02 | L52: 4 | M52: INE737W01013
A53: AKSHARCHEM | B53: EQ | C53: 290 | D53: 290 | E53: 252.55 | F53: 261.6 | G53: 261 | H53: 275.9 | I53: 6353 | J53: 1745997.95 | K53: 2020-03-02 | L53: 321 | M53: INE542B01011
A54: AKSHOPTFBR | B54: EQ | C54: 5.5 | D54: 5.9 | E54: 5.5 | F54: 5.8 | G54: 5.85 | H54: 5.65 | I54: 192127 | J54: 1120587.7 | K54: 2020-03-02 | L54: 320 | M54: INE523B01011
A55: AKZOINDIA | B55: EQ | C55: 2469.65 | D55: 2498.25 | E55: 2356.05 | F55: 2403.85 | G55: 2390 | H55: 2350.55 | I55: 44277 | J55: 108683986.5 | K55: 2020-03-02 | L55: 5697 | M55: INE133A01011
A56: ALANKIT | B56: EQ | C56: 16.5 | D56: 16.5 | E56: 14.9 | F56: 15 | G56: 14.9 | H56: 16.55 | I56: 352700 | J56: 5523714.25 | K56: 2020-03-02 | L56: 641 | M56: INE914E01040
A57: ALBERTDAVD | B57: EQ | C57: 415 | D57: 428 | E57: 398.1 | F57: 400.95 | G57: 400.1 | H57: 404.1 | I57: 6448 | J57: 2650223.35 | K57: 2020-03-02 | L57: 643 | M57: INE155C01010
A58: ALBK | B58: EQ | C58: 11.45 | D58: 11.9 | E58: 11.25 | F58: 11.35 | G58: 11.25 | H58: 11.3 | I58: 1477416 | J58: 17071606.25 | K58: 2020-03-02 | L58: 3437 | M58: INE428A01015
A59: ALCHEM | B59: BE | C59: 0.8 | D59: 0.85 | E59: 0.75 | F59: 0.75 | G59: 0.8 | H59: 0.8 | I59: 20530 | J59: 15914.1 | K59: 2020-03-02 | L59: 46 | M59: INE964B01033
A60: ALEMBICLTD | B60: EQ | C60: 48.6 | D60: 49.3 | E60: 46 | F60: 46.5 | G60: 46.2 | H60: 48.1 | I60: 63175 | J60: 3032830.9 | K60: 2020-03-02 | L60: 2197 | M60: INE426A01027
A61: ALICON | B61: EQ | C61: 285.6 | D61: 299.9 | E61: 276.2 | F61: 289.1 | G61: 291.25 | H61: 283.85 | I61: 2056 | J61: 597923.75 | K61: 2020-03-02 | L61: 205 | M61: INE062D01024
A62: ALKALI | B62: EQ | C62: 43.05 | D62: 44.7 | E62: 42.25 | F62: 43 | G62: 43 | H62: 43 | I62: 2962 | J62: 128304.05 | K62: 2020-03-02 | L62: 141 | M62: INE773I01017
A63: ALKEM | B63: EQ | C63: 2645 | D63: 2664.45 | E63: 2562.75 | F63: 2600.2 | G63: 2629 | H63: 2625.5 | I63: 131561 | J63: 343686833.2 | K63: 2020-03-02 | L63: 18039 | M63: INE540L01014
A64: ALKYLAMINE | B64: EQ | C64: 1532.25 | D64: 1621 | E64: 1469 | F64: 1519.1 | G64: 1476 | H64: 1511.15 | I64: 54657 | J64: 85857700.65 | K64: 2020-03-02 | L64: 6822 | M64: INE150B01021
A65: ALLCARGO | B65: EQ | C65: 109.1 | D65: 111.6 | E65: 107.1 | F65: 109.05 | G65: 108 | H65: 108.65 | I65: 335136 | J65: 36593436.35 | K65: 2020-03-02 | L65: 2883 | M65: INE418H01029
A66: ALLSEC | B66: EQ | C66: 257.05 | D66: 265 | E66: 232.15 | F66: 252.9 | G66: 257 | H66: 257.05 | I66: 2362 | J66: 602361 | K66: 2020-03-02 | L66: 172 | M66: INE835G01018
A67: ALMONDZ | B67: EQ | C67: 16.8 | D67: 17.3 | E67: 15.9 | F67: 16.05 | G67: 16 | H67: 16.55 | I67: 4045 | J67: 67249.2 | K67: 2020-03-02 | L67: 51 | M67: INE326B01027
A68: ALOKINDS | B68: BE | C68: 11.9 | D68: 11.9 | E68: 11.9 | F68: 11.9 | G68: 11.9 | H68: 12.5 | I68: 1027602 | J68: 12228463.8 | K68: 2020-03-02 | L68: 1692 | M68: INE270A01029
A69: ALPA | B69: EQ | C69: 17.4 | D69: 17.4 | E69: 16.1 | F69: 16.35 | G69: 16.2 | H69: 16.55 | I69: 11647 | J69: 193146.05 | K69: 2020-03-02 | L69: 118 | M69: INE385I01010
A70: ALPHAGEO | B70: EQ | C70: 195 | D70: 204.65 | E70: 192.2 | F70: 195.55 | G70: 196.8 | H70: 190.85 | I70: 43355 | J70: 8538302.8 | K70: 2020-03-02 | L70: 1518 | M70: INE137C01018
A71: ALPSINDUS | B71: BE | C71: 0.8 | D71: 0.8 | E71: 0.8 | F71: 0.8 | G71: 0.8 | H71: 0.8 | I71: 6165 | J71: 4932 | K71: 2020-03-02 | L71: 6 | M71: INE093B01015
A72: AMARAJABAT | B72: EQ | C72: 645 | D72: 667.25 | E72: 618.5 | F72: 624.45 | G72: 628.05 | H72: 637.7 | I72: 1702962 | J72: 1080700463 | K72: 2020-03-02 | L72: 34436 | M72: INE885A01032
A73: AMBER | B73: EQ | C73: 1382 | D73: 1441.75 | E73: 1341 | F73: 1375.2 | G73: 1351 | H73: 1371.2 | I73: 139270 | J73: 197645075.1 | K73: 2020-03-02 | L73: 4902 | M73: INE371P01015
A74: AMBIKCO | B74: EQ | C74: 785.05 | D74: 818.95 | E74: 760.1 | F74: 771.65 | G74: 780 | H74: 785.95 | I74: 6052 | J74: 4760069.5 | K74: 2020-03-02 | L74: 578 | M74: INE540G01014
A75: AMBUJACEM | B75: EQ | C75: 208.6 | D75: 216.55 | E75: 199.8 | F75: 202.25 | G75: 201.55 | H75: 205.05 | I75: 5187934 | J75: 1086879771 | K75: 2020-03-02 | L75: 32395 | M75: INE079A01024
A76: AMDIND | B76: EQ | C76: 15.25 | D76: 15.9 | E76: 15.25 | F76: 15.3 | G76: 15.75 | H76: 15.5 | I76: 971 | J76: 14981.35 | K76: 2020-03-02 | L76: 27 | M76: INE005I01014
A77: AMJLAND | B77: EQ | C77: 18.7 | D77: 19.4 | E77: 18.6 | F77: 18.75 | G77: 18.7 | H77: 19.45 | I77: 7310 | J77: 137616.75 | K77: 2020-03-02 | L77: 123 | M77: INE606A01024
A78: AMRUTANJAN | B78: EQ | C78: 468.55 | D78: 489 | E78: 442.25 | F78: 451.2 | G78: 456 | H78: 461.95 | I78: 48874 | J78: 23092031.5 | K78: 2020-03-02 | L78: 4434 | M78: INE098F01031
A79: ANANTRAJ | B79: EQ | C79: 28.75 | D79: 29.05 | E79: 27 | F79: 27.2 | G79: 27.25 | H79: 27.85 | I79: 145612 | J79: 4113613.1 | K79: 2020-03-02 | L79: 3220 | M79: INE242C01024
A80: ANDHRABANK | B80: EQ | C80: 13.9 | D80: 13.9 | E80: 13.25 | F80: 13.35 | G80: 13.25 | H80: 13.45 | I80: 493141 | J80: 6725942.15 | K80: 2020-03-02 | L80: 1536 | M80: INE434A01013
A81: ANDHRACEMT | B81: EQ | C81: 1.9 | D81: 2 | E81: 1.85 | F81: 1.9 | G81: 2 | H81: 1.85 | I81: 82161 | J81: 160390.3 | K81: 2020-03-02 | L81: 138 | M81: INE666E01012
A82: ANDHRSUGAR | B82: EQ | C82: 260.8 | D82: 267.9 | E82: 255.1 | F82: 256.6 | G82: 255.65 | H82: 259.15 | I82: 21696 | J82: 5689339.9 | K82: 2020-03-02 | L82: 955 | M82: INE715B01013
A83: ANDPAPER | B83: EQ | C83: 261 | D83: 268 | E83: 245.35 | F83: 249.5 | G83: 246 | H83: 255.15 | I83: 7490 | J83: 1895443.75 | K83: 2020-03-02 | L83: 274 | M83: INE435A01028
A84: ANIKINDS | B84: BE | C84: 7.45 | D84: 7.85 | E84: 7.45 | F84: 7.45 | G84: 7.45 | H84: 7.8 | I84: 1803 | J84: 13492.8 | K84: 2020-03-02 | L84: 16 | M84: INE087B01017
A85: ANKITMETAL | B85: BE | C85: 0.5 | D85: 0.5 | E85: 0.45 | F85: 0.45 | G85: 0.45 | H85: 0.5 | I85: 29058 | J85: 13081.05 | K85: 2020-03-02 | L85: 15 | M85: INE106I01010
A86: ANSALAPI | B86: EQ | C86: 5.95 | D86: 6.1 | E86: 5.7 | F86: 5.7 | G86: 5.7 | H86: 5.95 | I86: 99582 | J86: 581936.25 | K86: 2020-03-02 | L86: 126 | M86: INE436A01026
A87: ANSALHSG | B87: BE | C87: 4.55 | D87: 4.7 | E87: 4.35 | F87: 4.35 | G87: 4.35 | H87: 4.55 | I87: 30307 | J87: 133738.95 | K87: 2020-03-02 | L87: 46 | M87: INE880B01015
A88: ANTGRAPHIC | B88: BE | C88: 0.6 | D88: 0.65 | E88: 0.6 | F88: 0.65 | G88: 0.65 | H88: 0.65 | I88: 11292 | J88: 6984.1 | K88: 2020-03-02 | L88: 14 | M88: INE414B01021
A89: ANUP | B89: EQ | C89: 519 | D89: 534.9 | E89: 501 | F89: 505.4 | G89: 515 | H89: 511.95 | I89: 37518 | J89: 19100487.7 | K89: 2020-03-02 | L89: 4398 | M89: INE294Z01018
A90: APARINDS | B90: EQ | C90: 354.1 | D90: 377.9 | E90: 354.1 | F90: 374.35 | G90: 375 | H90: 353.6 | I90: 28007 | J90: 10413043.15 | K90: 2020-03-02 | L90: 3023 | M90: INE372A01015
A91: APCL | B91: EQ | C91: 148 | D91: 148 | E91: 135.5 | F91: 138.75 | G91: 137 | H91: 136.05 | I91: 4041 | J91: 566999.05 | K91: 2020-03-02 | L91: 89 | M91: INE071F01012
A92: APCOTEXIND | B92: EQ | C92: 110 | D92: 110.5 | E92: 105 | F92: 105.95 | G92: 105.95 | H92: 103.9 | I92: 46974 | J92: 5073440.2 | K92: 2020-03-02 | L92: 974 | M92: INE116A01032
A93: APEX | B93: EQ | C93: 282 | D93: 288 | E93: 252 | F93: 267.2 | G93: 254.75 | H93: 271.35 | I93: 198563 | J93: 55260051 | K93: 2020-03-02 | L93: 6101 | M93: INE346W01013
A94: APLAPOLLO | B94: EQ | C94: 1965 | D94: 2005.95 | E94: 1785.05 | F94: 1812.1 | G94: 1799.9 | H94: 1943.5 | I94: 43427 | J94: 81819511 | K94: 2020-03-02 | L94: 4292 | M94: INE702C01019
A95: APLLTD | B95: EQ | C95: 631 | D95: 668.6 | E95: 631 | F95: 656.25 | G95: 666 | H95: 629.95 | I95: 157216 | J95: 102999238.4 | K95: 2020-03-02 | L95: 10399 | M95: INE901L01018
A96: APOLLO | B96: EQ | C96: 78.6 | D96: 78.6 | E96: 70.1 | F96: 71.5 | G96: 71.4 | H96: 73.35 | I96: 34931 | J96: 2571147 | K96: 2020-03-02 | L96: 658 | M96: INE713T01010
A97: APOLLOHOSP | B97: EQ | C97: 1750 | D97: 1777.9 | E97: 1711.2 | F97: 1728.55 | G97: 1725 | H97: 1735.8 | I97: 980080 | J97: 1703720674 | K97: 2020-03-02 | L97: 51371 | M97: INE437A01024
A98: APOLLOPIPE | B98: EQ | C98: 435 | D98: 456.4 | E98: 411.6 | F98: 418.1 | G98: 420 | H98: 420.15 | I98: 7340 | J98: 3145322.15 | K98: 2020-03-02 | L98: 405 | M98: INE126J01016
A99: APOLLOTYRE | B99: EQ | C99: 145 | D99: 145.8 | E99: 134.55 | F99: 136.3 | G99: 136.75 | H99: 142.8 | I99: 7509876 | J99: 1048993338 | K99: 2020-03-02 | L99: 45292 | M99: INE438A01022
A100: APOLSINHOT | B100: EQ | C100: 531 | D100: 531 | E100: 500.2 | F100: 503.55 | G100: 502.1 | H100: 525.9 | I100: 4328 | J100: 2205398.35 | K100: 2020-03-02 | L100: 191 | M100: INE451F01024
A101: APTECHT | B101: EQ | C101: 120 | D101: 124.5 | E101: 112.55 | F101: 116.25 | G101: 114.35 | H101: 117.6 | I101: 135086 | J101: 16322139.65 | K101: 2020-03-02 | L101: 3240 | M101: INE266F01018
A102: ARCHIDPLY | B102: EQ | C102: 19.5 | D102: 22.5 | E102: 19 | F102: 19.65 | G102: 19.05 | H102: 19.65 | I102: 20101 | J102: 426342.7 | K102: 2020-03-02 | L102: 224 | M102: INE877I01016
A103: ARCHIES | B103: EQ | C103: 13.1 | D103: 13.9 | E103: 13.1 | F103: 13.35 | G103: 13.15 | H103: 13.05 | I103: 16500 | J103: 222444.25 | K103: 2020-03-02 | L103: 107 | M103: INE731A01020
A104: ARCOTECH | B104: BE | C104: 1.2 | D104: 1.3 | E104: 1.2 | F104: 1.25 | G104: 1.3 | H104: 1.25 | I104: 77646 | J104: 96657.2 | K104: 2020-03-02 | L104: 51 | M104: INE574I01035
A105: ARENTERP | B105: EQ | C105: 17.95 | D105: 17.95 | E105: 17.95 | F105: 17.95 | G105: 17.95 | H105: 17.1 | I105: 4947 | J105: 88798.65 | K105: 2020-03-02 | L105: 45 | M105: INE610C01014
A106: ARIES | B106: EQ | C106: 56.5 | D106: 59.9 | E106: 52.1 | F106: 53 | G106: 52.1 | H106: 54.95 | I106: 31983 | J106: 1807187.3 | K106: 2020-03-02 | L106: 504 | M106: INE298I01015
A107: ARIHANT | B107: EQ | C107: 18.5 | D107: 18.5 | E107: 18.5 | F107: 18.5 | G107: 18.5 | H107: 18.45 | I107: 350 | J107: 6475 | K107: 2020-03-02 | L107: 6 | M107: INE413D01011
A108: ARIHANTSUP | B108: EQ | C108: 23.35 | D108: 25.5 | E108: 23.25 | F108: 25.3 | G108: 25.3 | H108: 24.45 | I108: 1251 | J108: 29464.9 | K108: 2020-03-02 | L108: 20 | M108: INE643K01018
A109: ARMANFIN | B109: EQ | C109: 977 | D109: 1010 | E109: 901 | F109: 912.4 | G109: 901 | H109: 923.95 | I109: 23949 | J109: 22920142.15 | K109: 2020-03-02 | L109: 1673 | M109: INE109C01017
A110: AROGRANITE | B110: EQ | C110: 28.55 | D110: 31.2 | E110: 27.55 | F110: 28.45 | G110: 29 | H110: 28.4 | I110: 6977 | J110: 203446.6 | K110: 2020-03-02 | L110: 168 | M110: INE210C01013
A111: ARROWGREEN | B111: BE | C111: 35.65 | D111: 39.3 | E111: 35.65 | F111: 38.65 | G111: 37.25 | H111: 37.5 | I111: 5825 | J111: 222270.7 | K111: 2020-03-02 | L111: 70 | M111: INE570D01018
A112: ARSHIYA | B112: EQ | C112: 13.5 | D112: 16 | E112: 13.5 | F112: 15.5 | G112: 15.9 | H112: 13.6 | I112: 82286 | J112: 1236955.8 | K112: 2020-03-02 | L112: 313 | M112: INE968D01022
A113: ARSSINFRA | B113: EQ | C113: 13.35 | D113: 15.2 | E113: 13.35 | F113: 14.65 | G113: 14.6 | H113: 14.15 | I113: 26914 | J113: 393456.9 | K113: 2020-03-02 | L113: 91 | M113: INE267I01010
A114: ARTEMISMED | B114: EQ | C114: 208 | D114: 212 | E114: 200.1 | F114: 200.2 | G114: 200.1 | H114: 211.2 | I114: 128 | J114: 25676.05 | K114: 2020-03-02 | L114: 7 | M114: INE025R01013
A115: ARVIND | B115: EQ | C115: 37.5 | D115: 39.2 | E115: 37.5 | F115: 38.6 | G115: 38.3 | H115: 37.3 | I115: 850968 | J115: 32867607.5 | K115: 2020-03-02 | L115: 14039 | M115: INE034A01011
A116: ARVINDFASN | B116: EQ | C116: 340.5 | D116: 359 | E116: 340.5 | F116: 348.85 | G116: 348.85 | H116: 345.75 | I116: 26074 | J116: 9099379.45 | K116: 2020-03-02 | L116: 2998 | M116: INE955V01021
A117: ARVSMART | B117: EQ | C117: 83.6 | D117: 85.95 | E117: 82.5 | F117: 84.7 | G117: 85.5 | H117: 83.9 | I117: 13489 | J117: 1139829.85 | K117: 2020-03-02 | L117: 432 | M117: INE034S01021
A118: ASAHIINDIA | B118: EQ | C118: 250.55 | D118: 250.65 | E118: 230.55 | F118: 235.95 | G118: 237 | H118: 249.2 | I118: 86077 | J118: 20900402 | K118: 2020-03-02 | L118: 2394 | M118: INE439A01020
A119: ASAHISONG | B119: EQ | C119: 134.75 | D119: 138 | E119: 130.55 | F119: 131.25 | G119: 130.55 | H119: 134.75 | I119: 4945 | J119: 659751.2 | K119: 2020-03-02 | L119: 319 | M119: INE228I01012
A120: ASAL | B120: EQ | C120: 19.8 | D120: 21 | E120: 17.4 | F120: 18.5 | G120: 19 | H120: 19.8 | I120: 16560 | J120: 310917.1 | K120: 2020-03-02 | L120: 201 | M120: INE900C01027
A121: ASALCBR | B121: EQ | C121: 225 | D121: 229 | E121: 210.15 | F121: 213.65 | G121: 214.95 | H121: 217.9 | I121: 17135 | J121: 3801809.15 | K121: 2020-03-02 | L121: 647 | M121: INE073G01016
A122: ASHAPURMIN | B122: EQ | C122: 31.55 | D122: 33.95 | E122: 31.55 | F122: 33 | G122: 32.5 | H122: 32.35 | I122: 40181 | J122: 1339868.5 | K122: 2020-03-02 | L122: 227 | M122: INE348A01023
A123: ASHIANA | B123: EQ | C123: 102.9 | D123: 102.9 | E123: 98.1 | F123: 100 | G123: 100 | H123: 102.05 | I123: 73761 | J123: 7355156.35 | K123: 2020-03-02 | L123: 1547 | M123: INE365D01021
A124: ASHIMASYN | B124: EQ | C124: 6.1 | D124: 6.45 | E124: 5.75 | F124: 5.85 | G124: 5.9 | H124: 5.85 | I124: 5443 | J124: 32556.65 | K124: 2020-03-02 | L124: 57 | M124: INE440A01010
A125: ASHOKA | B125: EQ | C125: 91.3 | D125: 94.3 | E125: 83.85 | F125: 87.1 | G125: 88 | H125: 90.35 | I125: 430533 | J125: 39303918.15 | K125: 2020-03-02 | L125: 7413 | M125: INE442H01029
A126: ASHOKLEY | B126: EQ | C126: 71.5 | D126: 74.95 | E126: 71.05 | F126: 73.9 | G126: 74.75 | H126: 69.9 | I126: 39273874 | J126: 2892237119 | K126: 2020-03-02 | L126: 90279 | M126: INE208A01029
A127: ASIANHOTNR | B127: EQ | C127: 71 | D127: 75 | E127: 70 | F127: 70 | G127: 70 | H127: 68.05 | I127: 1367 | J127: 98176.45 | K127: 2020-03-02 | L127: 35 | M127: INE363A01022
A128: ASIANPAINT | B128: EQ | C128: 1815.1 | D128: 1837.45 | E128: 1769.25 | F128: 1786.8 | G128: 1785.1 | H128: 1797.95 | I128: 1219296 | J128: 2211444937 | K128: 2020-03-02 | L128: 61230 | M128: INE021A01026
A129: ASIANTILES | B129: EQ | C129: 245 | D129: 261.45 | E129: 241.2 | F129: 248.7 | G129: 252 | H129: 247.85 | I129: 295396 | J129: 75434973 | K129: 2020-03-02 | L129: 7072 | M129: INE022I01019
A130: ASPINWALL | B130: EQ | C130: 130.35 | D130: 132 | E130: 123 | F130: 125 | G130: 125 | H130: 130.35 | I130: 633 | J130: 79411.05 | K130: 2020-03-02 | L130: 65 | M130: INE991I01015
A131: ASTEC | B131: EQ | C131: 473.1 | D131: 480 | E131: 464.2 | F131: 474.7 | G131: 475 | H131: 471.45 | I131: 15047 | J131: 7136718.65 | K131: 2020-03-02 | L131: 235 | M131: INE563J01010
A132: ASTERDM | B132: EQ | C132: 167.9 | D132: 169 | E132: 155 | F132: 161.05 | G132: 161.45 | H132: 162.4 | I132: 101269 | J132: 16624559.25 | K132: 2020-03-02 | L132: 3007 | M132: INE914M01019
A133: ASTRAL | B133: EQ | C133: 1145 | D133: 1182 | E133: 1135.05 | F133: 1150.1 | G133: 1143.05 | H133: 1144.4 | I133: 73438 | J133: 85776512.1 | K133: 2020-03-02 | L133: 7530 | M133: INE006I01046
A134: ASTRAMICRO | B134: EQ | C134: 89 | D134: 90.7 | E134: 82.7 | F134: 84.05 | G134: 84.5 | H134: 87.5 | I134: 226215 | J134: 19499638.35 | K134: 2020-03-02 | L134: 2205 | M134: INE386C01029
A135: ASTRAZEN | B135: EQ | C135: 2585 | D135: 2698 | E135: 2580.2 | F135: 2653.65 | G135: 2669 | H135: 2578.2 | I135: 24053 | J135: 63756332.95 | K135: 2020-03-02 | L135: 5401 | M135: INE203A01020
A136: ASTRON | B136: EQ | C136: 35.45 | D136: 37.9 | E136: 35.45 | F136: 36.55 | G136: 36 | H136: 35.45 | I136: 52025 | J136: 1900313.9 | K136: 2020-03-02 | L136: 237 | M136: INE646X01014
A137: ATFL | B137: EQ | C137: 646.95 | D137: 657.05 | E137: 627.6 | F137: 639.35 | G137: 637 | H137: 640.6 | I137: 10645 | J137: 6829363.1 | K137: 2020-03-02 | L137: 450 | M137: INE209A01019
A138: ATLANTA | B138: EQ | C138: 5 | D138: 5.25 | E138: 4.75 | F138: 4.75 | G138: 4.9 | H138: 5 | I138: 12353 | J138: 59848.65 | K138: 2020-03-02 | L138: 70 | M138: INE285H01022
A139: ATLASCYCLE | B139: BE | C139: 44.35 | D139: 45 | E139: 42.3 | F139: 43.85 | G139: 43.85 | H139: 43.85 | I139: 181 | J139: 7969.5 | K139: 2020-03-02 | L139: 12 | M139: INE446A01025
A140: ATNINTER | B140: BE | C140: 0.1 | D140: 0.1 | E140: 0.1 | F140: 0.1 | G140: 0.1 | H140: 0.1 | I140: 2510 | J140: 251 | K140: 2020-03-02 | L140: 3 | M140: INE803A01027
A141: ATUL | B141: EQ | C141: 5206 | D141: 5323.7 | E141: 5130 | F141: 5191.45 | G141: 5190 | H141: 5143.65 | I141: 38269 | J141: 199032050.4 | K141: 2020-03-02 | L141: 8302 | M141: INE100A01010
A142: ATULAUTO | B142: EQ | C142: 226.1 | D142: 236 | E142: 218.15 | F142: 220.2 | G142: 219 | H142: 225.4 | I142: 48906 | J142: 10945035.7 | K142: 2020-03-02 | L142: 2261 | M142: INE951D01028
A143: AUBANK | B143: EQ | C143: 1164.55 | D143: 1218 | E143: 1140.05 | F143: 1155.75 | G143: 1145 | H143: 1162.9 | I143: 1033147 | J143: 1220016765 | K143: 2020-03-02 | L143: 56496 | M143: INE949L01017
A144: AURIONPRO | B144: EQ | C144: 41.8 | D144: 42.2 | E144: 39.65 | F144: 41.35 | G144: 40.7 | H144: 39.95 | I144: 22912 | J144: 949184.8 | K144: 2020-03-02 | L144: 511 | M144: INE132H01018
A145: AUROPHARMA | B145: EQ | C145: 512.5 | D145: 519.45 | E145: 490 | F145: 494.65 | G145: 494.6 | H145: 505.5 | I145: 2594821 | J145: 1324717112 | K145: 2020-03-02 | L145: 46123 | M145: INE406A01037
A146: AUSOMENT | B146: BE | C146: 36 | D146: 36.75 | E146: 35.55 | F146: 36.75 | G146: 36.75 | H146: 35 | I146: 432 | J146: 15649.15 | K146: 2020-03-02 | L146: 8 | M146: INE218C01016
A147: AUTOAXLES | B147: EQ | C147: 697 | D147: 717 | E147: 671 | F147: 680 | G147: 671 | H147: 688.15 | I147: 3939 | J147: 2726408.8 | K147: 2020-03-02 | L147: 408 | M147: INE449A01011
A148: AUTOIND | B148: BE | C148: 19.3 | D148: 20.15 | E148: 18.25 | F148: 18.35 | G148: 18.5 | H148: 19.2 | I148: 5647 | J148: 106051.8 | K148: 2020-03-02 | L148: 53 | M148: INE718H01014
A149: AUTOLITIND | B149: EQ | C149: 17.55 | D149: 19.8 | E149: 17.15 | F149: 17.8 | G149: 18 | H149: 18.2 | I149: 2888 | J149: 51948.15 | K149: 2020-03-02 | L149: 90 | M149: INE448A01013
A150: AVADHSUGAR | B150: EQ | C150: 226 | D150: 229.5 | E150: 200.8 | F150: 205.55 | G150: 204.5 | H150: 218.85 | I150: 144457 | J150: 31056922.95 | K150: 2020-03-02 | L150: 2690 | M150: INE349W01017
A151: AVANTIFEED | B151: EQ | C151: 480.9 | D151: 504.95 | E151: 420.1 | F151: 430.85 | G151: 432 | H151: 462.7 | I151: 800657 | J151: 371102563.8 | K151: 2020-03-02 | L151: 27609 | M151: INE871C01038
A152: AVTNPL | B152: EQ | C152: 35.95 | D152: 38.1 | E152: 33.5 | F152: 34.3 | G152: 34.05 | H152: 35.8 | I152: 164984 | J152: 5879048.6 | K152: 2020-03-02 | L152: 1194 | M152: INE488D01021
A153: AXISBANK | B153: EQ | C153: 709.3 | D153: 713.25 | E153: 675.3 | F153: 684.2 | G153: 687 | H153: 697.3 | I153: 13854352 | J153: 9642189508 | K153: 2020-03-02 | L153: 177926 | M153: INE238A01034
A154: AXISCADES | B154: BE | C154: 53.75 | D154: 54.9 | E154: 50.2 | F154: 50.45 | G154: 51 | H154: 52.8 | I154: 35960 | J154: 1873952.2 | K154: 2020-03-02 | L154: 194 | M154: INE555B01013
A155: AXISGOLD | B155: EQ | C155: 3685.5 | D155: 3708.95 | E155: 3632.5 | F155: 3683.45 | G155: 3681.05 | H155: 3722.5 | I155: 1230 | J155: 4511365.7 | K155: 2020-03-02 | L155: 300 | M155: INF846K01347
A156: AXISNIFTY | B156: EQ | C156: 1226 | D156: 1260 | E156: 1140 | F156: 1154.59 | G156: 1144.21 | H156: 1256 | I156: 528 | J156: 620984.83 | K156: 2020-03-02 | L156: 77 | M156: INF846K01ZL0
A157: AYMSYNTEX | B157: EQ | C157: 27.4 | D157: 32.2 | E157: 27.4 | F157: 29.55 | G157: 29.5 | H157: 29.2 | I157: 8855 | J157: 264367.45 | K157: 2020-03-02 | L157: 191 | M157: INE193B01039
A158: BAFNAPH | B158: BE | C158: 4.4 | D158: 4.6 | E158: 4.4 | F158: 4.6 | G158: 4.6 | H158: 3.55 | I158: 623 | J158: 2825.8 | K158: 2020-03-02 | L158: 7 | M158: INE878I01022
A159: BAGFILMS | B159: BE | C159: 1.6 | D159: 1.6 | E159: 1.5 | F159: 1.5 | G159: 1.5 | H159: 1.55 | I159: 27095 | J159: 40750.95 | K159: 2020-03-02 | L159: 57 | M159: INE116D01028
A160: BAJAJ-AUTO | B160: EQ | C160: 2920 | D160: 2944.5 | E160: 2772 | F160: 2792.2 | G160: 2797 | H160: 2890 | I160: 1281846 | J160: 3621338140 | K160: 2020-03-02 | L160: 69748 | M160: INE917I01010
A161: BAJAJCON | B161: EQ | C161: 196 | D161: 199.8 | E161: 175 | F161: 183.05 | G161: 182.85 | H161: 192.3 | I161: 175529 | J161: 33754299.3 | K161: 2020-03-02 | L161: 4577 | M161: INE933K01021
A162: BAJAJELEC | B162: EQ | C162: 419 | D162: 435 | E162: 401.55 | F162: 410.55 | G162: 413 | H162: 403.3 | I162: 147033 | J162: 62077433.55 | K162: 2020-03-02 | L162: 5975 | M162: INE193E01025
A163: BAJAJFINSV | B163: EQ | C163: 9300 | D163: 9300 | E163: 8808 | F163: 8914.5 | G163: 8919 | H163: 9050.75 | I163: 309031 | J163: 2820324987 | K163: 2020-03-02 | L163: 40005 | M163: INE918I01018
A164: BAJAJHIND | B164: EQ | C164: 5.15 | D164: 5.25 | E164: 4.85 | F164: 4.95 | G164: 5 | H164: 5.1 | I164: 1975960 | J164: 9994107.8 | K164: 2020-03-02 | L164: 1512 | M164: INE306A01021
A165: BAJAJHLDNG | B165: EQ | C165: 3460 | D165: 3460 | E165: 3375.1 | F165: 3393.9 | G165: 3380.55 | H165: 3386.65 | I165: 14706 | J165: 50166978.5 | K165: 2020-03-02 | L165: 3635 | M165: INE118A01012
A166: BAJFINANCE | B166: EQ | C166: 4600 | D166: 4617.95 | E166: 4305.65 | F166: 4360.75 | G166: 4364 | H166: 4465.85 | I166: 2238216 | J166: 1.001506961e+10 | K166: 2020-03-02 | L166: 134008 | M166: INE296A01024
A167: BALAJITELE | B167: EQ | C167: 50.15 | D167: 52 | E167: 47.05 | F167: 48.7 | G167: 48.15 | H167: 50.1 | I167: 71366 | J167: 3547488.45 | K167: 2020-03-02 | L167: 731 | M167: INE794B01026
A168: BALAMINES | B168: EQ | C168: 412.25 | D168: 424 | E168: 387.7 | F168: 398.2 | G168: 399 | H168: 408.9 | I168: 51961 | J168: 21383014.75 | K168: 2020-03-02 | L168: 1743 | M168: INE050E01027
A169: BALAXI | B169: EQ | C169: 110 | D169: 112.3 | E169: 103.1 | F169: 106.65 | G169: 105 | H169: 102.1 | I169: 2111 | J169: 230597.15 | K169: 2020-03-02 | L169: 210 | M169: INE618N01014
A170: BALKRISHNA | B170: EQ | C170: 14.8 | D170: 16.3 | E170: 14.8 | F170: 15.75 | G170: 15.75 | H170: 15.55 | I170: 8598 | J170: 132696.05 | K170: 2020-03-02 | L170: 52 | M170: INE875R01011
A171: BALKRISIND | B171: EQ | C171: 1100.4 | D171: 1155.65 | E171: 1051.35 | F171: 1069.6 | G171: 1080 | H171: 1096.4 | I171: 1821480 | J171: 2028777872 | K171: 2020-03-02 | L171: 52497 | M171: INE787D01026
A172: BALLARPUR | B172: BE | C172: 0.45 | D172: 0.5 | E172: 0.4 | F172: 0.45 | G172: 0.5 | H172: 0.45 | I172: 255412 | J172: 115882.05 | K172: 2020-03-02 | L172: 91 | M172: INE294A01037
A173: BALMLAWRIE | B173: EQ | C173: 103.55 | D173: 106 | E173: 101 | F173: 101.85 | G173: 101.05 | H173: 102.15 | I173: 71460 | J173: 7385836.9 | K173: 2020-03-02 | L173: 1307 | M173: INE164A01016
A174: BALPHARMA | B174: EQ | C174: 40 | D174: 42.4 | E174: 37.55 | F174: 38.45 | G174: 37.65 | H174: 39.05 | I174: 7099 | J174: 276976.05 | K174: 2020-03-02 | L174: 193 | M174: INE083D01012
A175: BALRAMCHIN | B175: EQ | C175: 144.15 | D175: 147.95 | E175: 140 | F175: 142.45 | G175: 143 | H175: 142.8 | I175: 589400 | J175: 85092795.75 | K175: 2020-03-02 | L175: 6495 | M175: INE119A01028
A176: BANARBEADS | B176: EQ | C176: 30.7 | D176: 32.7 | E176: 30.4 | F176: 30.9 | G176: 30.4 | H176: 31.05 | I176: 3043 | J176: 94227.15 | K176: 2020-03-02 | L176: 35 | M176: INE655B01011
A177: BANARISUG | B177: EQ | C177: 1305 | D177: 1330.8 | E177: 1200.1 | F177: 1214.7 | G177: 1200.1 | H177: 1292.25 | I177: 554 | J177: 691070.8 | K177: 2020-03-02 | L177: 93 | M177: INE459A01010
A178: BANCOINDIA | B178: EQ | C178: 85.8 | D178: 88.8 | E178: 81.5 | F178: 82.65 | G178: 82.95 | H178: 85.8 | I178: 39040 | J178: 3330876.15 | K178: 2020-03-02 | L178: 805 | M178: INE213C01025
A179: BANDHANBNK | B179: EQ | C179: 395.8 | D179: 406.85 | E179: 385 | F179: 394.05 | G179: 392.2 | H179: 383.5 | I179: 6530741 | J179: 2593214501 | K179: 2020-03-02 | L179: 116401 | M179: INE545U01014
A180: BANG | B180: EQ | C180: 17.1 | D180: 17.9 | E180: 17 | F180: 17 | G180: 17 | H180: 17.85 | I180: 4423 | J180: 75966.85 | K180: 2020-03-02 | L180: 69 | M180: INE863I01016
A181: BANKBARODA | B181: EQ | C181: 77.5 | D181: 78.35 | E181: 70.35 | F181: 71.15 | G181: 70.9 | H181: 76.3 | I181: 40961015 | J181: 3054986333 | K181: 2020-03-02 | L181: 68502 | M181: INE028A01039
A182: BANKBEES | B182: EQ | C182: 297.5 | D182: 302.3 | E182: 291.6 | F182: 294.45 | G182: 294.48 | H182: 296.72 | I182: 139338 | J182: 41718106.14 | K182: 2020-03-02 | L182: 2567 | M182: INF204KB15I9
A183: BANKINDIA | B183: EQ | C183: 51.25 | D183: 54.2 | E183: 49.3 | F183: 50.05 | G183: 50.15 | H183: 51.05 | I183: 1861547 | J183: 95500497.45 | K183: 2020-03-02 | L183: 11455 | M183: INE084A01016
A184: BANSWRAS | B184: BE | C184: 127 | D184: 127 | E184: 120 | F184: 121.1 | G184: 125 | H184: 121.95 | I184: 6298 | J184: 775567.05 | K184: 2020-03-02 | L184: 41 | M184: INE629D01012
A185: BARTRONICS | B185: BE | C185: 0.95 | D185: 1.05 | E185: 0.95 | F185: 0.95 | G185: 0.95 | H185: 1 | I185: 1950 | J185: 1864 | K185: 2020-03-02 | L185: 18 | M185: INE855F01034
A186: BASF | B186: EQ | C186: 1070 | D186: 1110 | E186: 1002 | F186: 1010.6 | G186: 1018 | H186: 1026.85 | I186: 234996 | J186: 247931045.4 | K186: 2020-03-02 | L186: 15347 | M186: INE373A01013
A187: BASML | B187: EQ | C187: 117.75 | D187: 117.75 | E187: 96.2 | F187: 98.8 | G187: 97.1 | H187: 102 | I187: 1186 | J187: 124750.35 | K187: 2020-03-02 | L187: 162 | M187: INE186H01014
A188: BATAINDIA | B188: EQ | C188: 1670 | D188: 1690.25 | E188: 1622 | F188: 1634.45 | G188: 1642 | H188: 1650.65 | I188: 750864 | J188: 1242057879 | K188: 2020-03-02 | L188: 27796 | M188: INE176A01028
A189: BAYERCROP | B189: EQ | C189: 4402 | D189: 4544.9 | E189: 4179.95 | F189: 4338.15 | G189: 4450 | H189: 4382.05 | I189: 72412 | J189: 322016925.7 | K189: 2020-03-02 | L189: 4181 | M189: INE462A01022
A190: BBL | B190: EQ | C190: 778 | D190: 799 | E190: 759.85 | F190: 762.75 | G190: 767.75 | H190: 762.15 | I190: 6075 | J190: 4675483.25 | K190: 2020-03-02 | L190: 544 | M190: INE464A01028
A191: BBTC | B191: EQ | C191: 1083.9 | D191: 1108 | E191: 1053 | F191: 1092.25 | G191: 1107 | H191: 1069.45 | I191: 65206 | J191: 71067278.5 | K191: 2020-03-02 | L191: 4418 | M191: INE050A01025
A192: BCG | B192: BE | C192: 4.6 | D192: 4.75 | E192: 4.55 | F192: 4.7 | G192: 4.6 | H192: 4.55 | I192: 491705 | J192: 2315442.7 | K192: 2020-03-02 | L192: 292 | M192: INE425B01027
A193: BCP | B193: BE | C193: 18.45 | D193: 18.9 | E193: 17.6 | F193: 18.25 | G193: 18 | H193: 18.45 | I193: 14303 | J193: 261643.15 | K193: 2020-03-02 | L193: 27 | M193: INE905P01028
A194: BDL | B194: EQ | C194: 280.4 | D194: 286 | E194: 260.05 | F194: 264.5 | G194: 262 | H194: 274.15 | I194: 127700 | J194: 35317473.05 | K194: 2020-03-02 | L194: 4709 | M194: INE171Z01018
A195: BEARDSELL | B195: BE | C195: 6.65 | D195: 6.95 | E195: 6.65 | F195: 6.95 | G195: 6.95 | H195: 7 | I195: 630 | J195: 4219.5 | K195: 2020-03-02 | L195: 6 | M195: INE520H01022
A196: BEDMUTHA | B196: BE | C196: 13.5 | D196: 14.15 | E196: 13.05 | F196: 13.25 | G196: 13.25 | H196: 13.5 | I196: 2544 | J196: 33714.4 | K196: 2020-03-02 | L196: 10 | M196: INE844K01012
A197: BEL | B197: EQ | C197: 76 | D197: 76.9 | E197: 72 | F197: 72.95 | G197: 72.7 | H197: 73.95 | I197: 9208356 | J197: 689677328.2 | K197: 2020-03-02 | L197: 37656 | M197: INE263A01024
A198: BEML | B198: EQ | C198: 757 | D198: 785.35 | E198: 711.05 | F198: 719.35 | G198: 717 | H198: 745.85 | I198: 297274 | J198: 220056412.5 | K198: 2020-03-02 | L198: 11735 | M198: INE258A01016
A199: BEPL | B199: EQ | C199: 41.3 | D199: 43.1 | E199: 38.75 | F199: 40.25 | G199: 39.5 | H199: 41.15 | I199: 182669 | J199: 7555600.85 | K199: 2020-03-02 | L199: 1457 | M199: INE922A01025
A200: BERGEPAINT | B200: EQ | C200: 575 | D200: 577 | E200: 550.6 | F200: 556.95 | G200: 552 | H200: 566.55 | I200: 1286412 | J200: 728844254.7 | K200: 2020-03-02 | L200: 27219 | M200: INE463A01038
... 1488 more rows

Sheet Sheet1 (hidden)

Sheet Sheet3 (hidden)

Sheet Sheet4 (hidden)

Sheet Sheet5 (hidden)
